Workbook

Sheet Congreso
C2: v3.0 | N2: Calculadora de circunscripciones electorales españolas | W2: CONGRESO
K3: www.Electomania.es | P3: Hecho por Lutxana
P4: Mejorado por Johnniezq
D5: Extrapolación por circunscripciones | S5: PARTIDO | T5: 20D % | U5: 20D escaños | V5: Previsión % | W5: Cociente | X5: Previsión escaños | Y5: Dif. | AB5: 20D
B6: ESC. | C6: CIRCUNSCRIPCIÓN | D6: PP | F6: PSOE | H6: UP | J6: C's | L6: Terr1 | N6: Terr2 | AB6: PP | AC6: PSOE | AD6: UP | AE6: C's | AF6: Terr1 | AG6: Terr2
B7: 8 | C7: A Coruña | D7: =AB7*W$8 -> 0.3546528552 | E7: =D71 -> 3 | F7: =AC7*W$9 -> 0.2014225352 | G7: =F71 -> 2 | H7: =AD7*W10 -> 0.2595157336 | I7: =H71 -> 2 | J7: =AE7*W$14 -> 0.1052893037 | K7: =J71 -> 1 | L7: =AF7*W$19 -> 0.0455 | M7: =L71 -> 0 | P7: NÓS | AB7: 0.3549 | AC7: 0.2043 | AD7: 0.2635 | AE7: 0.0991 | AF7: 0.0455 | AH7: NÓS
B8: 4 | C8: Albacete | D8: 0.3682433844 | E8: =D79 -> 2 | F8: 0.2776338028 | G8: =F79 -> 1 | H8: =AD8*W$10 -> 0.1765888843 | I8: =H79 -> 1 | J8: 0.1547997128 | K8: =J79 -> 0 | S8: PP | T8: 0.2872 | U8: 123 | V8: 0.287 | W8: =V8/T8 -> 0.9993036212 | X8: =E59 -> 115 | Y8: =X8-U8 -> -8 | AB8: 0.3685 | AC8: 0.2816 | AD8: 0.1793 | AE8: 0.1457
B9: 12 | C9: Alicante / Alacant | D9: 0.3282712396 | E9: =D95 -> 4 | F9: 0.2056619718 | G9: =F95 -> 3 | H9: 0.2553792399 | I9: =H95 -> 3 | J9: 0.1811486001 | K9: =J95 -> 2 | S9: PSOE | T9: 0.2201 | U9: 90 | V9: 0.217 | W9: =V9/T9 -> 0.985915493 | X9: =G59 -> 84 | Y9: =X9-U9 -> -6 | AB9: 0.3285 | AC9: 0.2086 | AD9: 0.2593 | AE9: 0.1705
B10: 6 | C10: Almería | D10: 0.3801350975 | E10: =D105 -> 2 | F10: 0.2843380282 | G10: =F105 -> 2 | H10: 0.1603383735 | I10: =H105 -> 1 | J10: 0.1525685571 | K10: =J105 -> 1 | S10: UP | T10: 0.2447 | U10: 44 | V10: 0.241 | W10: =V10/T10 -> 0.9848794442 | X10: =SUM(Z10:Z13) -> 86 | Y10: =X10-U10-U11-U12-U13 -> 15 | Z10: =I59-Z11-Z12-Z13 -> 59 | AB10: 0.3804 | AC10: 0.2884 | AD10: 0.1628 | AE10: 0.1436
B11: 4 | C11: Araba - Álava | D11: 0.1878690808 | E11: =D113 -> 1 | F11: 0.1395070423 | G11: =F113 -> 0 | H11: 0.3033428688 | I11: =H113 -> 2 | J11: 0.06225987078 | K11: =J113 -> 0 | L11: =AF11*W$16 -> 0.1547293233 | M11: =L113 -> 1 | N11: =AG11*W$17 -> 0.1225862069 | O11: =N113 -> 0 | P11: PNV | Q11: BILDU | S11: En Comú Podem | U11: 12 | Y11: =Z11-U11 -> 0 | Z11: =I15+I27+I37+I52 -> 12 | AB11: 0.188 | AC11: 0.1415 | AD11: 0.308 | AE11: 0.0586 | AF11: 0.1583 | AG11: 0.1185 | AH11: PNV | AI11: BILDU
B12: 8 | C12: Asturias | D12: 0.3012900418 | E12: =D125 -> 3 | F12: 0.2294225352 | G12: =F125 -> 2 | H12: 0.2932970985 | I12: =H125 -> 2 | J12: 0.144068916 | K12: =J125 -> 1 | S12: A la Valenciana | U12: 9 | Y12: =Z12-U12 -> 0 | Z12: =I9+I21+I55 -> 9 | AB12: 0.3015 | AC12: 0.2327 | AD12: 0.2978 | AE12: 0.1356
B13: 3 | C13: Ávila | D13: 0.4620779944 | E13: =D132 -> 2 | F13: 0.1954084507 | G13: =F132 -> 1 | H13: 0.1526563139 | I13: =H132 -> 0 | J13: 0.1662742283 | K13: =J132 -> 0 | S13: En Marea | U13: 6 | Y13: =Z13-U13 -> 0 | Z13: =I7+I38+I44+I46 -> 6 | AB13: 0.4624 | AC13: 0.1982 | AD13: 0.155 | AE13: 0.1565
B14: 6 | C14: Badajoz | D14: 0.3446598189 | E14: =D142 -> 2 | F14: 0.3668591549 | G14: =F142 -> 3 | H14: 0.1469440131 | I14: =H142 -> 1 | J14: 0.1205886576 | K14: =J142 -> 0 | S14: C´s | T14: 0.1393 | U14: 40 | V14: 0.148 | W14: =V14/T14 -> 1.062455133 | X14: =K59 -> 39 | Y14: -1 | AB14: 0.3449 | AC14: 0.3721 | AD14: 0.1492 | AE14: 0.1135
B15: 31 | C15: Barcelona | D15: 0.1126215181 | E15: =D177 -> 3 | F15: 0.1604084507 | G15: =F177 -> 5 | H15: 0.2650310584 | I15: =H177 -> 9 | J15: 0.1439626705 | K15: =J177 -> 5 | L15: =AF15*W$15 -> 0.1472222222 | M15: =L177 -> 5 | N15: =AG15*W$18 -> 0.1393472803 | O15: =N177 -> 4 | P15: DiL | Q15: ERC | S15: DiL | T15: 0.0225 | U15: 8 | V15: 0.025 | W15: 1.111111111 | X15: =M15+M27+M37+M52 -> 10 | Y15: 2 | AB15: 0.1127 | AC15: 0.1627 | AD15: 0.2691 | AE15: 0.1355 | AF15: 0.1325 | AG15: 0.1448 | AH15: DiL | AI15: ERC
B16: 8 | C16: Bizkaia | D16: 0.1137207521 | E16: =D189 -> 1 | F16: 0.1278732394 | G16: =F189 -> 1 | H16: 0.2848271353 | I16: =H189 -> 3 | J16: 0.04069203159 | K16: =J189 -> 0 | L16: =AF16*W$16 -> 0.273 | M16: =L189 -> 2 | N16: =AG16*W$17 -> 0.1293103448 | O16: =N189 -> 1 | P16: PNV | Q16: BILDU | S16: PNV | T16: 0.0133 | U16: 6 | V16: 0.013 | W16: 0.977443609 | X16: =M11+M26+M16 -> 5 | Y16: -1 | AB16: 0.1138 | AC16: 0.1297 | AD16: 0.2892 | AE16: 0.0383 | AF16: 0.2793 | AG16: 0.125 | AH16: PNV | AI16: BILDU
B17: 4 | C17: Burgos | D17: 0.3805348189 | E17: =D197 -> 2 | F17: 0.2041830986 | G17: =F197 -> 1 | H17: 0.2142112791 | I17: =H197 -> 1 | J17: 0.1651055276 | K17: =J197 -> 0 | S17: BILDU | T17: 0.0087 | U17: 2 | V17: 0.009 | W17: 1.034482759 | X17: =O16+O26+O11+O43 -> 2 | Y17: 0 | AB17: 0.3808 | AC17: 0.2071 | AD17: 0.2175 | AE17: 0.1554
B18: 4 | C18: Cáceres | D18: 0.3532538301 | E18: =D205 -> 2 | F18: 0.3358028169 | G18: =F205 -> 2 | H18: 0.1657552105 | I18: =H205 -> 0 | J18: 0.1211198851 | K18: =J205 -> 0 | S18: ERC | T18: 0.0239 | U18: 9 | V18: 0.023 | W18: 0.9623430962 | X18: =O15+O27+O9+O21+O32+O55+O37+O52 -> 8 | Y18: -1 | AB18: 0.3535 | AC18: 0.3406 | AD18: 0.1683 | AE18: 0.114
B19: 9 | C19: Cádiz | D19: 0.2773067549 | E19: =D218 -> 3 | F19: 0.276056338 | G19: =F218 -> 3 | H19: 0.2579399264 | I19: =H218 -> 2 | J19: 0.1559684135 | K19: =J218 -> 1 | S19: NÓS | T19: 0.0028 | U19: 0 | V19: 0.0028 | W19: 1 | X19: =M7+M38+M44+M46 -> 0 | Y19: 0 | AB19: 0.2775 | AC19: 0.28 | AD19: 0.2619 | AE19: 0.1468
B20: 5 | C20: Cantabria | D20: 0.3691427577 | E20: =D227 -> 2 | F20: 0.2210422535 | G20: =F227 -> 1 | H20: 0.2192341643 | I20: =H227 -> 1 | J20: 0.1620244078 | K20: =J227 -> 1 | S20: CC | T20: 0.0033 | U20: 1 | V20: 0.004 | W20: 1.212121212 | X20: =M35+M48 -> 1 | Y20: 0 | AB20: 0.3694 | AC20: 0.2242 | AD20: 0.2226 | AE20: 0.1525
B21: 5 | C21: Castellón / Castelló | D21: 0.3182782033 | E21: =D236 -> 2 | F21: 0.2121690141 | G21: =F236 -> 1 | H21: 0.2680841847 | I21: =H236 -> 1 | J21: 0.1659554917 | K21: =J236 -> 1 | S21: G.Bai | T21: 0.0012 | U21: 0 | V21: 0.0012 | W21: 1 | X21: =M43 -> 0 | Y21: 0 | AB21: 0.3185 | AC21: 0.2152 | AD21: 0.2722 | AE21: 0.1562
B22: 1 | C22: Ceuta | D22: 0.4485873955 | E22: 1 | F22: 0.2274507042 | G22: 0 | H22: 0.1512774826 | I22: 0 | J22: 0.1412002872 | K22: 0 | S22: TOTAL | T22: =SUM(T8:T21) -> 0.967 | U22: =SUM(U8:U21) -> 350 | V22: =SUM(V8:V21) -> 0.971 | W22: =PRODUCT(W8:W21) -> 1.351074415 | X22: =SUM(X8:X21) -> 350 | AB22: 0.4489 | AC22: 0.2307 | AD22: 0.1536 | AE22: 0.1329
B23: 5 | C23: Ciudad Real | D23: 0.3839324513 | E23: =D245 -> 2 | F23: 0.306915493 | G23: =F245 -> 2 | H23: 0.1553154884 | I23: =H245 -> 1 | J23: 0.1310007179 | K23: =J245 -> 0 | S23: VER MAPAS AQUÍ | U23: Consultar datos del 20D --------------------------------> | AB23: 0.3842 | AC23: 0.3113 | AD23: 0.1577 | AE23: 0.1233
B24: 6 | C24: Cordoba | D24: 0.3038882312 | E24: =D255 -> 2 | F24: 0.316084507 | G24: =F255 -> 2 | H24: 0.2237646097 | I24: =H255 -> 1 | J24: 0.1267508973 | K24: =J255 -> 1 | AB24: 0.3041 | AC24: 0.3206 | AD24: 0.2272 | AE24: 0.1193
B25: 3 | C25: Cuenca | D25: 0.4190080084 | E25: =D262 -> 2 | F25: 0.3014929577 | G25: =F262 -> 1 | H25: 0.1439893747 | I25: =H262 -> 0 | J25: 0.1144264178 | K25: =J262 -> 0 | V25: SENADO | AB25: 0.4193 | AC25: 0.3058 | AD25: 0.1462 | AE25: 0.1077
B26: 6 | C26: Gipuzkoa | D26: 0.08683948468 | E26: =D272 -> 0 | F26: 0.1312253521 | G26: =F272 -> 1 | H26: 0.2759632203 | I26: =H272 -> 2 | J26: 0.03952333094 | K26: =J272 -> 0 | L26: =AF26*W$16 -> 0.2297969925 | M26: =L272 -> 2 | N26: =AG26*W$17 -> 0.2161034483 | O26: =N272 -> 1 | P26: PNV | Q26: BILDU | AB26: 0.0869 | AC26: 0.1331 | AD26: 0.2802 | AE26: 0.0372 | AF26: 0.2351 | AG26: 0.2089 | AH26: PNV | AI26: BILDU
B27: 6 | C27: Girona | D27: 0.08524059889 | E27: =D282 -> 0 | F27: 0.1248169014 | G27: =F282 -> 1 | H27: 0.1601413976 | I27: =H282 -> 1 | J27: 0.1046518306 | K27: =J282 -> 0 | L27: =AF27*W$15 -> 0.2781111111 | M27: =L282 -> 2 | N27: =AG27*W$18 -> 0.2255732218 | O27: =N282 -> 2 | P27: DiL | Q27: ERC | T27: 20D | U27: Electos | AB27: 0.0853 | AC27: 0.1266 | AD27: 0.1626 | AE27: 0.0985 | AF27: 0.2503 | AG27: 0.2344 | AH27: DiL | AI27: ERC
B28: 7 | C28: Granada | D28: 0.3111831476 | E28: =D293 -> 2 | F28: 0.3056338028 | G28: =F293 -> 2 | H28: 0.2110596649 | I28: =H293 -> 2 | J28: 0.1475750179 | K28: =J293 -> 1 | U28: Electos | V28: Designados | W28: Total | AB28: 0.3114 | AC28: 0.31 | AD28: 0.2143 | AE28: 0.1389
B29: 3 | C29: Guadalajara | D29: 0.3476577298 | E29: =D300 -> 1 | F29: 0.2221267606 | G29: =F300 -> 1 | H29: 0.2125369841 | I29: =H300 -> 1 | J29: 0.191879397 | K29: =J300 -> 0 | S29: PP | T29: 124 | U29: =Senado!Y8 -> 117 | V29: 21 | W29: =U29+V29 -> 138 | AB29: 0.3479 | AC29: 0.2253 | AD29: 0.2158 | AE29: 0.1806
B30: 5 | C30: Huelva | D30: 0.2875995822 | E30: =D309 -> 2 | F30: 0.3641971831 | G30: =F309 -> 2 | H30: 0.1937257867 | I30: =H309 -> 1 | J30: 0.1261134243 | K30: =J309 -> 0 | S30: PSOE | T30: 47 | U30: =Senado!Y9 -> 41 | V30: 20 | W30: 61 | AB30: 0.2878 | AC30: 0.3694 | AD30: 0.1967 | AE30: 0.1187
B31: 3 | C31: Huesca | D31: 0.3257729805 | E31: =D316 -> 1 | F31: 0.2436197183 | G31: =F316 -> 1 | H31: 0.2280980793 | I31: =H316 -> 1 | J31: 0.172223977 | K31: =J316 -> 0 | S31: Podemos | T31: 17 | U31: =Senado!Y10 -> 37 | V31: 7 | W31: 44 | AB31: 0.326 | AC31: 0.2471 | AD31: 0.2316 | AE31: 0.1621
B32: 8 | C32: Illes Balears | D32: 0.2904975627 | E32: =D328 -> 3 | F32: 0.1805211268 | G32: =F328 -> 1 | H32: 0.3194948917 | I32: =H328 -> 3 | J32: 0.1570308686 | K32: =J328 -> 1 | S32: C´s | T32: 0 | U32: =Senado!Y11 -> 0 | V32: 3 | W32: 3 | AB32: 0.2907 | AC32: 0.1831 | AD32: 0.3244 | AE32: 0.1478
B33: 5 | C33: Jaén | D33: 0.3147806407 | E33: =D337 -> 2 | F33: 0.3781971831 | G33: =F337 -> 2 | H33: 0.1656567225 | I33: =H337 -> 1 | J33: 0.1134702082 | K33: =J337 -> 0 | S33: DiL | T33: 6 | U33: =Senado!Y12 -> 7 | V33: 2 | W33: 9 | AB33: 0.315 | AC33: 0.3836 | AD33: 0.1682 | AE33: 0.1068
B34: 4 | C34: La Rioja | D34: 0.3832329387 | E34: =D345 -> 2 | F34: 0.2337605634 | G34: =F345 -> 1 | H34: 0.1970743768 | I34: =H345 -> 1 | J34: 0.1607494616 | K34: =J345 -> 0 | S34: PNV | T34: 6 | U34: =Senado!Y13 -> 2 | V34: 1 | W34: 3 | AB34: 0.3835 | AC34: 0.2371 | AD34: 0.2001 | AE34: 0.1513
B35: 8 | C35: Las Palmas | D35: 0.2816037604 | E35: =D357 -> 2 | F35: 0.2208450704 | G35: =F357 -> 2 | H35: 0.2895545566 | I35: =H357 -> 3 | J35: 0.1303632448 | K35: =J357 -> 1 | S35: Bildu | T35: 0 | U35: =Senado!Y14 -> 0 | V35: 1 | W35: 1 | AB35: 0.2818 | AC35: 0.224 | AD35: 0.294 | AE35: 0.1227
B36: 4 | C36: León | D36: 0.3559519499 | E36: =D366 -> 2 | F36: 0.2501267606 | G36: =F366 -> 1 | H36: 0.2201205558 | I36: =H366 -> 1 | J36: 0.1378004307 | K36: =J366 -> 0 | S36: ERC | T36: 6 | U36: =Senado!Y15 -> 2 | V36: 2 | W36: 4 | AB36: 0.3562 | AC36: 0.2537 | AD36: 0.2235 | AE36: 0.1297
B37: 4 | C37: Lleida | D37: 0.1125215877 | E37: =D374 -> 0 | F37: 0.122943662 | G37: =F374 -> 0 | H37: 0.1510805067 | I37: =H374 -> 1 | J37: 0.09551471644 | K37: =J374 -> 0 | L37: =AF37*W$15 -> 0.2697777778 | M37: =L374 -> 2 | N37: =AG37*W$18 -> 0.2142175732 | O37: =N374 -> 1 | P37: DiL | Q37: ERC | S37: CC | T37: 1 | U37: =Senado!Y16 -> 1 | V37: 1 | W37: 2 | AB37: 0.1126 | AC37: 0.1247 | AD37: 0.1534 | AE37: 0.0899 | AF37: 0.2428 | AG37: 0.2226 | AH37: DiL | AI37: ERC
B38: 4 | C38: Lugo | D38: 0.4248039694 | E38: =D382 -> 2 | F38: 0.2364225352 | G38: =F382 -> 1 | H38: 0.189687781 | I38: =H382 -> 1 | J38: 0.08074659009 | K38: =J382 -> 0 | L38: =AF38*W$19 -> 0.0357 | M38: =L382 -> 0 | P38: NÓS | S38: ASG | T38: 1 | U38: =1 -> 1 | V38: 0 | W38: 1 | AB38: 0.4251 | AC38: 0.2398 | AD38: 0.1926 | AE38: 0.076 | AF38: 0.0357 | AH38: NÓS
B39: 36 | C39: Madrid | D39: =AB39*W$8 -> 0.3343669916 | E39: =D422 -> 13 | F39: =AC39*W$9 -> 0.1761830986 | G39: =F422 -> 6 | H39: 0.2572505108 | I39: =H422 -> 10 | J39: =AE39*W$14 -> 0.199741565 | K39: =J422 -> 7 | T39: =SUM(T29:T38) -> 208 | U39: =SUM(U29:U38) -> 208 | W39: =SUM(W29:W38) -> 266 | AB39: 0.3346 | AC39: 0.1787 | AD39: 0.2612 | AE39: 0.188
B40: 11 | C40: Málaga | D40: 0.2894982591 | E40: =D437 -> 3 | F40: 0.2654084507 | G40: =F437 -> 3 | H40: =AD40*W$10 -> 0.2352876992 | I40: =H437 -> 3 | J40: 0.1813610912 | K40: =J437 -> 2 | U40: Senadores | V40: 266 | AB40: 0.2897 | AC40: 0.2692 | AD40: 0.2389 | AE40: 0.1707
B41: 1 | C41: Melilla | D41: 0.4389940808 | E41: 1 | F41: 0.2424366197 | G41: 0 | H41: 0.1253751532 | I41: 0 | J41: 0.1652117732 | K41: 0 | AB41: 0.4393 | AC41: 0.2459 | AD41: 0.1273 | AE41: 0.1555
B42: 10 | C42: Murcia | D42: 0.4041183844 | E42: =D451 -> 4 | F42: 0.2003380282 | G42: =F451 -> 2 | H42: 0.1801344503 | I42: =H451 -> 2 | J42: 0.187735822 | K42: =J451 -> 2 | AB42: 0.4044 | AC42: 0.2032 | AD42: 0.1829 | AE42: 0.1767
B43: 5 | C43: Navarra | D43: 0.2890985376 | E43: =D460 -> 2 | F43: 0.1531126761 | G43: =F460 -> 1 | H43: 0.2669023294 | I43: =H460 -> 2 | J43: 0.07490308686 | K43: =J460 -> 0 | L43: =AF43*W$21 -> 0.0868 | M43: =L460 -> 0 | N43: =AG43*W$17 -> 0.1024137931 | O43: =N460 -> 0 | P43: G.Bai | Q43: BILDU | AB43: 0.2893 | AC43: 0.1553 | AD43: 0.271 | AE43: 0.0705 | AF43: 0.0868 | AG43: 0.099 | AH43: G.Bai | AI43: BILDU
B44: 4 | C44: Ourense | D44: 0.4487872563 | E44: =D468 -> 2 | F44: 0.2287323944 | G44: =F468 -> 1 | H44: 0.1757024928 | I44: =H468 -> 1 | J44: 0.08361521895 | K44: =J468 -> 0 | L44: =AF44*W$19 -> 0.0334 | M44: =L468 -> 0 | P44: NÓS | AB44: 0.4491 | AC44: 0.232 | AD44: 0.1784 | AE44: 0.0787 | AF44: 0.0334 | AH44: NÓS
B45: 3 | C45: Palencia | D45: 0.4031190808 | E45: =D475 -> 2 | F45: 0.2421408451 | G45: =F475 -> 1 | H45: 0.1762934205 | I45: =H475 -> 0 | J45: 0.1504436468 | K45: =J475 -> 0 | AB45: 0.4034 | AC45: 0.2456 | AD45: 0.179 | AE45: 0.1416
B46: 7 | C46: Pontevedra | D46: 0.3443600279 | E46: =D486 -> 3 | F46: 0.2052676056 | G46: =F486 -> 2 | H46: 0.2752738047 | I46: =H486 -> 2 | J46: 0.09562096195 | K46: =J486 -> 0 | L46: =AF46*W$19 -> 0.0465 | M46: =L486 -> 0 | P46: NÓS | S46: PARTIDO | T46: Senado | U46: Congreso | AB46: 0.3446 | AC46: 0.2082 | AD46: 0.2795 | AE46: 0.09 | AF46: 0.0465 | AH46: NÓS
B47: 4 | C47: Salamanca | D47: 0.4271023677 | E47: =D494 -> 2 | F47: 0.2144366197 | G47: =F494 -> 1 | H47: 0.1535427054 | I47: =H494 -> 0 | J47: 0.1790236899 | K47: =J494 -> 1 | S47: BILDU | T47: =W35 -> 1 | U47: =X17 -> 2 | AB47: 0.4274 | AC47: 0.2175 | AD47: 0.1559 | AE47: 0.1685
B48: 7 | C48: Santa Cruz de Tenerife | D48: 0.2890985376 | E48: =D505 -> 2 | F48: 0.2123661972 | G48: =F505 -> 1 | H48: 0.2279995913 | I48: =H505 -> 2 | J48: 0.1116640345 | K48: =J505 -> 1 | L48: =AF48*W$20 -> 0.1523636364 | M48: =L505 -> 1 | P48: CC | S48: UP | T48: =W31 -> 44 | U48: =Z10 -> 59 | AB48: 0.2893 | AC48: 0.2154 | AD48: 0.2315 | AE48: 0.1051 | AF48: 0.1257 | AH48: CC
B49: 3 | C49: Segovia | D49: 0.3941253482 | E49: =D512 -> 2 | F49: 0.2122676056 | G49: =F512 -> 1 | H49: 0.1805284021 | I49: =H512 -> 0 | J49: 0.1812548457 | K49: =J512 -> 0 | S49: En Comú Podem | T49: 0 | U49: =Z11 -> 12 | AB49: 0.3944 | AC49: 0.2153 | AD49: 0.1833 | AE49: 0.1706
B50: 12 | C50: Sevilla | D50: 0.2517245822 | E50: =D528 -> 3 | F50: 0.3348169014 | G50: =F528 -> 4 | H50: 0.2433637107 | I50: =H528 -> 3 | J50: 0.1383316583 | K50: =J528 -> 2 | S50: A la Valenciana | T50: 0 | U50: =Z12 -> 9 | AB50: 0.2519 | AC50: 0.3396 | AD50: 0.2471 | AE50: 0.1302
B51: 2 | C51: Soria | D51: 0.3863307799 | E51: =D534 -> 1 | F51: 0.2348450704 | G51: =F534 -> 1 | H51: 0.1928393952 | I51: =H534 -> 0 | J51: 0.1611744436 | K51: =J534 -> 0 | S51: En Marea | T51: 0 | U51: =Z13 -> 6 | AB51: 0.3866 | AC51: 0.2382 | AD51: 0.1958 | AE51: 0.1517
B52: 6 | C52: Tarragona | D52: 0.1221149025 | E52: =D544 -> 1 | F52: 0.1557746479 | G52: =F544 -> 1 | H52: 0.2033776052 | I52: =H544 -> 1 | J52: 0.1511873654 | K52: =J544 -> 1 | L52: =AF52*W$15 -> 0.1701111111 | M52: =L544 -> 1 | N52: =AG52*W$18 -> 0.1682175732 | O52: =N544 -> 1 | P52: DiL | Q52: ERC | S52: ERC | T52: =W36 -> 4 | U52: =X18 -> 8 | AB52: 0.1222 | AC52: 0.158 | AD52: 0.2065 | AE52: 0.1423 | AF52: 0.1531 | AG52: 0.1748 | AH52: DiL | AI52: ERC
B53: 3 | C53: Teruel | D53: 0.3643461003 | E53: =D551 -> 1 | F53: 0.2527887324 | G53: =F551 -> 1 | H53: 0.1994380875 | I53: =H551 -> 1 | J53: 0.1563933955 | K53: =J551 -> 0 | S53: PSOE | T53: =W30 -> 61 | U53: =X9 -> 84 | AB53: 0.3646 | AC53: 0.2564 | AD53: 0.2025 | AE53: 0.1472
B54: 6 | C54: Toledo | D54: 0.3876298747 | E54: =D561 -> 2 | F54: 0.2736901408 | G54: =F561 -> 2 | H54: 0.1688083367 | I54: =H561 -> 1 | J54: 0.1466188083 | K54: =J561 -> 1 | S54: NÓS | T54: 0 | U54: 0 | AB54: 0.3879 | AC54: 0.2776 | AD54: 0.1714 | AE54: 0.138
B55: 16 | C55: Valencia / València | D55: 0.3019895543 | E55: =D581 -> 5 | F55: 0.1858450704 | G55: =F581 -> 3 | H55: 0.3127977115 | I55: =H581 -> 5 | J55: 0.1607494616 | K55: =J581 -> 3 | S55: ASG | T55: 1 | U55: 0 | AB55: 0.3022 | AC55: 0.1885 | AD55: 0.3176 | AE55: 0.1513
B56: 5 | C56: Valladolid | D56: 0.3693426184 | E56: =D590 -> 2 | F56: 0.2128591549 | G56: =F590 -> 1 | H56: 0.2036730691 | I56: =H590 -> 1 | J56: 0.1817860732 | K56: =J590 -> 1 | S56: C´s | T56: =W32 -> 3 | U56: =X14 -> 39 | AB56: 0.3696 | AC56: 0.2159 | AD56: 0.2068 | AE56: 0.1711
B57: 3 | C57: Zamora | D57: 0.4255034819 | E57: =D597 -> 2 | F57: 0.2265633803 | G57: =F597 -> 1 | H57: 0.1858467511 | I57: =H597 -> 0 | J57: 0.1372692032 | K57: =J597 -> 0 | S57: CC | T57: =W37 -> 2 | U57: =X20 -> 1 | AB57: 0.4258 | AC57: 0.2298 | AD57: 0.1887 | AE57: 0.1292
B58: 7 | C58: Zaragoza | D58: 0.3028889276 | E58: =D608 -> 2 | F58: 0.2198591549 | G58: =F608 -> 2 | H58: 0.253409481 | I58: =H608 -> 2 | J58: 0.1892232592 | K58: =J608 -> 1 | S58: DiL | T58: =W33 -> 9 | U58: =X15 -> 10 | AB58: 0.3031 | AC58: 0.223 | AD58: 0.2573 | AE58: 0.1781
B59: =SUM(B7:B58) -> 350 | C59: Total Estatal | D59: 0.287 | E59: =SUM(E7:E58) -> 115 | F59: 0.217 | G59: =SUM(G7:G58) -> 84 | H59: 0.241 | I59: =SUM(I7:I58) -> 86 | J59: 0.148 | K59: =SUM(K7:K58) -> 39 | S59: PNV | T59: =W34 -> 3 | U59: =X16 -> 5 | AB59: 0.2872 | AC59: 0.2201 | AD59: 0.2447 | AE59: 0.1393
S60: PP | T60: =W29 -> 138 | U60: =X8 -> 115
C61: =C7 -> A Coruña | D61: PP | F61: PSOE | H61: En Marea | J61: C's | L61: NÓS | S61: TOTAL | T61: =SUM(T47:T60) -> 266 | U61: =SUM(U47:U60) -> 350
C62: =LARGE(D63:L70,8) -> 10.07112676 | D62: =$D7 -> 0.3546528552 | F62: =$F7 -> 0.2014225352 | H62: =$H7 -> 0.2595157336 | J62: =$J7 -> 0.1052893037 | L62: =$L7 -> 0.0455
C63: 1 | D63: =D62*100 -> 35.46528552 | F63: =F62*100 -> 20.14225352 | H63: =H62*100 -> 25.95157336 | J63: =J62*100 -> 10.52893037 | L63: =L62*100 -> 4.55
C64: 2 | D64: =D$63/$C64 -> 17.73264276 | F64: =F$63/$C64 -> 10.07112676 | H64: =H$63/$C64 -> 12.97578668 | J64: =J$63/$C64 -> 5.264465183 | L64: =L$63/$C64 -> 2.275
C65: 3 | D65: 11.82176184 | F65: 6.714084507 | H65: 8.650524452 | J65: 3.509643455 | L65: 1.516666667
C66: 4 | D66: 8.866321379 | F66: 5.03556338 | H66: 6.487893339 | J66: 2.632232592 | L66: 1.1375
C67: 5 | D67: 7.093057103 | F67: 4.028450704 | H67: 5.190314671 | J67: 2.105786073 | L67: 0.91
C68: 6 | D68: 5.910880919 | F68: 3.357042254 | H68: 4.325262226 | J68: 1.754821728 | L68: 0.7583333333
C69: 7 | D69: 5.066469359 | F69: 2.877464789 | H69: 3.707367622 | J69: 1.504132909 | L69: 0.65
C70: 8 | D70: 4.433160689 | F70: 2.51778169 | H70: 3.243946669 | J70: 1.316116296 | L70: 0.56875
D71: =COUNTIF(D63:D70,">="&$C62) -> 3 | E71: 3 | F71: =COUNTIF(F63:F70,">="&$C62) -> 2 | G71: 2 | H71: =COUNTIF(H63:H70,">="&$C62) -> 2 | I71: 2 | J71: =COUNTIF(J63:J70,">="&$C62) -> 1 | K71: 1 | L71: =COUNTIF(L63:L70,">="&$C62) -> 0 | M71: 0
C73: =C8 -> Albacete | D73: PP | F73: PSOE | H73: UP | J73: C's
C74: =LARGE(D75:K78,4) -> 17.65888843 | D74: =$D8 -> 0.3682433844 | F74: =$F8 -> 0.2776338028 | H74: =$H8 -> 0.1765888843 | J74: =$J8 -> 0.1547997128
C75: 1 | D75: =D74*100 -> 36.82433844 | F75: =F74*100 -> 27.76338028 | H75: =H74*100 -> 17.65888843 | J75: =J74*100 -> 15.47997128
C76: 2 | D76: =D$75/$C76 -> 18.41216922 | F76: =F$75/$C76 -> 13.88169014 | H76: =H$75/$C76 -> 8.829444217 | J76: =J$75/$C76 -> 7.739985642
C77: 3 | D77: =D$75/$C77 -> 12.27477948 | F77: =F$75/$C77 -> 9.254460094 | H77: =H$75/$C77 -> 5.886296145 | J77: =J$75/$C77 -> 5.159990428
C78: 4 | D78: =D$75/$C78 -> 9.20608461 | F78: =F$75/$C78 -> 6.94084507 | H78: =H$75/$C78 -> 4.414722109 | J78: =J$75/$C78 -> 3.869992821
D79: =COUNTIF(D75:D78,">="&$C74) -> 2 | E79: 2 | F79: =COUNTIF(F75:F78,">="&$C74) -> 1 | G79: 1 | H79: =COUNTIF(H75:H78,">="&$C74) -> 1 | I79: 0 | J79: =COUNTIF(J75:J78,">="&$C74) -> 0 | K79: 1
C81: Alicante / Alacant | D81: PP | F81: PSOE | H81: A la Valenciana | J81: C's
C82: =LARGE(D83:J94,12) -> 6.855399061 | D82: =D9 -> 0.3282712396 | F82: =F9 -> 0.2056619718 | H82: =H9 -> 0.2553792399 | J82: =J9 -> 0.1811486001
C83: 1 | D83: =D82*100 -> 32.82712396 | F83: =F82*100 -> 20.56619718 | H83: =H82*100 -> 25.53792399 | J83: =J82*100 -> 18.11486001
C84: 2 | D84: =D$83/$C84 -> 16.41356198 | F84: =F$83/$C84 -> 10.28309859 | H84: =H$83/$C84 -> 12.76896199 | J84: =J$83/$C84 -> 9.057430007
C85: 3 | D85: 10.94237465 | F85: 6.855399061 | H85: 8.51264133 | J85: 6.038286671
C86: 4 | D86: 8.206780989 | F86: 5.141549296 | H86: 6.384480997 | J86: 4.528715004
C87: 5 | D87: 6.565424791 | F87: 4.113239437 | H87: 5.107584798 | J87: 3.622972003
C88: 6 | D88: 5.471187326 | F88: 3.427699531 | H88: 4.256320665 | J88: 3.019143336
C89: 7 | D89: 4.689589136 | F89: 2.938028169 | H89: 3.648274856 | J89: 2.587837145
C90: 8 | D90: 4.103390494 | F90: 2.570774648 | H90: 3.192240499 | J90: 2.264357502
C91: 9 | D91: 3.647458217 | F91: 2.28513302 | H91: 2.83754711 | J91: 2.012762224
C92: 10 | D92: 3.282712396 | F92: 2.056619718 | H92: 2.553792399 | J92: 1.811486001
C93: 11 | D93: 2.984283996 | F93: 1.869654289 | H93: 2.321629454 | J93: 1.646805456
C94: 12 | D94: 2.735593663 | F94: 1.713849765 | H94: 2.128160332 | J94: 1.509571668
D95: =COUNTIF(D83:D94,">="&$C82) -> 4 | E95: 4 | F95: =COUNTIF(F83:F94,">="&$C82) -> 3 | G95: 3 | H95: =COUNTIF(H83:H94,">="&$C82) -> 3 | I95: 3 | J95: =COUNTIF(J83:J94,">="&$C82) -> 2 | K95: 2
C97: Almería | D97: PP | F97: PSOE | H97: UP | J97: C's
C98: =LARGE(D99:J104,6) -> 14.21690141 | D98: =D10 -> 0.3801350975 | F98: =F10 -> 0.2843380282 | H98: =H10 -> 0.1603383735 | J98: =J10 -> 0.1525685571
C99: 1 | D99: =D98*100 -> 38.01350975 | F99: =F98*100 -> 28.43380282 | H99: =H98*100 -> 16.03383735 | J99: =J98*100 -> 15.25685571
C100: 2 | D100: =D$99/$C100 -> 19.00675487 | F100: =F$99/$C100 -> 14.21690141 | H100: =H$99/$C100 -> 8.016918676 | J100: =J$99/$C100 -> 7.628427854
C101: 3 | D101: =D$99/$C101 -> 12.67116992 | F101: =F$99/$C101 -> 9.477934272 | H101: =H$99/$C101 -> 5.344612451 | J101: =J$99/$C101 -> 5.085618569
C102: 4 | D102: =D$99/$C102 -> 9.503377437 | F102: =F$99/$C102 -> 7.108450704 | H102: =H$99/$C102 -> 4.008459338 | J102: =J$99/$C102 -> 3.814213927
C103: 5 | D103: =D$99/$C103 -> 7.60270195 | F103: =F$99/$C103 -> 5.686760563 | H103: =H$99/$C103 -> 3.20676747 | J103: =J$99/$C103 -> 3.051371141
C104: 6 | D104: =D$99/$C104 -> 6.335584958 | F104: =F$99/$C104 -> 4.738967136 | H104: =H$99/$C104 -> 2.672306225 | J104: =J$99/$C104 -> 2.542809285
D105: =COUNTIF(D99:D104,">="&$C98) -> 2 | E105: 2 | F105: =COUNTIF(F99:F104,">="&$C98) -> 2 | G105: 2 | H105: =COUNTIF(H99:H104,">="&$C98) -> 1 | I105: 1 | J105: =COUNTIF(J99:J104,">="&$C98) -> 1 | K105: 1
C107: Araba - Álava | D107: PP | F107: PSOE | H107: UP | J107: C's | L107: PNV | N107: BILDU
C108: =LARGE(D109:N112,4) -> 15.16714344 | D108: =D11 -> 0.1878690808 | F108: =F11 -> 0.1395070423 | H108: =H11 -> 0.3033428688 | J108: =J11 -> 0.06225987078 | L108: =L11 -> 0.1547293233 | N108: =N11 -> 0.1225862069
C109: 1 | D109: =D108*100 -> 18.78690808 | F109: =F108*100 -> 13.95070423 | H109: =H108*100 -> 30.33428688 | J109: =J108*100 -> 6.225987078 | L109: =L108*100 -> 15.47293233 | N109: =N108*100 -> 12.25862069
C110: 2 | D110: =D$109/$C110 -> 9.393454039 | F110: =F$109/$C110 -> 6.975352113 | H110: =H$109/$C110 -> 15.16714344 | J110: =J$109/$C110 -> 3.112993539 | L110: =L$109/$C110 -> 7.736466165 | N110: =N$109/$C110 -> 6.129310345
C111: 3 | D111: =D$109/$C111 -> 6.262302693 | F111: =F$109/$C111 -> 4.650234742 | H111: =H$109/$C111 -> 10.11142896 | J111: =J$109/$C111 -> 2.075329026 | L111: =L$109/$C111 -> 5.15764411 | N111: =N$109/$C111 -> 4.086206897
C112: 4 | D112: =D$109/$C112 -> 4.696727019 | F112: =F$109/$C112 -> 3.487676056 | H112: =H$109/$C112 -> 7.58357172 | J112: =J$109/$C112 -> 1.55649677 | L112: =L$109/$C112 -> 3.868233083 | N112: =N$109/$C112 -> 3.064655172
D113: =COUNTIF(D109:D112,">="&$C108) -> 1 | E113: 1 | F113: =COUNTIF(F109:F112,">="&$C108) -> 0 | G113: 1 | H113: =COUNTIF(H109:H112,">="&$C108) -> 2 | I113: 1 | J113: =COUNTIF(J109:J112,">="&$C108) -> 0 | K113: 0 | L113: =COUNTIF(L109:L112,">="&$C108) -> 1 | M113: 1 | N113: =COUNTIF(N109:N112,">="&$C108) -> 0 | O113: 0
C115: Asturias | D115: PP | F115: PSOE | H115: UP | J115: C's
C116: =LARGE(D117:J124,8) -> 10.04300139 | D116: =D12 -> 0.3012900418 | F116: =F12 -> 0.2294225352 | H116: =H12 -> 0.2932970985 | J116: =J12 -> 0.144068916
C117: 1 | D117: =D116*100 -> 30.12900418 | F117: =F116*100 -> 22.94225352 | H117: =H116*100 -> 29.32970985 | J117: =J116*100 -> 14.4068916
C118: 2 | D118: =D$117/$C118 -> 15.06450209 | F118: =F$117/$C118 -> 11.47112676 | H118: =H$117/$C118 -> 14.66485492 | J118: =J$117/$C118 -> 7.2034458
C119: 3 | D119: 10.04300139 | F119: 7.64741784 | H119: 9.77656995 | J119: 4.8022972
C120: 4 | D120: 7.532251045 | F120: 5.73556338 | H120: 7.332427462 | J120: 3.6017229
C121: 5 | D121: 6.025800836 | F121: 4.588450704 | H121: 5.86594197 | J121: 2.88137832
C122: 6 | D122: 5.021500696 | F122: 3.82370892 | H122: 4.888284975 | J122: 2.4011486
C123: 7 | D123: 4.304143454 | F123: 3.277464789 | H123: 4.18995855 | J123: 2.058127372
C124: 8 | D124: 3.766125522 | F124: 2.86778169 | H124: 3.666213731 | J124: 1.80086145
D125: =COUNTIF(D117:D124,">="&$C116) -> 3 | E125: 2 | F125: =COUNTIF(F117:F124,">="&$C116) -> 2 | G125: 2 | H125: =COUNTIF(H117:H124,">="&$C116) -> 2 | I125: 2 | J125: =COUNTIF(J117:J124,">="&$C116) -> 1 | K125: 1
C127: Ávila | D127: PP | F127: PSOE | H127: UP | J127: C's
C128: =LARGE(D129:J131,3) -> 19.54084507 | D128: =D13 -> 0.4620779944 | F128: =F13 -> 0.1954084507 | H128: =H13 -> 0.1526563139 | J128: =J13 -> 0.1662742283
C129: 1 | D129: =D128*100 -> 46.20779944 | F129: =F128*100 -> 19.54084507 | H129: =H128*100 -> 15.26563139 | J129: =J128*100 -> 16.62742283
C130: 2 | D130: =D129/$C130 -> 23.10389972 | F130: =F$129/$C130 -> 9.770422535 | H130: =H$129/$C130 -> 7.632815693 | J130: =J$129/$C130 -> 8.313711414
C131: 3 | D131: =D$129/$C131 -> 15.40259981 | F131: =F$129/$C131 -> 6.513615023 | H131: =H$129/$C131 -> 5.088543795 | J131: =J$129/$C131 -> 5.542474276
D132: =COUNTIF(D129:D131,">="&$C128) -> 2 | E132: 2 | F132: =COUNTIF(F129:F131,">="&$C128) -> 1 | G132: 1 | H132: =COUNTIF(H129:H131,">="&$C128) -> 0 | I132: 0 | J132: =COUNTIF(J129:J131,">="&$C128) -> 0 | K132: 0
C134: Badajoz | D134: PP | F134: PSOE | H134: UP | J134: C's
C135: =LARGE(D136:J141,6) -> 12.2286385 | D135: =D14 -> 0.3446598189 | F135: =F14 -> 0.3668591549 | H135: =H14 -> 0.1469440131 | J135: =J14 -> 0.1205886576
C136: 1 | D136: =D135*100 -> 34.46598189 | F136: =F135*100 -> 36.68591549 | H136: =H135*100 -> 14.69440131 | J136: =J135*100 -> 12.05886576
C137: 2 | D137: =D136/$C137 -> 17.23299095 | F137: =F$136/$C137 -> 18.34295775 | H137: =H$136/$C137 -> 7.347200654 | J137: =J$136/$C137 -> 6.029432879
C138: 3 | D138: =D$136/$C138 -> 11.48866063 | F138: =F$136/$C138 -> 12.2286385 | H138: =H$136/$C138 -> 4.898133769 | J138: =J$136/$C138 -> 4.019621919
C139: 4 | D139: =D$136/$C139 -> 8.616495474 | F139: =F$136/$C139 -> 9.171478873 | H139: =H$136/$C139 -> 3.673600327 | J139: =J$136/$C139 -> 3.014716439
C140: 5 | D140: =D$136/$C140 -> 6.893196379 | F140: =F$136/$C140 -> 7.337183099 | H140: =H$136/$C140 -> 2.938880262 | J140: =J$136/$C140 -> 2.411773151
C141: 6 | D141: =D$136/$C141 -> 5.744330316 | F141: =F$136/$C141 -> 6.114319249 | H141: =H$136/$C141 -> 2.449066885 | J141: =J$136/$C141 -> 2.00981096
D142: =COUNTIF(D136:D141,">="&$C135) -> 2 | E142: 2 | F142: =COUNTIF(F136:F141,">="&$C135) -> 3 | G142: 3 | H142: =COUNTIF(H136:H141,">="&$C135) -> 1 | I142: 1 | J142: =COUNTIF(J136:J141,">="&$C135) -> 0 | K142: 0
C144: Barcelona | D144: PP | F144: PSOE | H144: En Comú Podem | J144: C's | L144: DiL | N144: ERC
C145: =LARGE(D146:N176,31) -> 2.87925341 | D145: =D15 -> 0.1126215181 | F145: =F15 -> 0.1604084507 | H145: =H15 -> 0.2650310584 | J145: =J15 -> 0.1439626705 | L145: =L15 -> 0.1472222222 | N145: =N15 -> 0.1393472803
C146: 1 | D146: =D145*100 -> 11.26215181 | F146: =F145*100 -> 16.04084507 | H146: =H145*100 -> 26.50310584 | J146: =J145*100 -> 14.39626705 | L146: =L145*100 -> 14.72222222 | N146: =N145*100 -> 13.93472803
C147: 2 | D147: =D$146/$C147 -> 5.631075905 | F147: =F$146/$C147 -> 8.020422535 | H147: =H$146/$C147 -> 13.25155292 | J147: =J$146/$C147 -> 7.198133525 | L147: =L$146/$C147 -> 7.361111111 | N147: =N$146/$C147 -> 6.967364017
C148: 3 | D148: 3.754050604 | F148: 5.346948357 | H148: 8.834368615 | J148: 4.798755683 | L148: 4.907407407 | N148: 4.644909344
C149: 4 | D149: 2.815537953 | F149: 4.010211268 | H149: 6.625776461 | J149: 3.599066762 | L149: 3.680555556 | N149: 3.483682008
C150: 5 | D150: 2.252430362 | F150: 3.208169014 | H150: 5.300621169 | J150: 2.87925341 | L150: 2.944444444 | N150: 2.786945607
C151: 6 | D151: 1.877025302 | F151: 2.673474178 | H151: 4.417184307 | J151: 2.399377842 | L151: 2.453703704 | N151: 2.322454672
C152: 7 | D152: 1.60887883 | F152: 2.291549296 | H152: 3.786157978 | J152: 2.056609579 | L152: 2.103174603 | N152: 1.990675433
C153: 8 | D153: 1.407768976 | F153: 2.005105634 | H153: 3.31288823 | J153: 1.799533381 | L153: 1.840277778 | N153: 1.741841004
C154: 9 | D154: 1.251350201 | F154: 1.782316119 | H154: 2.944789538 | J154: 1.599585228 | L154: 1.635802469 | N154: 1.548303115
C155: 10 | D155: 1.126215181 | F155: 1.604084507 | H155: 2.650310584 | J155: 1.439626705 | L155: 1.472222222 | N155: 1.393472803
C156: 11 | D156: 1.023831983 | F156: 1.458258643 | H156: 2.409373259 | J156: 1.30875155 | L156: 1.338383838 | N156: 1.266793458
C157: 12 | D157: 0.9385126509 | F157: 1.336737089 | H157: 2.208592154 | J157: 1.199688921 | L157: 1.226851852 | N157: 1.161227336
C158: 13 | D158: 0.86631937 | F158: 1.233911159 | H158: 2.03870045 | J158: 1.107405158 | L158: 1.132478632 | N158: 1.071902156
C159: 14 | D159: 0.804439415 | F159: 1.145774648 | H159: 1.893078989 | J159: 1.028304789 | L159: 1.051587302 | N159: 0.9953377167
C160: 15 | D160: 0.7508101207 | F160: 1.069389671 | H160: 1.766873723 | J160: 0.9597511366 | L160: 0.9814814815 | N160: 0.9289818689
C161: 16 | D161: 0.7038844882 | F161: 1.002552817 | H161: 1.656444115 | J161: 0.8997666906 | L161: 0.9201388889 | N161: 0.8709205021
C162: 17 | D162: 0.6624795183 | F162: 0.9435791218 | H162: 1.559006226 | J162: 0.8468392382 | L162: 0.8660130719 | N162: 0.8196898843
C163: 18 | D163: 0.6256751006 | F163: 0.8911580595 | H163: 1.472394769 | J163: 0.7997926139 | L163: 0.8179012346 | N163: 0.7741515574
C164: 19 | D164: 0.5927448321 | F164: 0.8442550037 | H164: 1.394900308 | J164: 0.7576982658 | L164: 0.7748538012 | N164: 0.7334067386
C165: 20 | D165: 0.5631075905 | F165: 0.8020422535 | H165: 1.325155292 | J165: 0.7198133525 | L165: 0.7361111111 | N165: 0.6967364017
C166: 21 | D166: 0.5362929434 | F166: 0.7638497653 | H166: 1.262052659 | J166: 0.6855365262 | L166: 0.7010582011 | N166: 0.6635584778
C167: 22 | D167: 0.5119159914 | F167: 0.7291293214 | H167: 1.204686629 | J167: 0.654375775 | L167: 0.6691919192 | N167: 0.6333967288
C168: 23 | D168: 0.4896587744 | F168: 0.6974280465 | H168: 1.15230895 | J168: 0.6259246543 | L168: 0.6400966184 | N168: 0.6058577406
C169: 24 | D169: 0.4692563254 | F169: 0.6683685446 | H169: 1.104296077 | J169: 0.5998444604 | L169: 0.6134259259 | N169: 0.5806136681
C170: 25 | D170: 0.4504860724 | F170: 0.6416338028 | H170: 1.060124234 | J170: 0.575850682 | L170: 0.5888888889 | N170: 0.5573891213
C171: 26 | D171: 0.433159685 | F171: 0.6169555796 | H171: 1.019350225 | J171: 0.5537025788 | L171: 0.5662393162 | N171: 0.5359510782
C172: 27 | D172: 0.4171167337 | F172: 0.594105373 | H172: 0.9815965127 | J172: 0.5331950759 | L172: 0.5452674897 | N172: 0.5161010383
C173: 28 | D173: 0.4022197075 | F173: 0.5728873239 | H173: 0.9465394944 | J173: 0.5141523946 | L173: 0.5257936508 | N173: 0.4976688583
C174: 29 | D174: 0.3883500624 | F174: 0.5531325886 | H174: 0.9139002015 | J174: 0.4964230017 | L174: 0.5076628352 | N174: 0.4805078632
C175: 30 | D175: 0.3754050604 | F175: 0.5346948357 | H175: 0.8834368615 | J175: 0.4798755683 | L175: 0.4907407407 | N175: 0.4644909344
C176: 31 | D176: 0.3632952197 | F176: 0.5174466152 | H176: 0.8549388982 | J176: 0.4643957113 | L176: 0.4749103943 | N176: 0.4495073559
D177: =COUNTIF(D146:D176,">="&$C145) -> 3 | E177: 4 | F177: =COUNTIF(F146:F176,">="&$C145) -> 5 | G177: 5 | H177: =COUNTIF(H146:H176,">="&$C145) -> 9 | I177: 9 | J177: =COUNTIF(J146:J176,">="&$C145) -> 5 | K177: 4 | L177: =COUNTIF(L146:L176,">="&$C145) -> 5 | M177: 4 | N177: =COUNTIF(N146:N176,">="&$C145) -> 4 | O177: 5
C179: Bizkaia | D179: PP | F179: PSOE | H179: UP | J179: C's | L179: PNV | N179: BILDU
C180: =LARGE(D180:N188,8) -> 9.494237842 | D180: =D16 -> 0.1137207521 | F180: =F16 -> 0.1278732394 | H180: =H16 -> 0.2848271353 | J180: =J16 -> 0.04069203159 | L180: =L16 -> 0.273 | N180: =N16 -> 0.1293103448
C181: 1 | D181: =D180*100 -> 11.37207521 | F181: =F180*100 -> 12.78732394 | H181: =H180*100 -> 28.48271353 | J181: =J180*100 -> 4.069203159 | L181: =L180*100 -> 27.3 | N181: =N180*100 -> 12.93103448
C182: 2 | D182: =D181/$C182 -> 5.686037604 | F182: =F$181/$C182 -> 6.393661972 | H182: =H$181/$C182 -> 14.24135676 | J182: =J$181/$C182 -> 2.034601579 | L182: =L$181/$C182 -> 13.65 | N182: =N$181/$C182 -> 6.465517241
C183: 3 | D183: =D$181/$C183 -> 3.790691736 | F183: 4.262441315 | H183: 9.494237842 | J183: 1.356401053 | L183: 9.1 | N183: 4.310344828
C184: 4 | D184: 2.843018802 | F184: 3.196830986 | H184: 7.120678382 | J184: 1.01730079 | L184: 6.825 | N184: 3.232758621
C185: 5 | D185: 2.274415042 | F185: 2.557464789 | H185: 5.696542705 | J185: 0.8138406317 | L185: 5.46 | N185: 2.586206897
C186: 6 | D186: 1.895345868 | F186: 2.131220657 | H186: 4.747118921 | J186: 0.6782005264 | L186: 4.55 | N186: 2.155172414
C187: 7 | D187: 1.624582173 | F187: 1.826760563 | H187: 4.068959075 | J187: 0.581314737 | L187: 3.9 | N187: 1.84729064
C188: 8 | D188: 1.421509401 | F188: 1.598415493 | H188: 3.560339191 | J188: 0.5086503948 | L188: 3.4125 | N188: 1.61637931
D189: =COUNTIF(D181:D188,">="&$C180) -> 1 | E189: 1 | F189: =COUNTIF(F181:F188,">="&$C180) -> 1 | G189: 1 | H189: =COUNTIF(H181:H188,">="&$C180) -> 3 | I189: 2 | J189: =COUNTIF(J181:J188,">="&$C180) -> 0 | K189: 0 | L189: =COUNTIF(L181:L188,">="&$C180) -> 2 | M189: 3 | N189: =COUNTIF(N181:N188,">="&$C180) -> 1 | O189: 1
C191: Burgos | D191: PP | F191: PSOE | H191: UP | J191: C's
C192: =LARGE(D192:J196,4) -> 19.02674095 | D192: =D17 -> 0.3805348189 | F192: =F17 -> 0.2041830986 | H192: =H17 -> 0.2142112791 | J192: =J17 -> 0.1651055276
C193: 1 | D193: =D192*100 -> 38.05348189 | F193: =F192*100 -> 20.41830986 | H193: =H192*100 -> 21.42112791 | J193: =J192*100 -> 16.51055276
C194: 2 | D194: =D193/$C194 -> 19.02674095 | F194: =F$193/$C194 -> 10.20915493 | H194: =H$193/$C194 -> 10.71056396 | J194: =J$193/$C194 -> 8.255276382
C195: 3 | D195: =D$193/$C195 -> 12.68449396 | F195: =F$193/$C195 -> 6.806103286 | H195: =H$193/$C195 -> 7.140375971 | J195: =J$193/$C195 -> 5.503517588
C196: 4 | D196: =D$193/$C196 -> 9.513370474 | F196: =F$193/$C196 -> 5.104577465 | H196: =H$193/$C196 -> 5.355281978 | J196: =J$193/$C196 -> 4.127638191
D197: =COUNTIF(D193:D196,">="&$C192) -> 2 | E197: 2 | F197: =COUNTIF(F193:F196,">="&$C192) -> 1 | G197: 1 | H197: =COUNTIF(H193:H196,">="&$C192) -> 1 | I197: 1 | J197: =COUNTIF(J193:J196,">="&$C192) -> 0 | K197: 0
C199: Cáceres | D199: PP | F199: PSOE | H199: UP | J199: C's
C200: =LARGE(D200:J204,4) -> 16.79014085 | D200: =D18 -> 0.3532538301 | F200: =F18 -> 0.3358028169 | H200: =H18 -> 0.1657552105 | J200: =J18 -> 0.1211198851
C201: 1 | D201: =D$200*100 -> 35.32538301 | F201: =F$200*100 -> 33.58028169 | H201: =H$200*100 -> 16.57552105 | J201: =J$200*100 -> 12.11198851
C202: 2 | D202: =D201/$C202 -> 17.6626915 | F202: =F$201/$C202 -> 16.79014085 | H202: =H$201/$C202 -> 8.287760523 | J202: =J$201/$C202 -> 6.055994257
C203: 3 | D203: =D$201/$C203 -> 11.77512767 | F203: =F$201/$C203 -> 11.19342723 | H203: =H$201/$C203 -> 5.525173682 | J203: =J$201/$C203 -> 4.037329505
C204: 4 | D204: =D$201/$C204 -> 8.831345752 | F204: =F$201/$C204 -> 8.395070423 | H204: =H$201/$C204 -> 4.143880262 | J204: =J$201/$C204 -> 3.027997128
D205: =COUNTIF(D201:D204,">="&$C200) -> 2 | E205: 2 | F205: =COUNTIF(F201:F204,">="&$C200) -> 2 | G205: 2 | H205: =COUNTIF(H201:H204,">="&$C200) -> 0 | I205: 0 | J205: =COUNTIF(J201:J204,">="&$C200) -> 0 | K205: 0
C207: Cádiz | D207: PP | F207: PSOE | H207: UP | J207: C's
C208: =LARGE(D208:J217,9) -> 9.201877934 | D208: =D19 -> 0.2773067549 | F208: =F19 -> 0.276056338 | H208: =H19 -> 0.2579399264 | J208: =J19 -> 0.1559684135
C209: 1 | D209: =D208*100 -> 27.73067549 | F209: =F208*100 -> 27.6056338 | H209: 25.79399264 | J209: 15.59684135
C210: 2 | D210: =D$209/$C210 -> 13.86533774 | F210: =F$209/$C210 -> 13.8028169 | H210: =H$209/$C210 -> 12.89699632 | J210: =J$209/$C210 -> 7.798420675
C211: 3 | D211: 9.243558496 | F211: 9.201877934 | H211: 8.597997548 | J211: 5.198947117
C212: 4 | D212: 6.932668872 | F212: 6.901408451 | H212: 6.448498161 | J212: 3.899210337
C213: 5 | D213: 5.546135097 | F213: 5.521126761 | H213: 5.158798529 | J213: 3.11936827
... 358 more rows

Sheet Senado
C2: v1.0 | N2: Calculadora de circunscripciones electorales españolas | W2: SENADO
K3: www.Electomania.es | P3: Lutxana
D5: Extrapolación por circunscripciones | AB5: 20D
D6: PP | F6: PSOE | H6: UP | J6: C´s | N6: Terr1 | P6: Terr2 | V6: 20D | W6: Introducir datos encuesta | X6: Cociente | Y6: Electos | AB6: PP | AC6: PSOE | AD6: UP | AE6: Cs | AF6: IU | AG6: Nac1 | AH6: Nac2 | AM6: =C7 -> A Coruña | AN6: PP | AO6: PSOE | AP6: UP | AQ6: C´s | AR6: Equo | AS6: BNG
B7: 8 | C7: A Coruña | D7: =AB7*X$8 -> 0.3546528552 | E7: =AN16 -> 3 | F7: =AC7*X$9 -> 0.2014225352 | G7: =AO16 -> 0 | H7: =AD7*X10 -> 0.2595157336 | I7: =AP16 -> 1 | J7: =AE7*X$11 -> 0.1052893037 | K7: =AQ16 -> 0 | N7: 0 | O7: =AS16 -> 0 | R7: BNG | Y7: Electos | Z7: Designados | AA7: Total | AB7: 0.3549 | AC7: 0.2043 | AD7: 0.2635 | AE7: 0.0991 | AF7: 0 | AG7: 0.0455 | AI7: BNG | AL7: =LARGE(AN8:AR8,2) -> 25.95157336 | AM7: =LARGE(AN8:AR8,1) -> 35.46528552 | AN7: =$D7 -> 0.3546528552 | AO7: =$F7 -> 0.2014225352 | AP7: =$H7 -> 0.2595157336 | AQ7: =$J7 -> 0.1052893037 | AR7: =$L7 -> 0 | AS7: =$N7 -> 0
B8: 4 | C8: Albacete | D8: 0.3682433844 | E8: =AN25 -> 3 | F8: 0.2776338028 | G8: =AO25 -> 1 | H8: =AD8*X$10 -> 0.1765888843 | I8: =AP25 -> 0 | J8: 0.1547997128 | K8: =AQ25 -> 0 | U8: PP | V8: 0.2872 | W8: =Congreso!V8 -> 0.287 | X8: =W8/V8 -> 0.9993036212 | Y8: =E59 -> 117 | Z8: 21 | AA8: =Y8+Z8 -> 138 | AB8: 0.3685 | AC8: 0.2816 | AD8: 0.1793 | AE8: 0.1457 | AF8: 0 | AM8: 1 | AN8: =AN7*100 -> 35.46528552 | AO8: 20.14225352 | AP8: 25.95157336 | AQ8: 10.52893037 | AR8: 0 | AS8: 0
B9: 12 | C9: Alicante / Alacant | D9: 0.3284711003 | E9: =AN41 -> 3 | F9: 0.2056619718 | G9: =AO41 -> 0 | H9: 0.2553792399 | I9: =AP41 -> 1 | J9: 0.1811486001 | K9: =AQ41 -> 0 | O9: =AS41 -> 0 | P9: =AH9*X$15 -> 0 | Q9: =AT41 -> 0 | R9: Comp | S9: ERC | U9: PSOE | V9: 0.2201 | W9: =Congreso!V9 -> 0.217 | X9: =W9/V9 -> 0.985915493 | Y9: =G59 -> 41 | Z9: 20 | AA9: =Y9+Z9 -> 61 | AB9: 0.3287 | AC9: 0.2086 | AD9: 0.2593 | AE9: 0.1705 | AF9: 0 | AG9: 0 | AH9: 0 | AI9: Comp | AJ9: ERC | AM9: 2 | AN9: =AN$8/$AM9 -> 17.73264276 | AO9: 10.07112676 | AP9: 12.97578668 | AQ9: 5.264465183 | AR9: 0 | AS9: 0
B10: 6 | C10: Almería | D10: 0.3801350975 | E10: =AN51 -> 3 | F10: 0.2843380282 | G10: =AO51 -> 1 | H10: 0.1603383735 | I10: =AP51 -> 0 | J10: 0.1525685571 | K10: =AQ51 -> 0 | O10: =AS51 -> 0 | R10: PA | U10: Podemos | V10: 0.2447 | W10: =Congreso!V10 -> 0.241 | X10: =W10/V10 -> 0.9848794442 | Y10: =I59 -> 37 | Z10: 7 | AA10: 44 | AB10: 0.3804 | AC10: 0.2884 | AD10: 0.1628 | AE10: 0.1436 | AF10: 0 | AG10: 0 | AI10: PA | AM10: 3 | AN10: 11.82176184 | AO10: 6.714084507 | AP10: 8.650524452 | AQ10: 3.509643455 | AR10: 0 | AS10: 0
B11: 4 | C11: Araba - Álava | D11: 0.1878690808 | E11: =AN59 -> 1 | F11: 0.1395070423 | G11: =AO59 -> 0 | H11: 0.3033428688 | I11: =AP59 -> 3 | J11: 0.06225987078 | K11: =AQ59 -> 0 | N11: =AG11*X$13 -> 0.1547293233 | O11: =AS59 -> 0 | P11: =AH11*X$14 -> 0.1225862069 | Q11: =AT59 -> 0 | R11: PNV | S11: Bildu | U11: C´s | V11: 0.1393 | W11: =Congreso!V14 -> 0.148 | X11: =W11/V11 -> 1.062455133 | Y11: =K59 -> 0 | Z11: 3 | AA11: 3 | AB11: 0.188 | AC11: 0.1415 | AD11: 0.308 | AE11: 0.0586 | AF11: 0 | AG11: 0.1583 | AH11: 0.1185 | AI11: PNV | AJ11: Amaiur | AM11: 4 | AN11: 8.866321379 | AO11: 5.03556338 | AP11: 6.487893339 | AQ11: 2.632232592 | AR11: 0 | AS11: 0
B12: 8 | C12: Asturias | D12: 0.3012900418 | E12: =AN71 -> 3 | F12: 0.2294225352 | G12: =AO71 -> 0 | H12: 0.2932970985 | I12: =AP71 -> 1 | J12: 0.144068916 | K12: =AQ71 -> 0 | O12: =AS71 -> 0 | R12: FAC | U12: DiL | V12: 0.0225 | W12: =Congreso!V15 -> 0.025 | X12: =W12/V12 -> 1.111111111 | Y12: =O15+O27+O37+O52 -> 7 | Z12: 2 | AA12: 9 | AB12: 0.3015 | AC12: 0.2327 | AD12: 0.2978 | AE12: 0.1356 | AF12: 0 | AG12: 0 | AI12: FAC | AM12: 5 | AN12: 7.093057103 | AO12: 4.028450704 | AP12: 5.190314671 | AQ12: 2.105786073 | AR12: 0 | AS12: 0
B13: 3 | C13: Ávila | D13: 0.4620779944 | E13: =AN78 -> 3 | F13: 0.1954084507 | G13: =AO78 -> 1 | H13: 0.1526563139 | I13: =AP78 -> 0 | J13: 0.1662742283 | K13: =AQ78 -> 0 | U13: PNV | V13: 0.0133 | W13: =Congreso!V16 -> 0.013 | X13: 0.977443609 | Y13: =O11+O26+O16 -> 2 | Z13: 1 | AA13: 3 | AB13: 0.4624 | AC13: 0.1982 | AD13: 0.155 | AE13: 0.1565 | AF13: 0 | AM13: 6 | AN13: 5.910880919 | AO13: 3.357042254 | AP13: 4.325262226 | AQ13: 1.754821728 | AR13: 0 | AS13: 0
B14: 6 | C14: Badajoz | D14: 0.3446598189 | E14: =AN88 -> 1 | F14: 0.3668591549 | G14: =AO88 -> 3 | H14: 0.1469440131 | I14: =AP88 -> 0 | J14: 0.1205886576 | K14: =AQ88 -> 0 | U14: Bildu | V14: 0.0087 | W14: =Congreso!V17 -> 0.009 | X14: 1.034482759 | Y14: =Q16+Q26+Q11+Q43 -> 0 | Z14: 1 | AA14: 1 | AB14: 0.3449 | AC14: 0.3721 | AD14: 0.1492 | AE14: 0.1135 | AF14: 0 | AM14: 7 | AN14: 5.066469359 | AO14: 2.877464789 | AP14: 3.707367622 | AQ14: 1.504132909 | AR14: 0 | AS14: 0
B15: 31 | C15: Barcelona | D15: 0.1126215181 | E15: =AN123 -> 0 | F15: 0.1604084507 | G15: =AO123 -> 1 | H15: 0.2650310584 | I15: =AP123 -> 3 | J15: 0.1439626705 | K15: =AQ123 -> 0 | N15: =AG15*X$12 -> 0.1472222222 | O15: =AS123 -> 0 | P15: =AH15*X$15 -> 0.1393472803 | Q15: =AT123 -> 0 | R15: DiL | S15: ERC | U15: ERC | V15: 0.0239 | W15: =Congreso!V18 -> 0.023 | X15: 0.9623430962 | Y15: =Q15+Q27+Q9+Q21+Q32+Q55+Q37+Q52 -> 2 | Z15: 2 | AA15: 4 | AB15: 0.1127 | AC15: 0.1627 | AD15: 0.2691 | AE15: 0.1355 | AG15: 0.1325 | AH15: 0.1448 | AI15: CiU | AJ15: ERC | AM15: 8 | AN15: 4.433160689 | AO15: 2.51778169 | AP15: 3.243946669 | AQ15: 1.316116296 | AR15: 0 | AS15: 0
B16: 8 | C16: Bizkaia | D16: 0.1137207521 | E16: =D83 -> 0 | F16: 0.1278732394 | G16: =F83 -> 0 | H16: 0.2848271353 | I16: =H83 -> 3 | J16: 0.04069203159 | K16: =J83 -> 0 | N16: =AG16*X$13 -> 0.273 | O16: =N83 -> 1 | P16: =AH16*X$14 -> 0.1293103448 | Q16: =P83 -> 0 | R16: PNV | S16: Bildu | U16: CC | V16: 0.0033 | W16: =Congreso!V20 -> 0.004 | X16: 1.212121212 | Y16: =O35+O48 -> 1 | Z16: 1 | AA16: 2 | AB16: 0.1138 | AC16: 0.1297 | AD16: 0.2892 | AE16: 0.0383 | AF16: 0 | AG16: 0.2793 | AH16: 0.125 | AI16: PNV | AJ16: Amaiur | AN16: =COUNTIF(AN8:AN15,">="&$AM7)+COUNTIF(AN8:AN15,">="&$AM7)+COUNTIF(AN8:AN15,">="&$AL7) -> 3 | AO16: =COUNTIF(AO8:AO15,">="&$AM7)+COUNTIF(AO8:AO15,">="&$AM7)+COUNTIF(AO8:AO15,">="&$AL7) -> 0 | AP16: 1 | AQ16: 0 | AR16: 0 | AS16: 0
B17: 4 | C17: Burgos | D17: 0.3805348189 | E17: =D91 -> 3 | F17: 0.2041830986 | G17: =F91 -> 0 | H17: 0.2142112791 | I17: =H91 -> 1 | J17: 0.1651055276 | K17: =J91 -> 0 | O17: =N91 -> 0 | Q17: =P91 -> 0 | U17: ASG | V17: 0.0012 | W17: 0.0012 | X17: 1 | Y17: =1 -> 1 | Z17: 0 | AA17: 1 | AB17: 0.3808 | AC17: 0.2071 | AD17: 0.2175 | AE17: 0.1554 | AF17: 0
B18: 4 | C18: Cáceres | D18: 0.3532538301 | E18: =D99 -> 3 | F18: 0.3358028169 | G18: =F99 -> 1 | H18: 0.1657552105 | I18: =H99 -> 0 | J18: 0.1211198851 | K18: =J99 -> 0 | O18: =N99 -> 0 | Q18: =P99 -> 0 | X18: =PRODUCT(X8:X17) -> 1.351074415 | Y18: =SUM(Y8:Y17) -> 208 | Z18: =SUM(Z8:Z17) -> 58 | AA18: =SUM(AA8:AA17) -> 266 | AB18: 0.3535 | AC18: 0.3406 | AD18: 0.1683 | AE18: 0.114 | AF18: 0 | AM18: =C8 -> Albacete | AN18: PP | AO18: PSOE | AP18: UP | AQ18: C´s | AR18: Equo
B19: 8 | C19: Cádiz | D19: 0.2773067549 | E19: =D111 -> 3 | F19: 0.276056338 | G19: =F111 -> 1 | H19: 0.2579399264 | I19: =H111 -> 0 | J19: 0.1559684135 | K19: =J111 -> 0 | O19: =N111 -> 0 | Q19: =P111 -> 0 | R19: PA | W19: Senadores | X19: 266 | AB19: 0.2775 | AC19: 0.28 | AD19: 0.2619 | AE19: 0.1468 | AF19: 0 | AG19: 0 | AI19: PA | AL19: =LARGE(AN20:AR20,2) -> 27.76338028 | AM19: =LARGE(AN20:AR20,1) -> 36.82433844 | AN19: =$D8 -> 0.3682433844 | AO19: =$F8 -> 0.2776338028 | AP19: =$H8 -> 0.1765888843 | AQ19: =$J8 -> 0.1547997128 | AR19: =$L8 -> 0
B20: 5 | C20: Cantabria | D20: 0.3691427577 | E20: =D120 -> 3 | F20: 0.2210422535 | G20: =F120 -> 1 | H20: 0.2192341643 | I20: =H120 -> 0 | J20: 0.1620244078 | K20: =J120 -> 0 | O20: =N120 -> 0 | Q20: =P120 -> 0 | R20: PRC | V20: Consultar datos del 20D --------------------------------> | AB20: 0.3694 | AC20: 0.2242 | AD20: 0.2226 | AE20: 0.1525 | AF20: 0 | AG20: 0 | AI20: PRC | AM20: 1 | AN20: =AN19*100 -> 36.82433844 | AO20: =AO19*100 -> 27.76338028 | AP20: =AP19*100 -> 17.65888843 | AQ20: =AQ19*100 -> 15.47997128 | AR20: =AR19*100 -> 0
B21: 5 | C21: Castellón / Castelló | D21: 0.3182782033 | E21: =D129 -> 3 | F21: 0.2121690141 | G21: =F129 -> 0 | H21: 0.2680841847 | I21: =H129 -> 1 | J21: 0.1659554917 | K21: =J129 -> 0 | O21: =N129 -> 0 | P21: =AH21*X$15 -> 0 | Q21: =P129 -> 0 | R21: Comp | S21: ERC | AB21: 0.3185 | AC21: 0.2152 | AD21: 0.2722 | AE21: 0.1562 | AF21: 0 | AG21: 0 | AH21: 0 | AI21: Comp | AJ21: ERC | AM21: 2 | AN21: =AN$20/$AM21 -> 18.41216922 | AO21: 13.88169014 | AP21: 8.829444217 | AQ21: 7.739985642 | AR21: 0
B22: 1 | C22: Ceuta | D22: 0.4485873955 | E22: 2 | F22: 0.2274507042 | G22: 0 | H22: 0.1384740499 | I22: 0 | J22: 0.1412002872 | K22: 0 | O22: 0 | Q22: 0 | AB22: 0.4489 | AC22: 0.2307 | AD22: 0.1406 | AE22: 0.1329 | AM22: 3 | AN22: 12.27477948 | AO22: 9.254460094 | AP22: 5.886296145 | AQ22: 5.159990428 | AR22: 0
B23: 5 | C23: Ciudad Real | D23: 0.3839324513 | E23: =D138 -> 3 | F23: 0.306915493 | G23: =F138 -> 1 | H23: 0.1553154884 | I23: =H138 -> 0 | J23: 0.1310007179 | K23: =J138 -> 0 | O23: =N138 -> 0 | Q23: =P138 -> 0 | AB23: 0.3842 | AC23: 0.3113 | AD23: 0.1577 | AE23: 0.1233 | AF23: 0 | AM23: 4 | AN23: 9.20608461 | AO23: 6.94084507 | AP23: 4.414722109 | AQ23: 3.869992821 | AR23: 0
B24: 6 | C24: Cordoba | D24: 0.3038882312 | E24: =D148 -> 1 | F24: 0.316084507 | G24: =F148 -> 3 | H24: 0.2237646097 | I24: =H148 -> 0 | J24: 0.1267508973 | K24: =J148 -> 0 | AB24: 0.3041 | AC24: 0.3206 | AD24: 0.2272 | AE24: 0.1193 | AF24: 0
B25: 3 | C25: Cuenca | D25: 0.4190080084 | E25: =D155 -> 3 | F25: 0.3014929577 | G25: =F155 -> 1 | H25: 0.1439893747 | I25: =H155 -> 0 | J25: 0.1144264178 | K25: =J155 -> 0 | O25: =N155 -> 0 | Q25: =P155 -> 0 | AB25: 0.4193 | AC25: 0.3058 | AD25: 0.1462 | AE25: 0.1077 | AF25: 0 | AN25: =COUNTIF(AN20:AN23,">="&$AM19)+COUNTIF(AN20:AN23,">="&$AM19)+COUNTIF(AN20:AN23,">="&$AL19) -> 3 | AO25: =COUNTIF(AO20:AO23,">="&$AM19)+COUNTIF(AO20:AO23,">="&$AM19)+COUNTIF(AO20:AO23,">="&$AL19) -> 1 | AP25: 0 | AQ25: 0 | AR25: 0
B26: 6 | C26: Gipuzkoa | D26: 0.08683948468 | E26: =D165 -> 0 | F26: 0.1312253521 | G26: =F165 -> 0 | H26: 0.2759632203 | I26: =H165 -> 3 | J26: 0.03952333094 | K26: =J165 -> 0 | N26: =AG26*X$13 -> 0.2297969925 | O26: =N165 -> 1 | P26: =AH26*X$14 -> 0.2161034483 | Q26: =P165 -> 0 | R26: PNV | S26: Bildu | AB26: 0.0869 | AC26: 0.1331 | AD26: 0.2802 | AE26: 0.0372 | AF26: 0 | AG26: 0.2351 | AH26: 0.2089 | AI26: PNV | AJ26: Amaiur
B27: 6 | C27: Girona | D27: 0.08524059889 | E27: =D175 -> 0 | F27: 0.1248169014 | G27: =F175 -> 0 | H27: 0.1601413976 | I27: =H175 -> 0 | J27: 0.1046518306 | K27: =J175 -> 0 | N27: =AG27*X$12 -> 0.2781111111 | O27: =N175 -> 3 | P27: =AH27*X$15 -> 0.2255732218 | Q27: =P175 -> 1 | R27: DiL | S27: ERC | AB27: 0.0853 | AC27: 0.1266 | AD27: 0.1626 | AE27: 0.0985 | AG27: 0.2503 | AH27: 0.2344 | AI27: CiU | AJ27: ERC | AM27: Alicante / Alacant | AN27: PP | AO27: PSOE | AP27: UP | AQ27: C´s | AR27: Equo | AS27: Terr1 | AT27: Terr2
B28: 7 | C28: Granada | D28: 0.3111831476 | E28: =D186 -> 3 | F28: 0.3056338028 | G28: =F186 -> 1 | H28: 0.2110596649 | I28: =H186 -> 0 | J28: 0.1475750179 | K28: =J186 -> 0 | O28: =N186 -> 0 | Q28: =P186 -> 0 | R28: PA | AB28: 0.3114 | AC28: 0.31 | AD28: 0.2143 | AE28: 0.1389 | AF28: 0 | AG28: 0 | AI28: PA | AL28: =LARGE(AN29:AT29,2) -> 25.53792399 | AM28: =LARGE(AN29:AT29,1) -> 32.84711003 | AN28: =D9 -> 0.3284711003 | AO28: =F9 -> 0.2056619718 | AP28: =H9 -> 0.2553792399 | AQ28: =J9 -> 0.1811486001 | AR28: =L9 -> 0 | AS28: =N9 -> 0 | AT28: =P9 -> 0
B29: 3 | C29: Guadalajara | D29: 0.3476577298 | E29: =D193 -> 3 | F29: 0.2221267606 | G29: =F193 -> 1 | H29: 0.2125369841 | I29: =H193 -> 0 | J29: 0.191879397 | K29: =J193 -> 0 | O29: =N193 -> 0 | Q29: =P193 -> 0 | AB29: 0.3479 | AC29: 0.2253 | AD29: 0.2158 | AE29: 0.1806 | AF29: 0 | AM29: 1 | AN29: =AN28*100 -> 32.84711003 | AO29: 20.56619718 | AP29: 25.53792399 | AQ29: 18.11486001 | AR29: 0 | AS29: 0 | AT29: 0
B30: 5 | C30: Huelva | D30: 0.2875995822 | E30: =D202 -> 1 | F30: 0.3641971831 | G30: =F202 -> 3 | H30: 0.1937257867 | I30: =H202 -> 0 | J30: 0.1261134243 | K30: =J202 -> 0 | O30: =N202 -> 0 | Q30: =P202 -> 0 | R30: PA | AB30: 0.2878 | AC30: 0.3694 | AD30: 0.1967 | AE30: 0.1187 | AF30: 0 | AG30: 0 | AI30: PA | AM30: 2 | AN30: =AN$29/$AM30 -> 16.42355501 | AO30: =AO$29/$AM30 -> 10.28309859 | AP30: 12.76896199 | AQ30: 9.057430007 | AR30: 0 | AS30: 0 | AT30: 0
B31: 3 | C31: Huesca | D31: 0.3257729805 | E31: =D209 -> 3 | F31: 0.2436197183 | G31: =F209 -> 1 | H31: 0.2280980793 | I31: =H209 -> 0 | J31: 0.172223977 | K31: =J209 -> 0 | O31: =N209 -> 0 | Q31: =P209 -> 0 | AB31: 0.326 | AC31: 0.2471 | AD31: 0.2316 | AE31: 0.1621 | AF31: 0 | AM31: 3 | AN31: =AN$29/$AM31 -> 10.94903668 | AO31: 6.855399061 | AP31: 8.51264133 | AQ31: 6.038286671 | AR31: 0 | AS31: 0 | AT31: 0
B32: 8 | C32: Illes Balears | D32: 0.2904975627 | E32: =D221 -> 1 | F32: 0.1805211268 | G32: =F221 -> 0 | H32: 0.3194948917 | I32: =H221 -> 4 | J32: 0.1570308686 | K32: =J221 -> 0 | O32: =N221 -> 0 | P32: =AH32*X$15 -> 0 | Q32: =P221 -> 0 | R32: PSM | S32: ERC | AB32: 0.2907 | AC32: 0.1831 | AD32: 0.3244 | AE32: 0.1478 | AF32: 0 | AG32: 0 | AH32: 0 | AI32: PSM | AJ32: ERC | AM32: 4 | AN32: =AN$29/$AM32 -> 8.211777507 | AO32: 5.141549296 | AP32: 6.384480997 | AQ32: 4.528715004 | AR32: 0 | AS32: 0 | AT32: 0
B33: 5 | C33: Jaén | D33: 0.3147806407 | E33: =D230 -> 1 | F33: 0.3781971831 | G33: =F230 -> 3 | H33: 0.1656567225 | I33: =H230 -> 0 | J33: 0.1134702082 | K33: =J230 -> 0 | O33: =N230 -> 0 | Q33: =P230 -> 0 | R33: PA | AB33: 0.315 | AC33: 0.3836 | AD33: 0.1682 | AE33: 0.1068 | AF33: 0 | AG33: 0 | AI33: PA | AM33: 5 | AN33: =AN$29/$AM33 -> 6.569422006 | AO33: 4.113239437 | AP33: 5.107584798 | AQ33: 3.622972003 | AR33: 0 | AS33: 0 | AT33: 0
B34: 4 | C34: La Rioja | D34: 0.3832329387 | E34: =D238 -> 3 | F34: 0.2337605634 | G34: =F238 -> 1 | H34: 0.1970743768 | I34: =H238 -> 0 | J34: 0.1607494616 | K34: =J238 -> 0 | O34: =N238 -> 0 | Q34: =P238 -> 0 | AB34: 0.3835 | AC34: 0.2371 | AD34: 0.2001 | AE34: 0.1513 | AF34: 0 | AM34: 6 | AN34: =AN$29/$AM34 -> 5.474518338 | AO34: 3.427699531 | AP34: 4.256320665 | AQ34: 3.019143336 | AR34: 0 | AS34: 0 | AT34: 0
B35: 8 | C35: Las Palmas | D35: 0.2816037604 | E35: =D250 -> 2 | F35: 0.2208450704 | G35: =F250 -> 0 | H35: 0.3019640376 | I35: =H250 -> 3 | J35: 0.1303632448 | K35: =J250 -> 0 | N35: =AG35*X$16 -> 0 | O35: =N250 -> 1 | Q35: =P250 -> 0 | R35: CC | AB35: 0.2818 | AC35: 0.224 | AD35: 0.3066 | AE35: 0.1227 | AF35: 0 | AG35: 0 | AI35: CC | AM35: 7 | AN35: 4.69244429 | AO35: 2.938028169 | AP35: 3.648274856 | AQ35: 2.587837145 | AR35: 0 | AS35: 0 | AT35: 0
B36: 5 | C36: León | D36: 0.3559519499 | E36: =D259 -> 3 | F36: 0.2501267606 | G36: =F259 -> 1 | H36: 0.2201205558 | I36: =H259 -> 0 | J36: 0.1378004307 | K36: =J259 -> 0 | O36: =N259 -> 0 | Q36: =P259 -> 0 | AB36: 0.3562 | AC36: 0.2537 | AD36: 0.2235 | AE36: 0.1297 | AF36: 0 | AM36: 8 | AN36: 4.105888753 | AO36: 2.570774648 | AP36: 3.192240499 | AQ36: 2.264357502 | AR36: 0 | AS36: 0 | AT36: 0
B37: 4 | C37: Lleida | D37: 0.1125215877 | E37: =D267 -> 0 | F37: 0.122943662 | G37: =F267 -> 0 | H37: 0.1510805067 | I37: =H267 -> 0 | J37: 0.09551471644 | K37: =J267 -> 0 | N37: =AG37*X$12 -> 0.2697777778 | O37: =N267 -> 3 | P37: =AH37*X$15 -> 0.2142175732 | Q37: =P267 -> 1 | R37: DiL | S37: ERC | AB37: 0.1126 | AC37: 0.1247 | AD37: 0.1534 | AE37: 0.0899 | AG37: 0.2428 | AH37: 0.2226 | AI37: CiU | AJ37: ERC | AM37: 9 | AN37: 3.649678892 | AO37: 2.28513302 | AP37: 2.83754711 | AQ37: 2.012762224 | AR37: 0 | AS37: 0 | AT37: 0
B38: 4 | C38: Lugo | D38: 0.4248039694 | E38: =D275 -> 3 | F38: 0.2364225352 | G38: =F275 -> 1 | H38: 0.189687781 | I38: =H275 -> 0 | J38: 0.08074659009 | K38: =J275 -> 0 | N38: 0 | O38: =N275 -> 0 | Q38: =P275 -> 0 | R38: BNG | AB38: 0.4251 | AC38: 0.2398 | AD38: 0.1926 | AE38: 0.076 | AG38: 0.0357 | AI38: BNG | AM38: 10 | AN38: 3.284711003 | AO38: 2.056619718 | AP38: 2.553792399 | AQ38: 1.811486001 | AR38: 0 | AS38: 0 | AT38: 0
B39: 36 | C39: Madrid | D39: 0.3343669916 | E39: =D315 -> 3 | F39: 0.1761830986 | G39: =F315 -> 0 | H39: 0.2572505108 | I39: =H315 -> 1 | J39: 0.199741565 | K39: =J315 -> 0 | O39: =N315 -> 0 | Q39: =P315 -> 0 | AB39: 0.3346 | AC39: 0.1787 | AD39: 0.2612 | AE39: 0.188 | AF39: 0 | AM39: 11 | AN39: 2.986100912 | AO39: 1.869654289 | AP39: 2.321629454 | AQ39: 1.646805456 | AR39: 0 | AS39: 0 | AT39: 0
B40: 11 | C40: Málaga | D40: 0.2894982591 | E40: =D330 -> 3 | F40: 0.2654084507 | G40: =F330 -> 1 | H40: 0.2352876992 | I40: =H330 -> 0 | J40: 0.1813610912 | K40: =J330 -> 0 | O40: =N330 -> 0 | Q40: =P330 -> 0 | R40: PA | AB40: 0.2897 | AC40: 0.2692 | AD40: 0.2389 | AE40: 0.1707 | AF40: 0 | AG40: 0 | AI40: PA | AM40: 12 | AN40: 2.737259169 | AO40: 1.713849765 | AP40: 2.128160332 | AQ40: 1.509571668 | AR40: 0 | AS40: 0 | AT40: 0
B41: 1 | C41: Melilla | D41: 0.4389940808 | E41: 2 | F41: 0.2424366197 | G41: 0 | H41: 0.1253751532 | I41: 0 | J41: 0.1652117732 | K41: 0 | O41: 0 | Q41: 0 | AB41: 0.4393 | AC41: 0.2459 | AD41: 0.1273 | AE41: 0.1555 | AF41: 0 | AN41: =COUNTIF(AN29:AN40,">="&$AM28)+COUNTIF(AN29:AN40,">="&$AM28)+COUNTIF(AN29:AN40,">="&$AL28) -> 3 | AO41: =COUNTIF(AO29:AO40,">="&$AM28)+COUNTIF(AO29:AO40,">="&$AM28)+COUNTIF(AO29:AO40,">="&$AL28) -> 0 | AP41: 1 | AQ41: 0 | AR41: 0 | AS41: 0 | AT41: 0
B42: 10 | C42: Murcia | D42: 0.4041183844 | E42: =D344 -> 3 | F42: 0.2003380282 | G42: =F344 -> 1 | H42: 0.1801344503 | I42: =H344 -> 0 | J42: 0.187735822 | K42: =J344 -> 0 | O42: =N344 -> 0 | Q42: =P344 -> 0 | AB42: 0.4044 | AC42: 0.2032 | AD42: 0.1829 | AE42: 0.1767 | AF42: 0
B43: 5 | C43: Navarra | D43: 0.2890985376 | E43: =D353 -> 1 | F43: 0.1531126761 | G43: =F353 -> 0 | H43: =AD43*X$10+AG43*X$17+AH43*X$14 -> 0.4561161225 | I43: =H353 -> 3 | J43: 0.07490308686 | K43: =J353 -> 0 | N43: =0 -> 0 | O43: =N353 -> 0 | P43: =0 -> 0 | Q43: =P353 -> 0 | R43: G.Bai | S43: Bildu | AB43: 0.2893 | AC43: 0.1553 | AD43: 0.271 | AE43: 0.0705 | AF43: 0 | AG43: 0.0868 | AH43: 0.099 | AI43: G.Bai | AJ43: Amaiur | AM43: Almería | AN43: PP | AO43: PSOE | AP43: UP | AQ43: C´s | AR43: Equo | AS43: Terr1
B44: 4 | C44: Ourense | D44: 0.4487872563 | E44: =D361 -> 3 | F44: 0.2287323944 | G44: =F361 -> 1 | H44: 0.1757024928 | I44: =H361 -> 0 | J44: 0.08361521895 | K44: =J361 -> 0 | N44: 0 | O44: =N361 -> 0 | Q44: =P361 -> 0 | R44: BNG | AB44: 0.4491 | AC44: 0.232 | AD44: 0.1784 | AE44: 0.0787 | AF44: 0 | AG44: 0.0334 | AI44: BNG | AL44: =LARGE(AN45:AS45,2) -> 28.43380282 | AM44: =LARGE(AN45:AS45,1) -> 38.01350975 | AN44: =D10 -> 0.3801350975 | AO44: =F10 -> 0.2843380282 | AP44: =H10 -> 0.1603383735 | AQ44: =J10 -> 0.1525685571 | AR44: =L10 -> 0 | AS44: =N10 -> 0
B45: 3 | C45: Palencia | D45: 0.4031190808 | E45: =D368 -> 3 | F45: 0.2421408451 | G45: =F368 -> 1 | H45: 0.1762934205 | I45: =H368 -> 0 | J45: 0.1504436468 | K45: =J368 -> 0 | O45: =N368 -> 0 | Q45: =P368 -> 0 | AB45: 0.4034 | AC45: 0.2456 | AD45: 0.179 | AE45: 0.1416 | AF45: 0 | AM45: 1 | AN45: =AN44*100 -> 38.01350975 | AO45: 28.43380282 | AP45: 16.03383735 | AQ45: 15.25685571 | AR45: 0 | AS45: 0
B46: 7 | C46: Pontevedra | D46: 0.3443600279 | E46: =D379 -> 3 | F46: 0.2052676056 | G46: =F379 -> 0 | H46: 0.2752738047 | I46: =H379 -> 1 | J46: 0.09562096195 | K46: =J379 -> 0 | N46: 0 | O46: =N379 -> 0 | Q46: =P379 -> 0 | R46: BNG | AB46: 0.3446 | AC46: 0.2082 | AD46: 0.2795 | AE46: 0.09 | AF46: 0 | AG46: 0.0465 | AI46: BNG | AM46: 2 | AN46: =AN$45/$AM46 -> 19.00675487 | AO46: =AO$45/$AM46 -> 14.21690141 | AP46: =AP$45/$AM46 -> 8.016918676 | AQ46: 7.628427854 | AR46: 0 | AS46: 0
B47: 4 | C47: Salamanca | D47: 0.4271023677 | E47: =D387 -> 3 | F47: 0.2144366197 | G47: =F387 -> 1 | H47: 0.1535427054 | I47: =H387 -> 0 | J47: 0.1365254846 | K47: =J387 -> 0 | O47: =N387 -> 0 | Q47: =P387 -> 0 | AB47: 0.4274 | AC47: 0.2175 | AD47: 0.1559 | AE47: 0.1285 | AF47: 0 | AM47: 3 | AN47: =AN$45/$AM47 -> 12.67116992 | AO47: 9.477934272 | AP47: 5.344612451 | AQ47: 5.085618569 | AR47: 0 | AS47: 0
B48: 7 | C48: Santa Cruz de Tenerife | D48: 0.2890985376 | E48: =D398 -> 3 | F48: 0.2123661972 | G48: =F398 -> 0 | H48: 0.2279995913 | I48: =H398 -> 1 | J48: 0.1116640345 | K48: =J398 -> 0 | N48: =AG48*X$16 -> 0.1523636364 | O48: =N398 -> 0 | Q48: =P398 -> 0 | R48: CC | AB48: 0.2893 | AC48: 0.2154 | AD48: 0.2315 | AE48: 0.1051 | AF48: 0 | AG48: 0.1257 | AI48: CC | AM48: 4 | AN48: 9.503377437 | AO48: 7.108450704 | AP48: 4.008459338 | AQ48: 3.814213927 | AR48: 0 | AS48: 0
B49: 3 | C49: Segovia | D49: 0.3941253482 | E49: =D405 -> 3 | F49: 0.2122676056 | G49: =F405 -> 1 | H49: 0.1805284021 | I49: =H405 -> 0 | J49: 0.1812548457 | K49: =J405 -> 0 | O49: =N405 -> 0 | Q49: =P405 -> 0 | AB49: 0.3944 | AC49: 0.2153 | AD49: 0.1833 | AE49: 0.1706 | AF49: 0 | AM49: 5 | AN49: 7.60270195 | AO49: 5.686760563 | AP49: 3.20676747 | AQ49: 3.051371141 | AR49: 0 | AS49: 0
B50: 12 | C50: Sevilla | D50: 0.2517245822 | E50: =D421 -> 1 | F50: 0.3348169014 | G50: =F421 -> 3 | H50: 0.2433637107 | I50: =H421 -> 0 | J50: 0.1383316583 | K50: =J421 -> 0 | O50: =N421 -> 0 | Q50: =P421 -> 0 | R50: PA | AB50: 0.2519 | AC50: 0.3396 | AD50: 0.2471 | AE50: 0.1302 | AF50: 0 | AG50: 0 | AI50: PA | AM50: 6 | AN50: 6.335584958 | AO50: 4.738967136 | AP50: 2.672306225 | AQ50: 2.542809285 | AR50: 0 | AS50: 0
B51: 2 | C51: Soria | D51: 0.3863307799 | E51: =D427 -> 3 | F51: 0.2348450704 | G51: =F427 -> 1 | H51: 0.1928393952 | I51: =H427 -> 0 | J51: 0.1611744436 | K51: =J427 -> 0 | O51: =N427 -> 0 | Q51: =P427 -> 0 | AB51: 0.3866 | AC51: 0.2382 | AD51: 0.1958 | AE51: 0.1517 | AF51: 0 | AN51: =COUNTIF(AN45:AN50,">="&$AM44)+COUNTIF(AN45:AN50,">="&$AM44)+COUNTIF(AN45:AN50,">="&$AL44) -> 3 | AO51: =COUNTIF(AO45:AO50,">="&$AM44)+COUNTIF(AO45:AO50,">="&$AM44)+COUNTIF(AO45:AO50,">="&$AL44) -> 1 | AP51: 0 | AQ51: 0 | AR51: 0 | AS51: 0
B52: 6 | C52: Tarragona | D52: 0.1221149025 | E52: =D437 -> 0 | F52: 0.1557746479 | G52: =F437 -> 0 | H52: 0.2033776052 | I52: =H437 -> 3 | J52: 0.1511873654 | K52: =J437 -> 0 | N52: =AG52*X$12 -> 0.1701111111 | O52: =N437 -> 1 | P52: =AH52*X$15 -> 0.1682175732 | Q52: =P437 -> 0 | R52: CiU | S52: ERC | AB52: 0.1222 | AC52: 0.158 | AD52: 0.2065 | AE52: 0.1423 | AG52: 0.1531 | AH52: 0.1748 | AI52: CiU | AJ52: ERC
B53: 3 | C53: Teruel | D53: 0.3643461003 | E53: =D444 -> 3 | F53: 0.2527887324 | G53: =F444 -> 1 | H53: 0.1994380875 | I53: =H444 -> 0 | J53: 0.1563933955 | K53: =J444 -> 0 | O53: =N444 -> 0 | Q53: =P444 -> 0 | AB53: 0.3646 | AC53: 0.2564 | AD53: 0.2025 | AE53: 0.1472 | AF53: 0 | AM53: Araba - Álava | AN53: PP | AO53: PSOE | AP53: UP | AQ53: C´s | AR53: Equo | AS53: Terr1 | AT53: Terr2
B54: 6 | C54: Toledo | D54: 0.3876298747 | E54: =D454 -> 3 | F54: 0.2736901408 | G54: =F454 -> 1 | H54: 0.1688083367 | I54: =H454 -> 0 | J54: 0.1466188083 | K54: =J454 -> 0 | O54: =N454 -> 0 | Q54: =P454 -> 0 | AB54: 0.3879 | AC54: 0.2776 | AD54: 0.1714 | AE54: 0.138 | AF54: 0 | AL54: =LARGE(AN55:AT55,2) -> 18.78690808 | AM54: =LARGE(AN55:AT55,1) -> 30.33428688 | AN54: =D11 -> 0.1878690808 | AO54: =F11 -> 0.1395070423 | AP54: =H11 -> 0.3033428688 | AQ54: =J11 -> 0.06225987078 | AR54: =L11 -> 0 | AS54: =N11 -> 0.1547293233 | AT54: =P11 -> 0.1225862069
B55: 16 | C55: Valencia / València | D55: 0.3019895543 | E55: =D474 -> 1 | F55: 0.1858450704 | G55: =F474 -> 0 | H55: 0.3127977115 | I55: =H474 -> 3 | J55: 0.1607494616 | K55: =J474 -> 0 | O55: =N474 -> 0 | P55: =AH55*X$15 -> 0 | Q55: =P474 -> 0 | R55: Comp | S55: ERC | AB55: 0.3022 | AC55: 0.1885 | AD55: 0.3176 | AE55: 0.1513 | AF55: 0 | AG55: 0 | AH55: 0 | AI55: Comp | AJ55: ERC | AM55: 1 | AN55: =AN54*100 -> 18.78690808 | AO55: =AO54*100 -> 13.95070423 | AP55: 30.33428688 | AQ55: 6.225987078 | AR55: 0 | AS55: 15.47293233 | AT55: 12.25862069
B56: 5 | C56: Valladolid | D56: 0.3693426184 | E56: =D483 -> 3 | F56: 0.2128591549 | G56: =F483 -> 1 | H56: 0.2036730691 | I56: =H483 -> 0 | J56: 0.1817860732 | K56: =J483 -> 0 | O56: =N483 -> 0 | Q56: =P483 -> 0 | AB56: 0.3696 | AC56: 0.2159 | AD56: 0.2068 | AE56: 0.1711 | AF56: 0 | AM56: 2 | AN56: =AN$55/$AM56 -> 9.393454039 | AO56: =AO$55/$AM56 -> 6.975352113 | AP56: 15.16714344 | AQ56: 3.112993539 | AR56: 0 | AS56: 7.736466165 | AT56: 6.129310345
B57: 3 | C57: Zamora | D57: 0.4255034819 | E57: =D490 -> 3 | F57: 0.2265633803 | G57: =F490 -> 1 | H57: 0.1858467511 | I57: =H490 -> 0 | J57: 0.1372692032 | K57: =J490 -> 0 | O57: =N490 -> 0 | Q57: =P490 -> 0 | AB57: 0.4258 | AC57: 0.2298 | AD57: 0.1887 | AE57: 0.1292 | AF57: 0 | AM57: 3 | AN57: =AN$55/$AM57 -> 6.262302693 | AO57: 4.650234742 | AP57: 10.11142896 | AQ57: 2.075329026 | AR57: 0 | AS57: 5.15764411 | AT57: 4.086206897
B58: 7 | C58: Zaragoza | D58: 0.3028889276 | E58: =D501 -> 3 | F58: 0.2198591549 | G58: =F501 -> 0 | H58: 0.253409481 | I58: =H501 -> 1 | J58: 0.1892232592 | K58: =J501 -> 0 | O58: =N501 -> 0 | Q58: =P501 -> 0 | AB58: 0.3031 | AC58: 0.223 | AD58: 0.2573 | AE58: 0.1781 | AF58: 0 | AM58: 4 | AN58: =AN$55/$AM58 -> 4.696727019 | AO58: 3.487676056 | AP58: 7.58357172 | AQ58: 1.55649677 | AR58: 0 | AS58: 3.868233083 | AT58: 3.064655172
B59: =SUM(B7:B58) -> 350 | C59: Total Estatal | D59: 0.287 | E59: =SUM(E7:E58) -> 117 | F59: 0.217 | G59: =SUM(G7:G58) -> 41 | H59: 0.241 | I59: =SUM(I7:I58) -> 37 | J59: 0.148 | K59: =SUM(K7:K58) -> 0 | O59: =SUM(O7:O58) -> 10 | Q59: =SUM(Q7:Q58) -> 2 | AB59: 0.2872 | AC59: 0.2201 | AD59: 0.2447 | AE59: 0.1393 | AF59: 0 | AN59: =COUNTIF(AN55:AN58,">="&$AM54)+COUNTIF(AN55:AN58,">="&$AM54)+COUNTIF(AN55:AN58,">="&$AL54) -> 1 | AO59: =COUNTIF(AO55:AO58,">="&$AM54)+COUNTIF(AO55:AO58,">="&$AM54)+COUNTIF(AO55:AO58,">="&$AL54) -> 0 | AP59: 3 | AQ59: 0 | AR59: 0 | AS59: 0 | AT59: 0
AM61: Asturias | AN61: PP | AO61: PSOE | AP61: UP | AQ61: C´s | AR61: Equo | AS61: Terr1
AL62: =LARGE(AN63:AS63,2) -> 29.32970985 | AM62: =LARGE(AN63:AS63,1) -> 30.12900418 | AN62: =D12 -> 0.3012900418 | AO62: =F12 -> 0.2294225352 | AP62: =H12 -> 0.2932970985 | AQ62: =J12 -> 0.144068916 | AR62: =L12 -> 0 | AS62: =N12 -> 0
AM63: 1 | AN63: =AN62*100 -> 30.12900418 | AO63: 22.94225352 | AP63: 29.32970985 | AQ63: 14.4068916 | AR63: 0 | AS63: 0
AM64: 2 | AN64: =AN$63/$AM64 -> 15.06450209 | AO64: =AO$63/$AM64 -> 11.47112676 | AP64: 14.66485492 | AQ64: 7.2034458 | AR64: 0 | AS64: 0
AM65: 3 | AN65: =AN$63/$AM65 -> 10.04300139 | AO65: 7.64741784 | AP65: 9.77656995 | AQ65: 4.8022972 | AR65: 0 | AS65: 0
AM66: 4 | AN66: 7.532251045 | AO66: 5.73556338 | AP66: 7.332427462 | AQ66: 3.6017229 | AR66: 0 | AS66: 0
AM67: 5 | AN67: 6.025800836 | AO67: 4.588450704 | AP67: 5.86594197 | AQ67: 2.88137832 | AR67: 0 | AS67: 0
AM68: 6 | AN68: 5.021500696 | AO68: 3.82370892 | AP68: 4.888284975 | AQ68: 2.4011486 | AR68: 0 | AS68: 0
AM69: 7 | AN69: 4.304143454 | AO69: 3.277464789 | AP69: 4.18995855 | AQ69: 2.058127372 | AR69: 0 | AS69: 0
AM70: 8 | AN70: 3.766125522 | AO70: 2.86778169 | AP70: 3.666213731 | AQ70: 1.80086145 | AR70: 0 | AS70: 0
AN71: =COUNTIF(AN63:AN70,">="&$AM62)+COUNTIF(AN63:AN70,">="&$AM62)+COUNTIF(AN63:AN70,">="&$AL62) -> 3 | AO71: =COUNTIF(AO63:AO70,">="&$AM62)+COUNTIF(AO63:AO70,">="&$AM62)+COUNTIF(AO63:AO70,">="&$AL62) -> 0 | AP71: 1 | AQ71: 0 | AR71: 0 | AS71: 0
C73: Bizkaia | D73: PP | F73: PSOE | H73: UP | J73: C´s | L73: Equo | N73: Terr1 | P73: Terr2 | AM73: Ávila | AN73: PP | AO73: PSOE | AP73: UP | AQ73: C´s | AR73: Equo
C74: =LARGE(D75:P75,1) -> 28.48271353 | D74: =D16 -> 0.1137207521 | F74: =F16 -> 0.1278732394 | H74: 0.2848271353 | J74: 0.04069203159 | L74: =L16 -> 0 | N74: =N16 -> 0.273 | P74: =P16 -> 0.1293103448 | AL74: =LARGE(AN75:AR75,2) -> 19.54084507 | AM74: =LARGE(AN75:AR75,1) -> 46.20779944 | AN74: =D13 -> 0.4620779944 | AO74: =F13 -> 0.1954084507 | AP74: =H13 -> 0.1526563139 | AQ74: =J13 -> 0.1662742283 | AR74: =L13 -> 0
C75: =LARGE(D75:P75,2) -> 27.3 | D75: =D74*100 -> 11.37207521 | F75: =F74*100 -> 12.78732394 | H75: =H74*100 -> 28.48271353 | J75: =J74*100 -> 4.069203159 | L75: =L74*100 -> 0 | N75: =N74*100 -> 27.3 | P75: =P74*100 -> 12.93103448 | AM75: 1 | AN75: =AN74*100 -> 46.20779944 | AO75: =AO74*100 -> 19.54084507 | AP75: =AP74*100 -> 15.26563139 | AQ75: =AQ74*100 -> 16.62742283 | AR75: =AR74*100 -> 0
C76: 2 | D76: =D75/$C76 -> 5.686037604 | F76: =F$75/$C76 -> 6.393661972 | H76: =H$75/$C76 -> 14.24135676 | J76: =J$75/$C76 -> 2.034601579 | L76: =L$75/$C76 -> 0 | N76: =N$75/$C76 -> 13.65 | P76: =P$75/$C76 -> 6.465517241 | AM76: 2 | AN76: =AN75/$AM76 -> 23.10389972 | AO76: =AO$75/$AM76 -> 9.770422535 | AP76: 7.632815693 | AQ76: 8.313711414 | AR76: 0
C77: 3 | D77: =D$75/$C77 -> 3.790691736 | F77: 4.262441315 | H77: 9.494237842 | J77: 1.356401053 | L77: 0 | N77: 9.1 | P77: 4.310344828 | AM77: 3 | AN77: =AN$75/$AM77 -> 15.40259981 | AO77: 6.513615023 | AP77: 5.088543795 | AQ77: 5.542474276 | AR77: 0
C78: 4 | D78: 2.843018802 | F78: 3.196830986 | H78: 7.120678382 | J78: 1.01730079 | L78: 0 | N78: 6.825 | P78: 3.232758621 | AN78: =COUNTIF(AN75:AN75,">="&$AM74)+COUNTIF(AN75:AN75,">="&$AM74)+COUNTIF(AN75:AN75,">="&$AL74) -> 3 | AO78: =COUNTIF(AO75:AO75,">="&$AM74)+COUNTIF(AO75:AO75,">="&$AM74)+COUNTIF(AO75:AO75,">="&$AL74) -> 1 | AP78: 0 | AQ78: 0 | AR78: 0
C79: 5 | D79: 2.274415042 | F79: 2.557464789 | H79: 5.696542705 | J79: 0.8138406317 | L79: 0 | N79: 5.46 | P79: 2.586206897
C80: 6 | D80: 1.895345868 | F80: 2.131220657 | H80: 4.747118921 | J80: 0.6782005264 | L80: 0 | N80: 4.55 | P80: 2.155172414 | AM80: Badajoz | AN80: PP | AO80: PSOE | AP80: UP | AQ80: C´s | AR80: Equo
C81: 7 | D81: 1.624582173 | F81: 1.826760563 | H81: 4.068959075 | J81: 0.581314737 | L81: 0 | N81: 3.9 | P81: 1.84729064 | AL81: =LARGE(AN82:AR82,2) -> 34.46598189 | AM81: =LARGE(AN82:AR82,1) -> 36.68591549 | AN81: =D14 -> 0.3446598189 | AO81: =F14 -> 0.3668591549 | AP81: =H14 -> 0.1469440131 | AQ81: =J14 -> 0.1205886576 | AR81: =L14 -> 0
C82: 8 | D82: 1.421509401 | F82: 1.598415493 | H82: 3.560339191 | J82: 0.5086503948 | L82: 0 | N82: 3.4125 | P82: 1.61637931 | AM82: 1 | AN82: =AN81*100 -> 34.46598189 | AO82: =AO81*100 -> 36.68591549 | AP82: =AP81*100 -> 14.69440131 | AQ82: =AQ81*100 -> 12.05886576 | AR82: =AR81*100 -> 0
D83: =COUNTIF(D75:D82,">="&$C74)+COUNTIF(D75:D82,">="&$C74)+COUNTIF(D75:D82,">="&$C75) -> 0 | E83: =COUNTIF(E75:E82,">="&$C74)+COUNTIF(E75:E82,">="&$C74)+COUNTIF(E75:E82,">="&$C75) -> 0 | F83: 0 | G83: 0 | H83: 3 | I83: 0 | J83: 0 | K83: 0 | L83: 0 | M83: 0 | N83: 1 | O83: 0 | P83: 0 | AM83: 2 | AN83: =AN82/$AM83 -> 17.23299095 | AO83: =AO$82/$AM83 -> 18.34295775 | AP83: 7.347200654 | AQ83: 6.029432879 | AR83: 0
AM84: 3 | AN84: =AN$82/$AM84 -> 11.48866063 | AO84: 12.2286385 | AP84: 4.898133769 | AQ84: 4.019621919 | AR84: 0
C85: Burgos | D85: PP | F85: PSOE | H85: UP | J85: C´s | L85: Equo | AM85: 4 | AN85: =AN$82/$AM85 -> 8.616495474 | AO85: 9.171478873 | AP85: 3.673600327 | AQ85: 3.014716439 | AR85: 0
C86: =LARGE(D87:L87,1) -> 38.05348189 | D86: =D17 -> 0.3805348189 | F86: =F17 -> 0.2041830986 | H86: 0.2142112791 | J86: 0.1651055276 | L86: =L17 -> 0 | AM86: 5 | AN86: =AN$82/$AM86 -> 6.893196379 | AO86: 7.337183099 | AP86: 2.938880262 | AQ86: 2.411773151 | AR86: 0
C87: =LARGE(D87:L87,2) -> 21.42112791 | D87: =D86*100 -> 38.05348189 | F87: =F86*100 -> 20.41830986 | H87: =H86*100 -> 21.42112791 | J87: =J86*100 -> 16.51055276 | L87: =L86*100 -> 0 | AM87: 6 | AN87: =AN$82/$AM87 -> 5.744330316 | AO87: 6.114319249 | AP87: 2.449066885 | AQ87: 2.00981096 | AR87: 0
C88: 2 | D88: =D87/$C88 -> 19.02674095 | F88: =F$87/$C88 -> 10.20915493 | H88: =H$87/$C88 -> 10.71056396 | J88: =J$87/$C88 -> 8.255276382 | L88: =L$87/$C88 -> 0 | AN88: =COUNTIF(AN82:AN87,">="&$AM81)+COUNTIF(AN82:AN87,">="&$AM81)+COUNTIF(AN82:AN87,">="&$AL81) -> 1 | AO88: =COUNTIF(AO82:AO87,">="&$AM81)+COUNTIF(AO82:AO87,">="&$AM81)+COUNTIF(AO82:AO87,">="&$AL81) -> 3 | AP88: 0 | AQ88: 0 | AR88: 0
C89: 3 | D89: =D$87/$C89 -> 12.68449396 | F89: =F$87/$C89 -> 6.806103286 | H89: =H$87/$C89 -> 7.140375971 | J89: =J$87/$C89 -> 5.503517588 | L89: =L$87/$C89 -> 0
C90: 4 | D90: =D$87/$C90 -> 9.513370474 | F90: =F$87/$C90 -> 5.104577465 | H90: =H$87/$C90 -> 5.355281978 | J90: =J$87/$C90 -> 4.127638191 | L90: =L$87/$C90 -> 0 | AM90: Barcelona | AN90: PP | AO90: PSOE | AP90: UP | AQ90: C´s | AR90: Equo | AS90: Terr1 | AT90: Terr2
D91: =COUNTIF(D87:D90,">="&$C86)+COUNTIF(D87:D90,">="&$C86)+COUNTIF(D87:D90,">="&$C87) -> 3 | E91: =COUNTIF(E87:E90,">="&$C86)+COUNTIF(E87:E90,">="&$C86)+COUNTIF(E87:E90,">="&$C87) -> 0 | F91: 0 | G91: 0 | H91: 1 | I91: 0 | J91: 0 | K91: 0 | L91: 0 | AL91: =LARGE(AN92:AT92,2) -> 16.04084507 | AM91: =LARGE(AN92:AT92,1) -> 26.50310584 | AN91: =D15 -> 0.1126215181 | AO91: =F15 -> 0.1604084507 | AP91: =H15 -> 0.2650310584 | AQ91: =J15 -> 0.1439626705 | AR91: =L15 -> 0 | AS91: =N15 -> 0.1472222222 | AT91: =P15 -> 0.1393472803
AM92: 1 | AN92: =AN91*100 -> 11.26215181 | AO92: 16.04084507 | AP92: 26.50310584 | AQ92: 14.39626705 | AR92: 0 | AS92: 14.72222222 | AT92: 13.93472803
C93: Cáceres | D93: PP | F93: PSOE | H93: UP | J93: C´s | L93: Equo | AM93: 2 | AN93: =AN$92/$AM93 -> 5.631075905 | AO93: 8.020422535 | AP93: 13.25155292 | AQ93: 7.198133525 | AR93: 0 | AS93: 7.361111111 | AT93: 6.967364017
C94: =LARGE(D95:L95,1) -> 35.32538301 | D94: =D18 -> 0.3532538301 | F94: =F18 -> 0.3358028169 | H94: 0.1657552105 | J94: 0.1211198851 | L94: =L18 -> 0 | AM94: 3 | AN94: 3.754050604 | AO94: 5.346948357 | AP94: 8.834368615 | AQ94: 4.798755683 | AR94: 0 | AS94: 4.907407407 | AT94: 4.644909344
C95: =LARGE(D95:L95,2) -> 33.58028169 | D95: =D$94*100 -> 35.32538301 | F95: =F$94*100 -> 33.58028169 | H95: =H$94*100 -> 16.57552105 | J95: =J$94*100 -> 12.11198851 | L95: =L$94*100 -> 0 | AM95: 4 | AN95: 2.815537953 | AO95: 4.010211268 | AP95: 6.625776461 | AQ95: 3.599066762 | AR95: 0 | AS95: 3.680555556 | AT95: 3.483682008
C96: 2 | D96: =D95/$C96 -> 17.6626915 | F96: =F$95/$C96 -> 16.79014085 | H96: =H$95/$C96 -> 8.287760523 | J96: =J$95/$C96 -> 6.055994257 | L96: =L$95/$C96 -> 0 | AM96: 5 | AN96: 2.252430362 | AO96: 3.208169014 | AP96: 5.300621169 | AQ96: 2.87925341 | AR96: 0 | AS96: 2.944444444 | AT96: 2.786945607
C97: 3 | D97: =D$95/$C97 -> 11.77512767 | F97: =F$95/$C97 -> 11.19342723 | H97: =H$95/$C97 -> 5.525173682 | J97: =J$95/$C97 -> 4.037329505 | L97: =L$95/$C97 -> 0 | AM97: 6 | AN97: 1.877025302 | AO97: 2.673474178 | AP97: 4.417184307 | AQ97: 2.399377842 | AR97: 0 | AS97: 2.453703704 | AT97: 2.322454672
C98: 4 | D98: =D$95/$C98 -> 8.831345752 | F98: =F$95/$C98 -> 8.395070423 | H98: =H$95/$C98 -> 4.143880262 | J98: =J$95/$C98 -> 3.027997128 | L98: =L$95/$C98 -> 0 | AM98: 7 | AN98: 1.60887883 | AO98: 2.291549296 | AP98: 3.786157978 | AQ98: 2.056609579 | AR98: 0 | AS98: 2.103174603 | AT98: 1.990675433
D99: =COUNTIF(D95:D98,">="&$C94)+COUNTIF(D95:D98,">="&$C94)+COUNTIF(D95:D98,">="&$C95) -> 3 | E99: =COUNTIF(E95:E98,">="&$C94)+COUNTIF(E95:E98,">="&$C94)+COUNTIF(E95:E98,">="&$C95) -> 0 | F99: 1 | G99: 0 | H99: 0 | I99: 0 | J99: 0 | K99: 0 | L99: 0 | AM99: 8 | AN99: 1.407768976 | AO99: 2.005105634 | AP99: 3.31288823 | AQ99: 1.799533381 | AR99: 0 | AS99: 1.840277778 | AT99: 1.741841004
AM100: 9 | AN100: 1.251350201 | AO100: 1.782316119 | AP100: 2.944789538 | AQ100: 1.599585228 | AR100: 0 | AS100: 1.635802469 | AT100: 1.548303115
C101: Cádiz | D101: PP | F101: PSOE | H101: UP | J101: C´s | L101: Equo | N101: Terr1 | AM101: 10 | AN101: 1.126215181 | AO101: 1.604084507 | AP101: 2.650310584 | AQ101: 1.439626705 | AR101: 0 | AS101: 1.472222222 | AT101: 1.393472803
C102: =LARGE(D103:N103,1) -> 27.73067549 | D102: =D19 -> 0.2773067549 | F102: =F19 -> 0.276056338 | H102: 0.2579399264 | J102: 0.1559684135 | L102: =L19 -> 0 | N102: =N19 -> 0 | AM102: 11 | AN102: 1.023831983 | AO102: 1.458258643 | AP102: 2.409373259 | AQ102: 1.30875155 | AR102: 0 | AS102: 1.338383838 | AT102: 1.266793458
C103: =LARGE(D103:N103,2) -> 27.6056338 | D103: =D102*100 -> 27.73067549 | F103: =F102*100 -> 27.6056338 | H103: 25.79399264 | J103: 15.59684135 | L103: 0 | N103: 0 | AM103: 12 | AN103: 0.9385126509 | AO103: 1.336737089 | AP103: 2.208592154 | AQ103: 1.199688921 | AR103: 0 | AS103: 1.226851852 | AT103: 1.161227336
C104: 2 | D104: =D$103/$C104 -> 13.86533774 | F104: =F$103/$C104 -> 13.8028169 | H104: =H$103/$C104 -> 12.89699632 | J104: =J$103/$C104 -> 7.798420675 | L104: =L$103/$C104 -> 0 | N104: =N$103/$C104 -> 0 | AM104: 13 | AN104: 0.86631937 | AO104: 1.233911159 | AP104: 2.03870045 | AQ104: 1.107405158 | AR104: 0 | AS104: 1.132478632 | AT104: 1.071902156
C105: 3 | D105: 9.243558496 | F105: 9.201877934 | H105: 8.597997548 | J105: 5.198947117 | L105: 0 | N105: 0 | AM105: 14 | AN105: 0.804439415 | AO105: 1.145774648 | AP105: 1.893078989 | AQ105: 1.028304789 | AR105: 0 | AS105: 1.051587302 | AT105: 0.9953377167
C106: 4 | D106: 6.932668872 | F106: 6.901408451 | H106: 6.448498161 | J106: 3.899210337 | L106: 0 | N106: 0 | AM106: 15 | AN106: 0.7508101207 | AO106: 1.069389671 | AP106: 1.766873723 | AQ106: 0.9597511366 | AR106: 0 | AS106: 0.9814814815 | AT106: 0.9289818689
C107: 5 | D107: 5.546135097 | F107: 5.521126761 | H107: 5.158798529 | J107: 3.11936827 | L107: 0 | N107: 0 | AM107: 16 | AN107: 0.7038844882 | AO107: 1.002552817 | AP107: 1.656444115 | AQ107: 0.8997666906 | AR107: 0 | AS107: 0.9201388889 | AT107: 0.8709205021
C108: 6 | D108: 4.621779248 | F108: 4.600938967 | H108: 4.298998774 | J108: 2.599473558 | L108: 0 | N108: 0 | AM108: 17 | AN108: 0.6624795183 | AO108: 0.9435791218 | AP108: 1.559006226 | AQ108: 0.8468392382 | AR108: 0 | AS108: 0.8660130719 | AT108: 0.8196898843
C109: 7 | D109: 3.96152507 | F109: 3.943661972 | H109: 3.684856092 | J109: 2.228120193 | L109: 0 | N109: 0 | AM109: 18 | AN109: 0.6256751006 | AO109: 0.8911580595 | AP109: 1.472394769 | AQ109: 0.7997926139 | AR109: 0 | AS109: 0.8179012346 | AT109: 0.7741515574
C110: 8 | D110: 3.466334436 | F110: 3.450704225 | H110: 3.224249081 | J110: 1.949605169 | L110: 0 | N110: 0 | AM110: 19 | AN110: =AN$92/$AM110 -> 0.5927448321 | AO110: 0.8442550037 | AP110: 1.394900308 | AQ110: 0.7576982658 | AR110: 0 | AS110: 0.7748538012 | AT110: 0.7334067386
D111: =COUNTIF(D103:D110,">="&$C102)+COUNTIF(D103:D110,">="&$C102)+COUNTIF(D103:D110,">="&$C103) -> 3 | E111: =COUNTIF(E103:E110,">="&$C102)+COUNTIF(E103:E110,">="&$C102)+COUNTIF(E103:E110,">="&$C103) -> 0 | F111: 1 | G111: 0 | H111: 0 | I111: 0 | J111: 0 | K111: 0 | L111: 0 | M111: 0 | N111: 0 | AM111: 20 | AN111: 0.5631075905 | AO111: 0.8020422535 | AP111: 1.325155292 | AQ111: 0.7198133525 | AR111: 0 | AS111: 0.7361111111 | AT111: 0.6967364017
AM112: 21 | AN112: 0.5362929434 | AO112: 0.7638497653 | AP112: 1.262052659 | AQ112: 0.6855365262 | AR112: 0 | AS112: 0.7010582011 | AT112: 0.6635584778
C113: Cantabria | D113: PP | F113: PSOE | H113: UP | J113: C´s | L113: Equo | N113: Terr1 | AM113: 22 | AN113: 0.5119159914 | AO113: 0.7291293214 | AP113: 1.204686629 | AQ113: 0.654375775 | AR113: 0 | AS113: 0.6691919192 | AT113: 0.6333967288
C114: =LARGE(D115:N115,1) -> 36.91427577 | D114: =D20 -> 0.3691427577 | F114: =F20 -> 0.2210422535 | H114: 0.2192341643 | J114: 0.1620244078 | L114: =L20 -> 0 | N114: =N20 -> 0 | AM114: 23 | AN114: 0.4896587744 | AO114: 0.6974280465 | AP114: 1.15230895 | AQ114: 0.6259246543 | AR114: 0 | AS114: 0.6400966184 | AT114: 0.6058577406
C115: =LARGE(D115:N115,2) -> 22.10422535 | D115: =D114*100 -> 36.91427577 | F115: =F114*100 -> 22.10422535 | H115: =H114*100 -> 21.92341643 | J115: =J114*100 -> 16.20244078 | L115: =L114*100 -> 0 | N115: =N114*100 -> 0 | AM115: 24 | AN115: 0.4692563254 | AO115: 0.6683685446 | AP115: 1.104296077 | AQ115: 0.5998444604 | AR115: 0 | AS115: 0.6134259259 | AT115: 0.5806136681
C116: 2 | D116: =D115/$C116 -> 18.45713788 | F116: =F$115/$C116 -> 11.05211268 | H116: =H$115/$C116 -> 10.96170821 | J116: =J$115/$C116 -> 8.101220388 | L116: =L$115/$C116 -> 0 | N116: =N$115/$C116 -> 0 | AM116: 25 | AN116: 0.4504860724 | AO116: 0.6416338028 | AP116: 1.060124234 | AQ116: 0.575850682 | AR116: 0 | AS116: 0.5888888889 | AT116: 0.5573891213
C117: 3 | D117: =D$115/$C117 -> 12.30475859 | F117: =F$115/$C117 -> 7.368075117 | H117: =H$115/$C117 -> 7.307805476 | J117: =J$115/$C117 -> 5.400813592 | L117: =L$115/$C117 -> 0 | N117: =N$115/$C117 -> 0 | AM117: 26 | AN117: 0.433159685 | AO117: 0.6169555796 | AP117: 1.019350225 | AQ117: 0.5537025788 | AR117: 0 | AS117: 0.5662393162 | AT117: 0.5359510782
C118: 4 | D118: =D$115/$C118 -> 9.228568942 | F118: =F$115/$C118 -> 5.526056338 | H118: =H$115/$C118 -> 5.480854107 | J118: =J$115/$C118 -> 4.050610194 | L118: =L$115/$C118 -> 0 | N118: =N$115/$C118 -> 0 | AM118: 27 | AN118: 0.4171167337 | AO118: 0.594105373 | AP118: 0.9815965127 | AQ118: 0.5331950759 | AR118: 0 | AS118: 0.5452674897 | AT118: 0.5161010383
C119: 5 | D119: =D$115/$C119 -> 7.382855153 | F119: =F$115/$C119 -> 4.42084507 | H119: =H$115/$C119 -> 4.384683286 | J119: =J$115/$C119 -> 3.240488155 | L119: =L$115/$C119 -> 0 | N119: =N$115/$C119 -> 0 | AM119: 28 | AN119: 0.4022197075 | AO119: 0.5728873239 | AP119: 0.9465394944 | AQ119: 0.5141523946 | AR119: 0 | AS119: 0.5257936508 | AT119: 0.4976688583
D120: =COUNTIF(D115:D119,">="&$C114)+COUNTIF(D115:D119,">="&$C114)+COUNTIF(D115:D119,">="&$C115) -> 3 | E120: =COUNTIF(E115:E119,">="&$C114)+COUNTIF(E115:E119,">="&$C114)+COUNTIF(E115:E119,">="&$C115) -> 0 | F120: 1 | G120: 0 | H120: 0 | I120: 0 | J120: 0 | K120: 0 | L120: 0 | M120: 0 | N120: 0 | AM120: 29 | AN120: 0.3883500624 | AO120: 0.5531325886 | AP120: 0.9139002015 | AQ120: 0.4964230017 | AR120: 0 | AS120: 0.5076628352 | AT120: 0.4805078632
AM121: 30 | AN121: 0.3754050604 | AO121: 0.5346948357 | AP121: 0.8834368615 | AQ121: 0.4798755683 | AR121: 0 | AS121: 0.4907407407 | AT121: 0.4644909344
C122: Castellón | D122: PP | F122: PSOE | H122: UP | J122: C´s | L122: Equo | N122: Terr1 | P122: Terr2 | AM122: 31 | AN122: 0.3632952197 | AO122: 0.5174466152 | AP122: 0.8549388982 | AQ122: 0.4643957113 | AR122: 0 | AS122: 0.4749103943 | AT122: 0.4495073559
C123: =LARGE(D124:N124,1) -> 31.82782033 | D123: =D21 -> 0.3182782033 | F123: =F21 -> 0.2121690141 | H123: 0.2680841847 | J123: 0.1659554917 | L123: =L21 -> 0 | N123: =N21 -> 0 | P123: =P21 -> 0 | AN123: =COUNTIF(AN92:AN122,">="&$AM91)+COUNTIF(AN92:AN122,">="&$AM91)+COUNTIF(AN92:AN122,">="&$AL91) -> 0 | AO123: =COUNTIF(AO92:AO122,">="&$AM91)+COUNTIF(AO92:AO122,">="&$AM91)+COUNTIF(AO92:AO122,">="&$AL91) -> 1 | AP123: 3 | AQ123: 0 | AR123: 0 | AS123: 0 | AT123: 0
C124: =LARGE(D124:N124,2) -> 26.80841847 | D124: =D123*100 -> 31.82782033 | F124: =F123*100 -> 21.21690141 | H124: =H123*100 -> 26.80841847 | J124: =J123*100 -> 16.59554917 | L124: =L123*100 -> 0 | N124: =N123*100 -> 0 | P124: =P123*100 -> 0
C125: 2 | D125: =D124/$C125 -> 15.91391017 | F125: =F$124/$C125 -> 10.6084507 | H125: =H$124/$C125 -> 13.40420924 | J125: =J$124/$C125 -> 8.297774587 | L125: =L$124/$C125 -> 0 | N125: =N$124/$C125 -> 0 | P125: =P$124/$C125 -> 0
C126: 3 | D126: =D$124/$C126 -> 10.60927344 | F126: =F$124/$C126 -> 7.072300469 | H126: =H$124/$C126 -> 8.936139491 | J126: =J$124/$C126 -> 5.531849725 | L126: =L$124/$C126 -> 0 | N126: =N$124/$C126 -> 0 | P126: =P$124/$C126 -> 0
C127: 4 | D127: =D$124/$C127 -> 7.956955084 | F127: =F$124/$C127 -> 5.304225352 | H127: =H$124/$C127 -> 6.702104618 | J127: =J$124/$C127 -> 4.148887294 | L127: =L$124/$C127 -> 0 | N127: =N$124/$C127 -> 0 | P127: =P$124/$C127 -> 0
C128: 5 | D128: =D$124/$C128 -> 6.365564067 | F128: =F$124/$C128 -> 4.243380282 | H128: =H$124/$C128 -> 5.361683694 | J128: =J$124/$C128 -> 3.319109835 | L128: =L$124/$C128 -> 0 | N128: =N$124/$C128 -> 0 | P128: =P$124/$C128 -> 0
D129: =COUNTIF(D124:D128,">="&$C123)+COUNTIF(D124:D128,">="&$C123)+COUNTIF(D124:D128,">="&$C124) -> 3 | E129: =COUNTIF(E124:E128,">="&$C123)+COUNTIF(E124:E128,">="&$C123)+COUNTIF(E124:E128,">="&$C124) -> 0 | F129: 0 | G129: 0 | H129: 1 | I129: 0 | J129: 0 | K129: 0 | L129: 0 | M129: 0 | N129: 0 | O129: 0 | P129: 0
C131: Ciudad Real | D131: PP | F131: PSOE | H131: UP | J131: C´s | L131: Equo
C132: =LARGE(D133:N133,1) -> 38.39324513 | D132: =D23 -> 0.3839324513 | F132: =F23 -> 0.306915493 | H132: 0.1553154884 | J132: 0.1310007179 | L132: =L23 -> 0
C133: =LARGE(D133:N133,2) -> 30.6915493 | D133: =D132*100 -> 38.39324513 | F133: =F132*100 -> 30.6915493 | H133: =H132*100 -> 15.53154884 | J133: =J132*100 -> 13.10007179 | L133: =L132*100 -> 0
C134: 2 | D134: =D133/$C134 -> 19.19662256 | F134: =F$133/$C134 -> 15.34577465 | H134: =H$133/$C134 -> 7.765774418 | J134: =J$133/$C134 -> 6.550035894 | L134: =L$133/$C134 -> 0
C135: 3 | D135: =D$133/$C135 -> 12.79774838 | F135: =F$133/$C135 -> 10.23051643 | H135: =H$133/$C135 -> 5.177182945 | J135: =J$133/$C135 -> 4.366690596 | L135: =L$133/$C135 -> 0
C136: 4 | D136: =D$133/$C136 -> 9.598311281 | F136: =F$133/$C136 -> 7.672887324 | H136: =H$133/$C136 -> 3.882887209 | J136: =J$133/$C136 -> 3.275017947 | L136: =L$133/$C136 -> 0
C137: 5 | D137: =D$133/$C137 -> 7.678649025 | F137: =F$133/$C137 -> 6.138309859 | H137: =H$133/$C137 -> 3.106309767 | J137: =J$133/$C137 -> 2.620014358 | L137: =L$133/$C137 -> 0
D138: =COUNTIF(D133:D137,">="&$C132)+COUNTIF(D133:D137,">="&$C132)+COUNTIF(D133:D137,">="&$C133) -> 3 | E138: =COUNTIF(E133:E137,">="&$C132)+COUNTIF(E133:E137,">="&$C132)+COUNTIF(E133:E137,">="&$C133) -> 0 | F138: 1 | G138: 0 | H138: 0 | I138: 0 | J138: 0 | K138: 0 | L138: 0
C140: Córdoba | D140: PP | F140: PSOE | H140: UP | J140: C´s | L140: Equo | N140: Terr1
C141: =LARGE(D142:N142,1) -> 31.6084507 | D141: =D24 -> 0.3038882312 | F141: =F24 -> 0.316084507 | H141: =H24 -> 0.2237646097 | J141: =J24 -> 0.1267508973 | L141: =L24 -> 0 | N141: =N24 -> 0
C142: =LARGE(D142:N142,2) -> 30.38882312 | D142: =D141*100 -> 30.38882312 | F142: =F141*100 -> 31.6084507 | H142: =H141*100 -> 22.37646097 | J142: =J141*100 -> 12.67508973 | L142: =L141*100 -> 0 | N142: =N141*100 -> 0
C143: 2 | D143: =D$142/$C143 -> 15.19441156 | F143: =F$142/$C143 -> 15.80422535 | H143: =H$142/$C143 -> 11.18823049 | J143: =J$142/$C143 -> 6.337544867 | L143: =L$142/$C143 -> 0 | N143: =N$142/$C143 -> 0
C144: 3 | D144: =D$142/$C144 -> 10.12960771 | F144: =F$142/$C144 -> 10.53615023 | H144: =H$142/$C144 -> 7.458820324 | J144: =J$142/$C144 -> 4.225029911 | L144: =L$142/$C144 -> 0 | N144: =N$142/$C144 -> 0
C145: 4 | D145: =D$142/$C145 -> 7.59720578 | F145: =F$142/$C145 -> 7.902112676 | H145: =H$142/$C145 -> 5.594115243 | J145: =J$142/$C145 -> 3.168772434 | L145: =L$142/$C145 -> 0 | N145: =N$142/$C145 -> 0
C146: 5 | D146: =D$142/$C146 -> 6.077764624 | F146: =F$142/$C146 -> 6.321690141 | H146: =H$142/$C146 -> 4.475292195 | J146: =J$142/$C146 -> 2.535017947 | L146: =L$142/$C146 -> 0 | N146: =N$142/$C146 -> 0
C147: 6 | D147: =D$142/$C147 -> 5.064803853 | F147: =F$142/$C147 -> 5.268075117 | H147: =H$142/$C147 -> 3.729410162 | J147: =J$142/$C147 -> 2.112514956 | L147: =L$142/$C147 -> 0 | N147: =N$142/$C147 -> 0
D148: =COUNTIF(D142:D147,">="&$C141)+COUNTIF(D142:D147,">="&$C141)+COUNTIF(D142:D147,">="&$C142) -> 1 | E148: =COUNTIF(E142:E147,">="&$C141)+COUNTIF(E142:E147,">="&$C141)+COUNTIF(E142:E147,">="&$C142) -> 0 | F148: 3 | G148: 0 | H148: 0 | I148: 0 | J148: 0 | K148: 0 | L148: 0 | M148: 0 | N148: 0
C150: Cuenca | D150: PP | F150: PSOE | H150: UP | J150: C´s | L150: Equo
C151: =LARGE(D152:L152,1) -> 41.90080084 | D151: =D25 -> 0.4190080084 | F151: =F25 -> 0.3014929577 | H151: 0.1439893747 | J151: 0.1144264178 | L151: =L25 -> 0
C152: =LARGE(D152:L152,2) -> 30.14929577 | D152: =D151*100 -> 41.90080084 | F152: =F151*100 -> 30.14929577 | H152: =H151*100 -> 14.39893747 | J152: =J151*100 -> 11.44264178 | L152: =L151*100 -> 0
C153: 2 | D153: =D$152/$C153 -> 20.95040042 | F153: =F$152/$C153 -> 15.07464789 | H153: =H$152/$C153 -> 7.199468737 | J153: =J$152/$C153 -> 5.72132089 | L153: =L$152/$C153 -> 0
C154: 3 | D154: =D$152/$C154 -> 13.96693361 | F154: =F$152/$C154 -> 10.04976526 | H154: =H$152/$C154 -> 4.799645825 | J154: =J$152/$C154 -> 3.814213927 | L154: =L$152/$C154 -> 0
D155: =COUNTIF(D152:D154,">="&$C151)+COUNTIF(D152:D154,">="&$C151)+COUNTIF(D152:D154,">="&$C152) -> 3 | E155: =COUNTIF(E152:E154,">="&$C151)+COUNTIF(E152:E154,">="&$C151)+COUNTIF(E152:E154,">="&$C152) -> 0 | F155: 1 | G155: 0 | H155: 0 | I155: 0 | J155: 0 | K155: 0 | L155: 0
C157: Gipuzkoa | D157: PP | F157: PSOE | H157: UP | J157: C´s | L157: Equo | N157: Terr1 | P157: Terr2
C158: =LARGE(D159:P159,1) -> 27.59632203 | D158: =D26 -> 0.08683948468 | F158: =F26 -> 0.1312253521 | H158: 0.2759632203 | J158: 0.03952333094 | L158: =L26 -> 0 | N158: =N26 -> 0.2297969925 | P158: =P26 -> 0.2161034483
C159: =LARGE(D159:P159,2) -> 22.97969925 | D159: =D158*100 -> 8.683948468 | F159: =F158*100 -> 13.12253521 | H159: =H158*100 -> 27.59632203 | J159: =J158*100 -> 3.952333094 | L159: =L158*100 -> 0 | N159: =N158*100 -> 22.97969925 | P159: =P158*100 -> 21.61034483
C160: 2 | D160: =D159/$C160 -> 4.341974234 | F160: =F$159/$C160 -> 6.561267606 | H160: =H$159/$C160 -> 13.79816101 | J160: =J$159/$C160 -> 1.976166547 | L160: =L$159/$C160 -> 0 | N160: =N$159/$C160 -> 11.48984962 | P160: =P$159/$C160 -> 10.80517241
C161: 3 | D161: =D$159/$C161 -> 2.894649489 | F161: =F$159/$C161 -> 4.374178404 | H161: =H$159/$C161 -> 9.198774009 | J161: =J$159/$C161 -> 1.317444365 | L161: =L$159/$C161 -> 0 | N161: =N$159/$C161 -> 7.659899749 | P161: =P$159/$C161 -> 7.203448276
C162: 4 | D162: =D$159/$C162 -> 2.170987117 | F162: =F$159/$C162 -> 3.280633803 | H162: =H$159/$C162 -> 6.899080507 | J162: =J$159/$C162 -> 0.9880832735 | L162: =L$159/$C162 -> 0 | N162: =N$159/$C162 -> 5.744924812 | P162: =P$159/$C162 -> 5.402586207
C163: 5 | D163: =D$159/$C163 -> 1.736789694 | F163: =F$159/$C163 -> 2.624507042 | H163: =H$159/$C163 -> 5.519264405 | J163: =J$159/$C163 -> 0.7904666188 | L163: =L$159/$C163 -> 0 | N163: =N$159/$C163 -> 4.59593985 | P163: =P$159/$C163 -> 4.322068966
C164: 6 | D164: =D$159/$C164 -> 1.447324745 | F164: =F$159/$C164 -> 2.187089202 | H164: =H$159/$C164 -> 4.599387004 | J164: =J$159/$C164 -> 0.6587221823 | L164: =L$159/$C164 -> 0 | N164: =N$159/$C164 -> 3.829949875 | P164: =P$159/$C164 -> 3.601724138
D165: =COUNTIF(D159:D164,">="&$C158)+COUNTIF(D159:D164,">="&$C158)+COUNTIF(D159:D164,">="&$C159) -> 0 | E165: =COUNTIF(E159:E164,">="&$C158)+COUNTIF(E159:E164,">="&$C158)+COUNTIF(E159:E164,">="&$C159) -> 0 | F165: 0 | G165: 0 | H165: 3 | I165: 0 | J165: 0 | K165: 0 | L165: 0 | M165: 0 | N165: 1 | O165: 0 | P165: 0
C167: Girona | D167: PP | F167: PSOE | H167: UP | J167: C´s | L167: Equo | N167: Terr1 | P167: Terr2
C168: =LARGE(D169:P169,1) -> 27.81111111 | D168: =D27 -> 0.08524059889 | F168: =F27 -> 0.1248169014 | H168: 0.1601413976 | J168: 0.1046518306 | L168: =L27 -> 0 | N168: =N27 -> 0.2781111111 | P168: =P27 -> 0.2255732218
C169: =LARGE(D169:P169,2) -> 22.55732218 | D169: =D168*100 -> 8.524059889 | F169: =F168*100 -> 12.48169014 | H169: =H168*100 -> 16.01413976 | J169: =J168*100 -> 10.46518306 | L169: =L168*100 -> 0 | N169: =N168*100 -> 27.81111111 | P169: =P168*100 -> 22.55732218
C170: 2 | D170: =D169/$C170 -> 4.262029944 | F170: =F$169/$C170 -> 6.24084507 | H170: =H$169/$C170 -> 8.007069881 | J170: =J$169/$C170 -> 5.232591529 | L170: =L$169/$C170 -> 0 | N170: =N$169/$C170 -> 13.90555556 | P170: =P$169/$C170 -> 11.27866109
C171: 3 | D171: =D$169/$C171 -> 2.841353296 | F171: =F$169/$C171 -> 4.16056338 | H171: =H$169/$C171 -> 5.338046588 | J171: =J$169/$C171 -> 3.488394353 | L171: =L$169/$C171 -> 0 | N171: =N$169/$C171 -> 9.27037037 | P171: =P$169/$C171 -> 7.519107392
C172: 4 | D172: =D$169/$C172 -> 2.131014972 | F172: =F$169/$C172 -> 3.120422535 | H172: =H$169/$C172 -> 4.003534941 | J172: =J$169/$C172 -> 2.616295765 | L172: =L$169/$C172 -> 0 | N172: =N$169/$C172 -> 6.952777778 | P172: =P$169/$C172 -> 5.639330544
C173: 5 | D173: =D$169/$C173 -> 1.704811978 | F173: =F$169/$C173 -> 2.496338028 | H173: =H$169/$C173 -> 3.202827953 | J173: =J$169/$C173 -> 2.093036612 | L173: =L$169/$C173 -> 0 | N173: =N$169/$C173 -> 5.562222222 | P173: =P$169/$C173 -> 4.511464435
C174: 6 | D174: =D$169/$C174 -> 1.420676648 | F174: =F$169/$C174 -> 2.08028169 | H174: =H$169/$C174 -> 2.669023294 | J174: =J$169/$C174 -> 1.744197176 | L174: =L$169/$C174 -> 0 | N174: =N$169/$C174 -> 4.635185185 | P174: =P$169/$C174 -> 3.759553696
D175: =COUNTIF(D169:D174,">="&$C168)+COUNTIF(D169:D174,">="&$C168)+COUNTIF(D169:D174,">="&$C169) -> 0 | E175: =COUNTIF(E169:E174,">="&$C168)+COUNTIF(E169:E174,">="&$C168)+COUNTIF(E169:E174,">="&$C169) -> 0 | F175: 0 | G175: 0 | H175: 0 | I175: 0 | J175: 0 | K175: 0 | L175: 0 | M175: 0 | N175: 3 | O175: 0 | P175: 1
C177: Granada | D177: PP | F177: PSOE | H177: UP | J177: C´s | L177: Equo | N177: Terr1
C178: =LARGE(D179:P179,1) -> 31.11831476 | D178: =D28 -> 0.3111831476 | F178: =F28 -> 0.3056338028 | H178: 0.2110596649 | J178: 0.1475750179 | L178: =L28 -> 0 | N178: =N28 -> 0
C179: =LARGE(D179:P179,2) -> 30.56338028 | D179: =D178*100 -> 31.11831476 | F179: =F178*100 -> 30.56338028 | H179: =H178*100 -> 21.10596649 | J179: =J178*100 -> 14.75750179 | L179: =L178*100 -> 0 | N179: =N178*100 -> 0
C180: 2 | D180: =D179/$C180 -> 15.55915738 | F180: =F$179/$C180 -> 15.28169014 | H180: =H$179/$C180 -> 10.55298324 | J180: =J$179/$C180 -> 7.378750897 | L180: =L$179/$C180 -> 0 | N180: =N$179/$C180 -> 0
C181: 3 | D181: =D$179/$C181 -> 10.37277159 | F181: 10.18779343 | H181: 7.035322163 | J181: 4.919167265 | L181: 0 | N181: 0
C182: 4 | D182: =D$179/$C182 -> 7.779578691 | F182: 7.64084507 | H182: 5.276491622 | J182: 3.689375449 | L182: 0 | N182: 0
C183: 5 | D183: =D$179/$C183 -> 6.223662953 | F183: 6.112676056 | H183: 4.221193298 | J183: 2.951500359 | L183: 0 | N183: 0
C184: 6 | D184: =D$179/$C184 -> 5.186385794 | F184: 5.093896714 | H184: 3.517661082 | J184: 2.459583632 | L184: 0 | N184: 0
C185: 7 | D185: =D$179/$C185 -> 4.445473538 | F185: 4.366197183 | H185: 3.01513807 | J185: 2.108214542 | L185: 0 | N185: 0
D186: =COUNTIF(D179:D184,">="&$C178)+COUNTIF(D179:D184,">="&$C178)+COUNTIF(D179:D184,">="&$C179) -> 3 | E186: =COUNTIF(E179:E184,">="&$C178)+COUNTIF(E179:E184,">="&$C178)+COUNTIF(E179:E184,">="&$C179) -> 0 | F186: 1 | G186: 0 | H186: 0 | I186: 0 | J186: 0 | K186: 0 | L186: 0 | M186: 0 | N186: 0
C188: Guadalajara | D188: PP | F188: PSOE | H188: UP | J188: C´s | L188: Equo
C189: =LARGE(D190:L190,1) -> 34.76577298 | D189: =D29 -> 0.3476577298 | F189: =F29 -> 0.2221267606 | H189: 0.2125369841 | J189: 0.191879397 | L189: =L29 -> 0
C190: =LARGE(D190:L190,2) -> 22.21267606 | D190: =D189*100 -> 34.76577298 | F190: =F189*100 -> 22.21267606 | H190: =H189*100 -> 21.25369841 | J190: =J189*100 -> 19.1879397 | L190: =L189*100 -> 0
C191: 2 | D191: =D190/$C191 -> 17.38288649 | F191: =F$190/$C191 -> 11.10633803 | H191: =H$190/$C191 -> 10.6268492 | J191: =J$190/$C191 -> 9.593969849 | L191: =L$190/$C191 -> 0
C192: 3 | D192: =D$190/$C192 -> 11.58859099 | F192: =F$190/$C192 -> 7.404225352 | H192: =H$190/$C192 -> 7.084566135 | J192: =J$190/$C192 -> 6.395979899 | L192: =L$190/$C192 -> 0
D193: =COUNTIF(D190:D192,">="&$C189)+COUNTIF(D190:D192,">="&$C189)+COUNTIF(D190:D192,">="&$C190) -> 3 | E193: =COUNTIF(E190:E192,">="&$C189)+COUNTIF(E190:E192,">="&$C189)+COUNTIF(E190:E192,">="&$C190) -> 0 | F193: 1 | G193: 0 | H193: 0 | I193: 0 | J193: 0 | K193: 0 | L193: 0
C195: Huelva | D195: PP | F195: PSOE | H195: UP | J195: C´s | L195: Equo | N195: Terr1
C196: =LARGE(D197:N197,1) -> 36.41971831 | D196: =D30 -> 0.2875995822 | F196: =F30 -> 0.3641971831 | H196: 0.1937257867 | J196: 0.1261134243 | L196: =L30 -> 0 | N196: =N30 -> 0
C197: =LARGE(D197:N197,2) -> 28.75995822 | D197: =D196*100 -> 28.75995822 | F197: =F196*100 -> 36.41971831 | H197: =H196*100 -> 19.37257867 | J197: =J196*100 -> 12.61134243 | L197: =L196*100 -> 0 | N197: =N196*100 -> 0
C198: 2 | D198: =D$197/$C198 -> 14.37997911 | F198: =F$197/$C198 -> 18.20985915 | H198: =H$197/$C198 -> 9.686289334 | J198: =J$197/$C198 -> 6.305671213 | L198: =L$197/$C198 -> 0 | N198: =N$197/$C198 -> 0
C199: 3 | D199: =D$197/$C199 -> 9.586652739 | F199: =F$197/$C199 -> 12.1399061 | H199: =H$197/$C199 -> 6.457526223 | J199: =J$197/$C199 -> 4.203780809 | L199: =L$197/$C199 -> 0 | N199: =N$197/$C199 -> 0
C200: 4 | D200: =D$197/$C200 -> 7.189989554 | F200: =F$197/$C200 -> 9.104929577 | H200: =H$197/$C200 -> 4.843144667 | J200: =J$197/$C200 -> 3.152835607 | L200: =L$197/$C200 -> 0 | N200: =N$197/$C200 -> 0
C201: 5 | D201: =D$197/$C201 -> 5.751991643 | F201: =F$197/$C201 -> 7.283943662 | H201: =H$197/$C201 -> 3.874515734 | J201: =J$197/$C201 -> 2.522268485 | L201: =L$197/$C201 -> 0 | N201: =N$197/$C201 -> 0
D202: =COUNTIF(D197:D201,">="&$C196)+COUNTIF(D197:D201,">="&$C196)+COUNTIF(D197:D201,">="&$C197) -> 1 | E202: =COUNTIF(E197:E201,">="&$C196)+COUNTIF(E197:E201,">="&$C196)+COUNTIF(E197:E201,">="&$C197) -> 0 | F202: 3 | G202: 0 | H202: 0 | I202: 0 | J202: 0 | K202: 0 | L202: 0 | M202: 0 | N202: 0
C204: Huesca | D204: PP | F204: PSOE | H204: UP | J204: C´s | L204: Equo
C205: =LARGE(D206:L206,1) -> 32.57729805 | D205: =D31 -> 0.3257729805 | F205: =F31 -> 0.2436197183 | H205: 0.2280980793 | J205: 0.172223977 | L205: =L31 -> 0
C206: =LARGE(D206:L206,2) -> 24.36197183 | D206: =D205*100 -> 32.57729805 | F206: =F205*100 -> 24.36197183 | H206: =H205*100 -> 22.80980793 | J206: =J205*100 -> 17.2223977 | L206: =L205*100 -> 0
C207: 2 | D207: =D$206/$C207 -> 16.28864903 | F207: =F$206/$C207 -> 12.18098592 | H207: =H$206/$C207 -> 11.40490396 | J207: =J$206/$C207 -> 8.611198851 | L207: =L$206/$C207 -> 0
C208: 3 | D208: =D$206/$C208 -> 10.85909935 | F208: =F$206/$C208 -> 8.120657277 | H208: =H$206/$C208 -> 7.603269309 | J208: =J$206/$C208 -> 5.740799234 | L208: =L$206/$C208 -> 0
D209: =COUNTIF(D206:D208,">="&$C205)+COUNTIF(D206:D208,">="&$C205)+COUNTIF(D206:D208,">="&$C206) -> 3 | E209: =COUNTIF(E206:E208,">="&$C205)+COUNTIF(E206:E208,">="&$C205)+COUNTIF(E206:E208,">="&$C206) -> 0 | F209: 1 | G209: 0 | H209: 0 | I209: 0 | J209: 0 | K209: 0 | L209: 0
C211: Illes Balears | D211: PP | F211: PSOE | H211: UP | J211: C´s | L211: Equo | N211: Terr1 | P211: Terr2
C212: =LARGE(D213:P213,1) -> 31.94948917 | D212: =D32 -> 0.2904975627 | F212: =F32 -> 0.1805211268 | H212: 0.3194948917 | J212: 0.1570308686 | L212: =L32 -> 0 | N212: =N32 -> 0 | P212: =P32 -> 0
C213: =LARGE(D213:P213,2) -> 29.04975627 | D213: =D212*100 -> 29.04975627 | F213: =F212*100 -> 18.05211268 | H213: =H212*100 -> 31.94948917 | J213: =J212*100 -> 15.70308686 | L213: =L212*100 -> 0 | N213: =N212*100 -> 0 | P213: =P212*100 -> 0
C214: 2 | D214: =D$213/$C214 -> 14.52487813 | F214: =F$213/$C214 -> 9.026056338 | H214: =H$213/$C214 -> 15.97474459 | J214: =J$213/$C214 -> 7.851543431 | L214: =L$213/$C214 -> 0 | N214: =N$213/$C214 -> 0 | P214: =P$213/$C214 -> 0
... 262 more rows

Sheet MAPAS
E1: 26J
O2: ¡¡CAMBIAD EL NÚMERO DE LA HOJA 3 PARA VER BIEN LOS COLORES!!!! | U2: AQUÍ
K3: Provincia | M3: Color | O3: LUEGO DAD AL BOTÓN DE "ACTUALIZAR COLORES"
K4: Álava | L4: alava | M4: =VLOOKUP(K4,Hoja3!$AD$4:$AE$55,2,FALSE) -> 20
K5: Albacete | L5: albacete | M5: =VLOOKUP(K5,Hoja3!$AD$4:$AE$55,2,FALSE) -> 48
K6: Alicante | L6: alicante | M6: =VLOOKUP(K6,Hoja3!$AD$4:$AE$55,2,FALSE) -> 48 | Q6: 20D
K7: Almería | L7: almeria | M7: =VLOOKUP(K7,Hoja3!$AD$4:$AE$55,2,FALSE) -> 48
K8: Asturias | L8: asturias | M8: =VLOOKUP(K8,Hoja3!$AD$4:$AE$55,2,FALSE) -> 48
K9: Ávila | L9: avila | M9: =VLOOKUP(K9,Hoja3!$AD$4:$AE$55,2,FALSE) -> 48
K10: Badajoz | L10: badajoz | M10: =VLOOKUP(K10,Hoja3!$AD$4:$AE$55,2,FALSE) -> 10
K11: Barcelona | L11: barcelona | M11: =VLOOKUP(K11,Hoja3!$AD$4:$AE$55,2,FALSE) -> 20
K12: Burgos | L12: burgos | M12: =VLOOKUP(K12,Hoja3!$AD$4:$AE$55,2,FALSE) -> 48
K13: Cáceres | L13: caceres | M13: =VLOOKUP(K13,Hoja3!$AD$4:$AE$55,2,FALSE) -> 48
K14: Cádiz | L14: cadiz | M14: =VLOOKUP(K14,Hoja3!$AD$4:$AE$55,2,FALSE) -> 48
K15: Cantabria | L15: cantabria | M15: =VLOOKUP(K15,Hoja3!$AD$4:$AE$55,2,FALSE) -> 48
K16: Castellón | L16: castellon | M16: =VLOOKUP(K16,Hoja3!$AD$4:$AE$55,2,FALSE) -> 48
K17: Ciudad Real | L17: c_real | M17: =VLOOKUP(K17,Hoja3!$AD$4:$AE$55,2,FALSE) -> 48
K18: Córdoba | L18: cordoba | M18: =VLOOKUP(K18,Hoja3!$AD$4:$AE$55,2,FALSE) -> 10
K19: La Coruña | L19: la_coruna | M19: =VLOOKUP(K19,Hoja3!$AD$4:$AE$55,2,FALSE) -> 48
K20: Cuenca | L20: cuenca | M20: =VLOOKUP(K20,Hoja3!$AD$4:$AE$55,2,FALSE) -> 48
K21: Gerona | L21: gerona | M21: =VLOOKUP(K21,Hoja3!$AD$4:$AE$55,2,FALSE) -> 55
K22: Granada | L22: granda | M22: =VLOOKUP(K22,Hoja3!$AD$4:$AE$55,2,FALSE) -> 48
K23: Guadalajara | L23: guadalajara | M23: =VLOOKUP(K23,Hoja3!$AD$4:$AE$55,2,FALSE) -> 48
K24: Guipúzcoa | L24: guipuzcoa | M24: =VLOOKUP(K24,Hoja3!$AD$4:$AE$55,2,FALSE) -> 20
K25: Huelva | L25: huelva | M25: =VLOOKUP(K25,Hoja3!$AD$4:$AE$55,2,FALSE) -> 10
K26: Huesca | L26: huesca | M26: =VLOOKUP(K26,Hoja3!$AD$4:$AE$55,2,FALSE) -> 48
K27: Islas Baleares | L27: baleares | M27: =VLOOKUP(K27,Hoja3!$AD$4:$AE$55,2,FALSE) -> 20
K28: Jaén | L28: jaen | M28: =VLOOKUP(K28,Hoja3!$AD$4:$AE$55,2,FALSE) -> 10
K29: León | L29: leon | M29: =VLOOKUP(K29,Hoja3!$AD$4:$AE$55,2,FALSE) -> 48
K30: Lérida | L30: lerida | M30: =VLOOKUP(K30,Hoja3!$AD$4:$AE$55,2,FALSE) -> 55
K31: Lugo | L31: lugo | M31: =VLOOKUP(K31,Hoja3!$AD$4:$AE$55,2,FALSE) -> 48
K32: Madrid | L32: madrid | M32: =VLOOKUP(K32,Hoja3!$AD$4:$AE$55,2,FALSE) -> 48
K33: Málaga | L33: malaga | M33: =VLOOKUP(K33,Hoja3!$AD$4:$AE$55,2,FALSE) -> 48
K34: Murcia | L34: murcia | M34: =VLOOKUP(K34,Hoja3!$AD$4:$AE$55,2,FALSE) -> 48
K35: Navarra | L35: navarra | M35: =VLOOKUP(K35,Hoja3!$AD$4:$AE$55,2,FALSE) -> 48
K36: Orense | L36: orense | M36: =VLOOKUP(K36,Hoja3!$AD$4:$AE$55,2,FALSE) -> 48
K37: Palencia | L37: palencia | M37: =VLOOKUP(K37,Hoja3!$AD$4:$AE$55,2,FALSE) -> 48
K38: Las Palmas | L38: las_palmas | M38: =VLOOKUP(K38,Hoja3!$AD$4:$AE$55,2,FALSE) -> 20
K39: Pontevedra | L39: pontevedra | M39: =VLOOKUP(K39,Hoja3!$AD$4:$AE$55,2,FALSE) -> 48
K40: La Rioja | L40: la_rioja | M40: =VLOOKUP(K40,Hoja3!$AD$4:$AE$55,2,FALSE) -> 48
K41: Salamanca | L41: salamanca | M41: =VLOOKUP(K41,Hoja3!$AD$4:$AE$55,2,FALSE) -> 48
K42: Segovia | L42: segovia | M42: =VLOOKUP(K42,Hoja3!$AD$4:$AE$55,2,FALSE) -> 48
K43: Sevilla | L43: sevilla | M43: =VLOOKUP(K43,Hoja3!$AD$4:$AE$55,2,FALSE) -> 10
K44: Soria | L44: soria | M44: =VLOOKUP(K44,Hoja3!$AD$4:$AE$55,2,FALSE) -> 48
K45: Tarragona | L45: tarragona | M45: =VLOOKUP(K45,Hoja3!$AD$4:$AE$55,2,FALSE) -> 20
K46: Santa Cruz de Tenerife | L46: tenerife | M46: =VLOOKUP(K46,Hoja3!$AD$4:$AE$55,2,FALSE) -> 48
K47: Teruel | L47: teruel | M47: =VLOOKUP(K47,Hoja3!$AD$4:$AE$55,2,FALSE) -> 48
K48: Toledo | L48: toledo | M48: =VLOOKUP(K48,Hoja3!$AD$4:$AE$55,2,FALSE) -> 48
K49: Valencia | L49: valencia | M49: =VLOOKUP(K49,Hoja3!$AD$4:$AE$55,2,FALSE) -> 20
K50: Valladolid | L50: valladolid | M50: =VLOOKUP(K50,Hoja3!$AD$4:$AE$55,2,FALSE) -> 48
K51: Vizcaya | L51: vizcaya | M51: =VLOOKUP(K51,Hoja3!$AD$4:$AE$55,2,FALSE) -> 20
K52: Zamora | L52: zamora | M52: =VLOOKUP(K52,Hoja3!$AD$4:$AE$55,2,FALSE) -> 48
K53: Zaragoza | L53: zaragoza | M53: =VLOOKUP(K53,Hoja3!$AD$4:$AE$55,2,FALSE) -> 48
K54: Melilla | M54: =VLOOKUP(K54,Hoja3!$AD$4:$AE$55,2,FALSE) -> 48
K55: Ceuta | M55: =VLOOKUP(K55,Hoja3!$AD$4:$AE$55,2,FALSE) -> 48

Sheet Hoja3
B1: 5 | F1: Cambiar este número por otro mayor que 0
A3: CIRCUNSCRIPCIÓN | B3: PP | F3: PSOE | J3: UP | N3: C's | R3: Terr1 | V3: Terr2 | Z3: MAX | AA3: COLOR | AC3: Autonom+AD+AC1:AE41 | AD3: Provincia | AE3: color
A4: A Coruña | B4: 32.13 | C4: =CONT_COL_COND(Hoja3!$B$1,B4) -> 1 | D4: 48 | E4: =C4*D4 -> 48 | F4: =Congreso!F7*100 -> 20.14225352 | G4: =CONT_COL_COND(Hoja3!$B$1,F4) -> 0 | H4: 10 | I4: =G4*H4 -> 0 | J4: =Congreso!H7*100 -> 25.95157336 | K4: =CONT_COL_COND(Hoja3!$B$1,J4) -> 0 | L4: 20 | M4: =K4*L4 -> 0 | N4: =Congreso!J7*100 -> 10.52893037 | O4: =CONT_COL_COND(Hoja3!$B$1,N4) -> 0 | P4: 52 | Q4: =O4*P4 -> 0 | R4: =Congreso!L7*100 -> 4.55 | S4: =CONT_COL_COND(Hoja3!$B$1,R4) -> 0 | T4: 55 | U4: =S4*T4 -> 0 | V4: =Congreso!N7*100 -> 0 | W4: =CONT_COL_COND(Hoja3!$B$1,V4) -> 0 | X4: 55 | Y4: =W4*X4 -> 0 | Z4: =MAX(B4,F4,J4,N4,R4,V4) -> 32.13 | AA4: =E4+I4+M4+Q4+U4+Y4 -> 48 | AC4: Galicia | AD4: La Coruña | AE4: =AA4 -> 48
A5: Albacete | B5: =Congreso!D8*100 -> 36.82433844 | C5: =CONT_COL_COND(Hoja3!$B$1,B5) -> 1 | D5: 48 | E5: 48 | F5: =Congreso!F8*100 -> 27.76338028 | G5: =CONT_COL_COND(Hoja3!$B$1,F5) -> 0 | H5: 10 | I5: 0 | J5: =Congreso!H8*100 -> 17.65888843 | K5: =CONT_COL_COND(Hoja3!$B$1,J5) -> 0 | L5: 20 | M5: 0 | N5: =Congreso!J8*100 -> 15.47997128 | O5: =CONT_COL_COND(Hoja3!$B$1,N5) -> 0 | P5: 52 | Q5: 0 | R5: =Congreso!L8*100 -> 0 | S5: =CONT_COL_COND(Hoja3!$B$1,R5) -> 0 | T5: 55 | U5: 0 | V5: =Congreso!N8*100 -> 0 | W5: =CONT_COL_COND(Hoja3!$B$1,V5) -> 0 | X5: 55 | Y5: 0 | Z5: 36.82433844 | AA5: 48 | AC5: Castilla-La Mancha | AD5: Albacete | AE5: 48
A6: Alicante / Alacant | B6: =Congreso!D9*100 -> 32.82712396 | C6: =CONT_COL_COND(Hoja3!$B$1,B6) -> 1 | D6: 48 | E6: 48 | F6: =Congreso!F9*100 -> 20.56619718 | G6: =CONT_COL_COND(Hoja3!$B$1,F6) -> 0 | H6: 10 | I6: 0 | J6: =Congreso!H9*100 -> 25.53792399 | K6: =CONT_COL_COND(Hoja3!$B$1,J6) -> 0 | L6: 20 | M6: 0 | N6: =Congreso!J9*100 -> 18.11486001 | O6: =CONT_COL_COND(Hoja3!$B$1,N6) -> 0 | P6: 52 | Q6: 0 | R6: =Congreso!L9*100 -> 0 | S6: =CONT_COL_COND(Hoja3!$B$1,R6) -> 0 | T6: 55 | U6: 0 | V6: =Congreso!N9*100 -> 0 | W6: =CONT_COL_COND(Hoja3!$B$1,V6) -> 0 | X6: 55 | Y6: 0 | Z6: 32.82712396 | AA6: 48 | AC6: Valencia | AD6: Alicante | AE6: 48
A7: Almería | B7: =Congreso!D10*100 -> 38.01350975 | C7: =CONT_COL_COND(Hoja3!$B$1,B7) -> 1 | D7: 48 | E7: 48 | F7: =Congreso!F10*100 -> 28.43380282 | G7: =CONT_COL_COND(Hoja3!$B$1,F7) -> 0 | H7: 10 | I7: 0 | J7: =Congreso!H10*100 -> 16.03383735 | K7: =CONT_COL_COND(Hoja3!$B$1,J7) -> 0 | L7: 20 | M7: 0 | N7: =Congreso!J10*100 -> 15.25685571 | O7: =CONT_COL_COND(Hoja3!$B$1,N7) -> 0 | P7: 52 | Q7: 0 | R7: =Congreso!L10*100 -> 0 | S7: =CONT_COL_COND(Hoja3!$B$1,R7) -> 0 | T7: 55 | U7: 0 | V7: =Congreso!N10*100 -> 0 | W7: =CONT_COL_COND(Hoja3!$B$1,V7) -> 0 | X7: 55 | Y7: 0 | Z7: 38.01350975 | AA7: 48 | AC7: Andalucía | AD7: Almería | AE7: 48
A8: Araba - Álava | B8: =Congreso!D11*100 -> 18.78690808 | C8: =CONT_COL_COND(Hoja3!$B$1,B8) -> 0 | D8: 48 | E8: 0 | F8: =Congreso!F11*100 -> 13.95070423 | G8: =CONT_COL_COND(Hoja3!$B$1,F8) -> 0 | H8: 10 | I8: 0 | J8: =Congreso!H11*100 -> 30.33428688 | K8: =CONT_COL_COND(Hoja3!$B$1,J8) -> 1 | L8: 20 | M8: 20 | N8: =Congreso!J11*100 -> 6.225987078 | O8: =CONT_COL_COND(Hoja3!$B$1,N8) -> 0 | P8: 52 | Q8: 0 | R8: =Congreso!L11*100 -> 15.47293233 | S8: =CONT_COL_COND(Hoja3!$B$1,R8) -> 0 | T8: 55 | U8: 0 | V8: =Congreso!N11*100 -> 12.25862069 | W8: =CONT_COL_COND(Hoja3!$B$1,V8) -> 0 | X8: 55 | Y8: 0 | Z8: 30.33428688 | AA8: 20 | AC8: País Vasco | AD8: Álava | AE8: 20
A9: Asturias | B9: =Congreso!D12*100 -> 30.12900418 | C9: =CONT_COL_COND(Hoja3!$B$1,B9) -> 1 | D9: 48 | E9: 48 | F9: =Congreso!F12*100 -> 22.94225352 | G9: =CONT_COL_COND(Hoja3!$B$1,F9) -> 0 | H9: 10 | I9: 0 | J9: =Congreso!H12*100 -> 29.32970985 | K9: =CONT_COL_COND(Hoja3!$B$1,J9) -> 0 | L9: 20 | M9: 0 | N9: =Congreso!J12*100 -> 14.4068916 | O9: =CONT_COL_COND(Hoja3!$B$1,N9) -> 0 | P9: 52 | Q9: 0 | R9: =Congreso!L12*100 -> 0 | S9: =CONT_COL_COND(Hoja3!$B$1,R9) -> 0 | T9: 55 | U9: 0 | V9: =Congreso!N12*100 -> 0 | W9: =CONT_COL_COND(Hoja3!$B$1,V9) -> 0 | X9: 55 | Y9: 0 | Z9: 30.12900418 | AA9: 48 | AC9: Asturias | AD9: Asturias | AE9: 48
A10: Ávila | B10: =Congreso!D13*100 -> 46.20779944 | C10: =CONT_COL_COND(Hoja3!$B$1,B10) -> 1 | D10: 48 | E10: 48 | F10: =Congreso!F13*100 -> 19.54084507 | G10: =CONT_COL_COND(Hoja3!$B$1,F10) -> 0 | H10: 10 | I10: 0 | J10: =Congreso!H13*100 -> 15.26563139 | K10: =CONT_COL_COND(Hoja3!$B$1,J10) -> 0 | L10: 20 | M10: 0 | N10: =Congreso!J13*100 -> 16.62742283 | O10: =CONT_COL_COND(Hoja3!$B$1,N10) -> 0 | P10: 52 | Q10: 0 | R10: =Congreso!L13*100 -> 0 | S10: =CONT_COL_COND(Hoja3!$B$1,R10) -> 0 | T10: 55 | U10: 0 | V10: =Congreso!N13*100 -> 0 | W10: =CONT_COL_COND(Hoja3!$B$1,V10) -> 0 | X10: 55 | Y10: 0 | Z10: 46.20779944 | AA10: 48 | AC10: Castilla y León | AD10: Ávila | AE10: 48
A11: Badajoz | B11: =Congreso!D14*100 -> 34.46598189 | C11: =CONT_COL_COND(Hoja3!$B$1,B11) -> 0 | D11: 48 | E11: 0 | F11: =Congreso!F14*100 -> 36.68591549 | G11: =CONT_COL_COND(Hoja3!$B$1,F11) -> 1 | H11: 10 | I11: 10 | J11: =Congreso!H14*100 -> 14.69440131 | K11: =CONT_COL_COND(Hoja3!$B$1,J11) -> 0 | L11: 20 | M11: 0 | N11: =Congreso!J14*100 -> 12.05886576 | O11: =CONT_COL_COND(Hoja3!$B$1,N11) -> 0 | P11: 52 | Q11: 0 | R11: =Congreso!L14*100 -> 0 | S11: =CONT_COL_COND(Hoja3!$B$1,R11) -> 0 | T11: 55 | U11: 0 | V11: =Congreso!N14*100 -> 0 | W11: =CONT_COL_COND(Hoja3!$B$1,V11) -> 0 | X11: 55 | Y11: 0 | Z11: 36.68591549 | AA11: 10 | AC11: Extremadura | AD11: Badajoz | AE11: 10
A12: Barcelona | B12: =Congreso!D15*100 -> 11.26215181 | C12: =CONT_COL_COND(Hoja3!$B$1,B12) -> 0 | D12: 48 | E12: 0 | F12: =Congreso!F15*100 -> 16.04084507 | G12: =CONT_COL_COND(Hoja3!$B$1,F12) -> 0 | H12: 10 | I12: 0 | J12: =Congreso!H15*100 -> 26.50310584 | K12: =CONT_COL_COND(Hoja3!$B$1,J12) -> 1 | L12: 20 | M12: 20 | N12: =Congreso!J15*100 -> 14.39626705 | O12: =CONT_COL_COND(Hoja3!$B$1,N12) -> 0 | P12: 52 | Q12: 0 | R12: =Congreso!L15*100 -> 14.72222222 | S12: =CONT_COL_COND(Hoja3!$B$1,R12) -> 0 | T12: 55 | U12: 0 | V12: =Congreso!N15*100 -> 13.93472803 | W12: =CONT_COL_COND(Hoja3!$B$1,V12) -> 0 | X12: 55 | Y12: 0 | Z12: 26.50310584 | AA12: 20 | AC12: Cataluña | AD12: Barcelona | AE12: 20
A13: Bizkaia | B13: =Congreso!D16*100 -> 11.37207521 | C13: =CONT_COL_COND(Hoja3!$B$1,B13) -> 0 | D13: 48 | E13: 0 | F13: =Congreso!F16*100 -> 12.78732394 | G13: =CONT_COL_COND(Hoja3!$B$1,F13) -> 0 | H13: 10 | I13: 0 | J13: =Congreso!H16*100 -> 28.48271353 | K13: =CONT_COL_COND(Hoja3!$B$1,J13) -> 1 | L13: 20 | M13: 20 | N13: =Congreso!J16*100 -> 4.069203159 | O13: =CONT_COL_COND(Hoja3!$B$1,N13) -> 0 | P13: 52 | Q13: 0 | R13: =Congreso!L16*100 -> 27.3 | S13: =CONT_COL_COND(Hoja3!$B$1,R13) -> 0 | T13: 55 | U13: 0 | V13: =Congreso!N16*100 -> 12.93103448 | W13: =CONT_COL_COND(Hoja3!$B$1,V13) -> 0 | X13: 55 | Y13: 0 | Z13: 28.48271353 | AA13: 20 | AC13: País Vasco | AD13: Vizcaya | AE13: 20
A14: Burgos | B14: =Congreso!D17*100 -> 38.05348189 | C14: =CONT_COL_COND(Hoja3!$B$1,B14) -> 1 | D14: 48 | E14: 48 | F14: =Congreso!F17*100 -> 20.41830986 | G14: =CONT_COL_COND(Hoja3!$B$1,F14) -> 0 | H14: 10 | I14: 0 | J14: =Congreso!H17*100 -> 21.42112791 | K14: =CONT_COL_COND(Hoja3!$B$1,J14) -> 0 | L14: 20 | M14: 0 | N14: =Congreso!J17*100 -> 16.51055276 | O14: =CONT_COL_COND(Hoja3!$B$1,N14) -> 0 | P14: 52 | Q14: 0 | R14: =Congreso!L17*100 -> 0 | S14: =CONT_COL_COND(Hoja3!$B$1,R14) -> 0 | T14: 55 | U14: 0 | V14: =Congreso!N17*100 -> 0 | W14: =CONT_COL_COND(Hoja3!$B$1,V14) -> 0 | X14: 55 | Y14: 0 | Z14: 38.05348189 | AA14: 48 | AC14: Castilla y León | AD14: Burgos | AE14: 48
A15: Cáceres | B15: =Congreso!D18*100 -> 35.32538301 | C15: =CONT_COL_COND(Hoja3!$B$1,B15) -> 1 | D15: 48 | E15: 48 | F15: =Congreso!F18*100 -> 33.58028169 | G15: =CONT_COL_COND(Hoja3!$B$1,F15) -> 0 | H15: 10 | I15: 0 | J15: =Congreso!H18*100 -> 16.57552105 | K15: =CONT_COL_COND(Hoja3!$B$1,J15) -> 0 | L15: 20 | M15: 0 | N15: =Congreso!J18*100 -> 12.11198851 | O15: =CONT_COL_COND(Hoja3!$B$1,N15) -> 0 | P15: 52 | Q15: 0 | R15: =Congreso!L18*100 -> 0 | S15: =CONT_COL_COND(Hoja3!$B$1,R15) -> 0 | T15: 55 | U15: 0 | V15: =Congreso!N18*100 -> 0 | W15: =CONT_COL_COND(Hoja3!$B$1,V15) -> 0 | X15: 55 | Y15: 0 | Z15: 35.32538301 | AA15: 48 | AC15: Extremadura | AD15: Cáceres | AE15: 48
A16: Cádiz | B16: =Congreso!D19*100 -> 27.73067549 | C16: =CONT_COL_COND(Hoja3!$B$1,B16) -> 1 | D16: 48 | E16: 48 | F16: =Congreso!F19*100 -> 27.6056338 | G16: =CONT_COL_COND(Hoja3!$B$1,F16) -> 0 | H16: 10 | I16: 0 | J16: =Congreso!H19*100 -> 25.79399264 | K16: =CONT_COL_COND(Hoja3!$B$1,J16) -> 0 | L16: 20 | M16: 0 | N16: =Congreso!J19*100 -> 15.59684135 | O16: =CONT_COL_COND(Hoja3!$B$1,N16) -> 0 | P16: 52 | Q16: 0 | R16: =Congreso!L19*100 -> 0 | S16: =CONT_COL_COND(Hoja3!$B$1,R16) -> 0 | T16: 55 | U16: 0 | V16: =Congreso!N19*100 -> 0 | W16: =CONT_COL_COND(Hoja3!$B$1,V16) -> 0 | X16: 55 | Y16: 0 | Z16: 27.73067549 | AA16: 48 | AC16: Andalucía | AD16: Cádiz | AE16: 48
A17: Cantabria | B17: =Congreso!D20*100 -> 36.91427577 | C17: =CONT_COL_COND(Hoja3!$B$1,B17) -> 1 | D17: 48 | E17: 48 | F17: =Congreso!F20*100 -> 22.10422535 | G17: =CONT_COL_COND(Hoja3!$B$1,F17) -> 0 | H17: 10 | I17: 0 | J17: =Congreso!H20*100 -> 21.92341643 | K17: =CONT_COL_COND(Hoja3!$B$1,J17) -> 0 | L17: 20 | M17: 0 | N17: =Congreso!J20*100 -> 16.20244078 | O17: =CONT_COL_COND(Hoja3!$B$1,N17) -> 0 | P17: 52 | Q17: 0 | R17: =Congreso!L20*100 -> 0 | S17: =CONT_COL_COND(Hoja3!$B$1,R17) -> 0 | T17: 55 | U17: 0 | V17: =Congreso!N20*100 -> 0 | W17: =CONT_COL_COND(Hoja3!$B$1,V17) -> 0 | X17: 55 | Y17: 0 | Z17: 36.91427577 | AA17: 48 | AC17: Cantabria | AD17: Cantabria | AE17: 48
A18: Castellón / Castelló | B18: =Congreso!D21*100 -> 31.82782033 | C18: =CONT_COL_COND(Hoja3!$B$1,B18) -> 1 | D18: 48 | E18: 48 | F18: =Congreso!F21*100 -> 21.21690141 | G18: =CONT_COL_COND(Hoja3!$B$1,F18) -> 0 | H18: 10 | I18: 0 | J18: =Congreso!H21*100 -> 26.80841847 | K18: =CONT_COL_COND(Hoja3!$B$1,J18) -> 0 | L18: 20 | M18: 0 | N18: =Congreso!J21*100 -> 16.59554917 | O18: =CONT_COL_COND(Hoja3!$B$1,N18) -> 0 | P18: 52 | Q18: 0 | R18: =Congreso!L21*100 -> 0 | S18: =CONT_COL_COND(Hoja3!$B$1,R18) -> 0 | T18: 55 | U18: 0 | V18: =Congreso!N21*100 -> 0 | W18: =CONT_COL_COND(Hoja3!$B$1,V18) -> 0 | X18: 55 | Y18: 0 | Z18: 31.82782033 | AA18: 48 | AC18: Valencia | AD18: Castellón | AE18: 48
A19: Ceuta | B19: 40 | C19: =CONT_COL_COND(Hoja3!$B$1,B19) -> 1 | D19: 48 | E19: 48 | F19: =Congreso!F22*100 -> 22.74507042 | G19: =CONT_COL_COND(Hoja3!$B$1,F19) -> 0 | H19: 10 | I19: 0 | J19: =Congreso!H22*100 -> 15.12774826 | K19: =CONT_COL_COND(Hoja3!$B$1,J19) -> 0 | L19: 20 | M19: 0 | N19: =Congreso!J22*100 -> 14.12002872 | O19: =CONT_COL_COND(Hoja3!$B$1,N19) -> 0 | P19: 52 | Q19: 0 | R19: =Congreso!L22*100 -> 0 | S19: =CONT_COL_COND(Hoja3!$B$1,R19) -> 0 | T19: 55 | U19: 0 | V19: =Congreso!N22*100 -> 0 | W19: =CONT_COL_COND(Hoja3!$B$1,V19) -> 0 | X19: 55 | Y19: 0 | Z19: 40 | AA19: 48 | AC19: Ceuta | AD19: Ceuta | AE19: 48
A20: Ciudad Real | B20: =Congreso!D23*100 -> 38.39324513 | C20: =CONT_COL_COND(Hoja3!$B$1,B20) -> 1 | D20: 48 | E20: 48 | F20: =Congreso!F23*100 -> 30.6915493 | G20: =CONT_COL_COND(Hoja3!$B$1,F20) -> 0 | H20: 10 | I20: 0 | J20: =Congreso!H23*100 -> 15.53154884 | K20: =CONT_COL_COND(Hoja3!$B$1,J20) -> 0 | L20: 20 | M20: 0 | N20: =Congreso!J23*100 -> 13.10007179 | O20: =CONT_COL_COND(Hoja3!$B$1,N20) -> 0 | P20: 52 | Q20: 0 | R20: =Congreso!L23*100 -> 0 | S20: =CONT_COL_COND(Hoja3!$B$1,R20) -> 0 | T20: 55 | U20: 0 | V20: =Congreso!N23*100 -> 0 | W20: =CONT_COL_COND(Hoja3!$B$1,V20) -> 0 | X20: 55 | Y20: 0 | Z20: 38.39324513 | AA20: 48 | AC20: Castilla-La Mancha | AD20: Ciudad Real | AE20: 48
A21: Cordoba | B21: =Congreso!D24*100 -> 30.38882312 | C21: =CONT_COL_COND(Hoja3!$B$1,B21) -> 0 | D21: 48 | E21: 0 | F21: =Congreso!F24*100 -> 31.6084507 | G21: =CONT_COL_COND(Hoja3!$B$1,F21) -> 1 | H21: 10 | I21: 10 | J21: =Congreso!H24*100 -> 22.37646097 | K21: =CONT_COL_COND(Hoja3!$B$1,J21) -> 0 | L21: 20 | M21: 0 | N21: =Congreso!J24*100 -> 12.67508973 | O21: =CONT_COL_COND(Hoja3!$B$1,N21) -> 0 | P21: 52 | Q21: 0 | R21: =Congreso!L24*100 -> 0 | S21: =CONT_COL_COND(Hoja3!$B$1,R21) -> 0 | T21: 55 | U21: 0 | V21: =Congreso!N24*100 -> 0 | W21: =CONT_COL_COND(Hoja3!$B$1,V21) -> 0 | X21: 55 | Y21: 0 | Z21: 31.6084507 | AA21: 10 | AC21: Andalucía | AD21: Córdoba | AE21: 10
A22: Cuenca | B22: =Congreso!D25*100 -> 41.90080084 | C22: =CONT_COL_COND(Hoja3!$B$1,B22) -> 1 | D22: 48 | E22: 48 | F22: =Congreso!F25*100 -> 30.14929577 | G22: =CONT_COL_COND(Hoja3!$B$1,F22) -> 0 | H22: 10 | I22: 0 | J22: =Congreso!H25*100 -> 14.39893747 | K22: =CONT_COL_COND(Hoja3!$B$1,J22) -> 0 | L22: 20 | M22: 0 | N22: =Congreso!J25*100 -> 11.44264178 | O22: =CONT_COL_COND(Hoja3!$B$1,N22) -> 0 | P22: 52 | Q22: 0 | R22: =Congreso!L25*100 -> 0 | S22: =CONT_COL_COND(Hoja3!$B$1,R22) -> 0 | T22: 55 | U22: 0 | V22: =Congreso!N25*100 -> 0 | W22: =CONT_COL_COND(Hoja3!$B$1,V22) -> 0 | X22: 55 | Y22: 0 | Z22: 41.90080084 | AA22: 48 | AC22: Castilla-La Mancha | AD22: Cuenca | AE22: 48
A23: Gipuzkoa | B23: =Congreso!D26*100 -> 8.683948468 | C23: =CONT_COL_COND(Hoja3!$B$1,B23) -> 0 | D23: 48 | E23: 0 | F23: =Congreso!F26*100 -> 13.12253521 | G23: =CONT_COL_COND(Hoja3!$B$1,F23) -> 0 | H23: 10 | I23: 0 | J23: =Congreso!H26*100 -> 27.59632203 | K23: =CONT_COL_COND(Hoja3!$B$1,J23) -> 1 | L23: 20 | M23: 20 | N23: =Congreso!J26*100 -> 3.952333094 | O23: =CONT_COL_COND(Hoja3!$B$1,N23) -> 0 | P23: 52 | Q23: 0 | R23: =Congreso!L26*100 -> 22.97969925 | S23: =CONT_COL_COND(Hoja3!$B$1,R23) -> 0 | T23: 55 | U23: 0 | V23: =Congreso!N26*100 -> 21.61034483 | W23: =CONT_COL_COND(Hoja3!$B$1,V23) -> 0 | X23: 55 | Y23: 0 | Z23: 27.59632203 | AA23: 20 | AC23: País Vasco | AD23: Guipúzcoa | AE23: 20
A24: Girona | B24: =Congreso!D27*100 -> 8.524059889 | C24: =CONT_COL_COND(Hoja3!$B$1,B24) -> 0 | D24: 48 | E24: 0 | F24: =Congreso!F27*100 -> 12.48169014 | G24: =CONT_COL_COND(Hoja3!$B$1,F24) -> 0 | H24: 10 | I24: 0 | J24: =Congreso!H27*100 -> 16.01413976 | K24: =CONT_COL_COND(Hoja3!$B$1,J24) -> 0 | L24: 20 | M24: 0 | N24: =Congreso!J27*100 -> 10.46518306 | O24: =CONT_COL_COND(Hoja3!$B$1,N24) -> 0 | P24: 52 | Q24: 0 | R24: =Congreso!L27*100 -> 27.81111111 | S24: =CONT_COL_COND(Hoja3!$B$1,R24) -> 1 | T24: 55 | U24: 55 | V24: =Congreso!N27*100 -> 22.55732218 | W24: =CONT_COL_COND(Hoja3!$B$1,V24) -> 0 | X24: 55 | Y24: 0 | Z24: 27.81111111 | AA24: 55 | AC24: Cataluña | AD24: Gerona | AE24: 55
A25: Granada | B25: =Congreso!D28*100 -> 31.11831476 | C25: =CONT_COL_COND(Hoja3!$B$1,B25) -> 1 | D25: 48 | E25: 48 | F25: =Congreso!F28*100 -> 30.56338028 | G25: =CONT_COL_COND(Hoja3!$B$1,F25) -> 0 | H25: 10 | I25: 0 | J25: =Congreso!H28*100 -> 21.10596649 | K25: =CONT_COL_COND(Hoja3!$B$1,J25) -> 0 | L25: 20 | M25: 0 | N25: =Congreso!J28*100 -> 14.75750179 | O25: =CONT_COL_COND(Hoja3!$B$1,N25) -> 0 | P25: 52 | Q25: 0 | R25: =Congreso!L28*100 -> 0 | S25: =CONT_COL_COND(Hoja3!$B$1,R25) -> 0 | T25: 55 | U25: 0 | V25: =Congreso!N28*100 -> 0 | W25: =CONT_COL_COND(Hoja3!$B$1,V25) -> 0 | X25: 55 | Y25: 0 | Z25: 31.11831476 | AA25: 48 | AC25: Andalucía | AD25: Granada | AE25: 48
A26: Guadalajara | B26: =Congreso!D29*100 -> 34.76577298 | C26: =CONT_COL_COND(Hoja3!$B$1,B26) -> 1 | D26: 48 | E26: 48 | F26: =Congreso!F29*100 -> 22.21267606 | G26: =CONT_COL_COND(Hoja3!$B$1,F26) -> 0 | H26: 10 | I26: 0 | J26: =Congreso!H29*100 -> 21.25369841 | K26: =CONT_COL_COND(Hoja3!$B$1,J26) -> 0 | L26: 20 | M26: 0 | N26: =Congreso!J29*100 -> 19.1879397 | O26: =CONT_COL_COND(Hoja3!$B$1,N26) -> 0 | P26: 52 | Q26: 0 | R26: =Congreso!L29*100 -> 0 | S26: =CONT_COL_COND(Hoja3!$B$1,R26) -> 0 | T26: 55 | U26: 0 | V26: =Congreso!N29*100 -> 0 | W26: =CONT_COL_COND(Hoja3!$B$1,V26) -> 0 | X26: 55 | Y26: 0 | Z26: 34.76577298 | AA26: 48 | AC26: Castilla-La Mancha | AD26: Guadalajara | AE26: 48
A27: Huelva | B27: =Congreso!D30*100 -> 28.75995822 | C27: =CONT_COL_COND(Hoja3!$B$1,B27) -> 0 | D27: 48 | E27: 0 | F27: =Congreso!F30*100 -> 36.41971831 | G27: =CONT_COL_COND(Hoja3!$B$1,F27) -> 1 | H27: 10 | I27: 10 | J27: =Congreso!H30*100 -> 19.37257867 | K27: =CONT_COL_COND(Hoja3!$B$1,J27) -> 0 | L27: 20 | M27: 0 | N27: =Congreso!J30*100 -> 12.61134243 | O27: =CONT_COL_COND(Hoja3!$B$1,N27) -> 0 | P27: 52 | Q27: 0 | R27: =Congreso!L30*100 -> 0 | S27: =CONT_COL_COND(Hoja3!$B$1,R27) -> 0 | T27: 55 | U27: 0 | V27: =Congreso!N30*100 -> 0 | W27: =CONT_COL_COND(Hoja3!$B$1,V27) -> 0 | X27: 55 | Y27: 0 | Z27: 36.41971831 | AA27: 10 | AC27: Andalucía | AD27: Huelva | AE27: 10
A28: Huesca | B28: =Congreso!D31*100 -> 32.57729805 | C28: =CONT_COL_COND(Hoja3!$B$1,B28) -> 1 | D28: 48 | E28: 48 | F28: =Congreso!F31*100 -> 24.36197183 | G28: =CONT_COL_COND(Hoja3!$B$1,F28) -> 0 | H28: 10 | I28: 0 | J28: =Congreso!H31*100 -> 22.80980793 | K28: =CONT_COL_COND(Hoja3!$B$1,J28) -> 0 | L28: 20 | M28: 0 | N28: =Congreso!J31*100 -> 17.2223977 | O28: =CONT_COL_COND(Hoja3!$B$1,N28) -> 0 | P28: 52 | Q28: 0 | R28: =Congreso!L31*100 -> 0 | S28: =CONT_COL_COND(Hoja3!$B$1,R28) -> 0 | T28: 55 | U28: 0 | V28: =Congreso!N31*100 -> 0 | W28: =CONT_COL_COND(Hoja3!$B$1,V28) -> 0 | X28: 55 | Y28: 0 | Z28: 32.57729805 | AA28: 48 | AC28: Aragón | AD28: Huesca | AE28: 48
A29: Illes Balears | B29: =Congreso!D32*100 -> 29.04975627 | C29: =CONT_COL_COND(Hoja3!$B$1,B29) -> 0 | D29: 48 | E29: 0 | F29: =Congreso!F32*100 -> 18.05211268 | G29: =CONT_COL_COND(Hoja3!$B$1,F29) -> 0 | H29: 10 | I29: 0 | J29: =Congreso!H32*100 -> 31.94948917 | K29: =CONT_COL_COND(Hoja3!$B$1,J29) -> 1 | L29: 20 | M29: 20 | N29: =Congreso!J32*100 -> 15.70308686 | O29: =CONT_COL_COND(Hoja3!$B$1,N29) -> 0 | P29: 52 | Q29: 0 | R29: =Congreso!L32*100 -> 0 | S29: =CONT_COL_COND(Hoja3!$B$1,R29) -> 0 | T29: 55 | U29: 0 | V29: =Congreso!N32*100 -> 0 | W29: =CONT_COL_COND(Hoja3!$B$1,V29) -> 0 | X29: 55 | Y29: 0 | Z29: 31.94948917 | AA29: 20 | AC29: Islas Baleares | AD29: Islas Baleares | AE29: 20
A30: Jaén | B30: =Congreso!D33*100 -> 31.47806407 | C30: =CONT_COL_COND(Hoja3!$B$1,B30) -> 0 | D30: 48 | E30: 0 | F30: =Congreso!F33*100 -> 37.81971831 | G30: =CONT_COL_COND(Hoja3!$B$1,F30) -> 1 | H30: 10 | I30: 10 | J30: =Congreso!H33*100 -> 16.56567225 | K30: =CONT_COL_COND(Hoja3!$B$1,J30) -> 0 | L30: 20 | M30: 0 | N30: =Congreso!J33*100 -> 11.34702082 | O30: =CONT_COL_COND(Hoja3!$B$1,N30) -> 0 | P30: 52 | Q30: 0 | R30: =Congreso!L33*100 -> 0 | S30: =CONT_COL_COND(Hoja3!$B$1,R30) -> 0 | T30: 55 | U30: 0 | V30: =Congreso!N33*100 -> 0 | W30: =CONT_COL_COND(Hoja3!$B$1,V30) -> 0 | X30: 55 | Y30: 0 | Z30: 37.81971831 | AA30: 10 | AC30: Andalucía | AD30: Jaén | AE30: 10
A31: La Rioja | B31: =Congreso!D34*100 -> 38.32329387 | C31: =CONT_COL_COND(Hoja3!$B$1,B31) -> 1 | D31: 48 | E31: 48 | F31: =Congreso!F34*100 -> 23.37605634 | G31: =CONT_COL_COND(Hoja3!$B$1,F31) -> 0 | H31: 10 | I31: 0 | J31: =Congreso!H34*100 -> 19.70743768 | K31: =CONT_COL_COND(Hoja3!$B$1,J31) -> 0 | L31: 20 | M31: 0 | N31: =Congreso!J34*100 -> 16.07494616 | O31: =CONT_COL_COND(Hoja3!$B$1,N31) -> 0 | P31: 52 | Q31: 0 | R31: =Congreso!L34*100 -> 0 | S31: =CONT_COL_COND(Hoja3!$B$1,R31) -> 0 | T31: 55 | U31: 0 | V31: =Congreso!N34*100 -> 0 | W31: =CONT_COL_COND(Hoja3!$B$1,V31) -> 0 | X31: 55 | Y31: 0 | Z31: 38.32329387 | AA31: 48 | AC31: La Rioja | AD31: La Rioja | AE31: 48
A32: Las Palmas | B32: =Congreso!D35*100 -> 28.16037604 | C32: =CONT_COL_COND(Hoja3!$B$1,B32) -> 0 | D32: 48 | E32: 0 | F32: =Congreso!F35*100 -> 22.08450704 | G32: =CONT_COL_COND(Hoja3!$B$1,F32) -> 0 | H32: 10 | I32: 0 | J32: =Congreso!H35*100 -> 28.95545566 | K32: =CONT_COL_COND(Hoja3!$B$1,J32) -> 1 | L32: 20 | M32: 20 | N32: =Congreso!J35*100 -> 13.03632448 | O32: =CONT_COL_COND(Hoja3!$B$1,N32) -> 0 | P32: 52 | Q32: 0 | R32: =Congreso!L35*100 -> 0 | S32: =CONT_COL_COND(Hoja3!$B$1,R32) -> 0 | T32: 55 | U32: 0 | V32: =Congreso!N35*100 -> 0 | W32: =CONT_COL_COND(Hoja3!$B$1,V32) -> 0 | X32: 55 | Y32: 0 | Z32: 28.95545566 | AA32: 20 | AC32: Islas Canarias | AD32: Las Palmas | AE32: 20
A33: León | B33: =Congreso!D36*100 -> 35.59519499 | C33: =CONT_COL_COND(Hoja3!$B$1,B33) -> 1 | D33: 48 | E33: 48 | F33: =Congreso!F36*100 -> 25.01267606 | G33: =CONT_COL_COND(Hoja3!$B$1,F33) -> 0 | H33: 10 | I33: 0 | J33: =Congreso!H36*100 -> 22.01205558 | K33: =CONT_COL_COND(Hoja3!$B$1,J33) -> 0 | L33: 20 | M33: 0 | N33: =Congreso!J36*100 -> 13.78004307 | O33: =CONT_COL_COND(Hoja3!$B$1,N33) -> 0 | P33: 52 | Q33: 0 | R33: =Congreso!L36*100 -> 0 | S33: =CONT_COL_COND(Hoja3!$B$1,R33) -> 0 | T33: 55 | U33: 0 | V33: =Congreso!N36*100 -> 0 | W33: =CONT_COL_COND(Hoja3!$B$1,V33) -> 0 | X33: 55 | Y33: 0 | Z33: 35.59519499 | AA33: 48 | AC33: Castilla y León | AD33: León | AE33: 48
A34: Lleida | B34: =Congreso!D37*100 -> 11.25215877 | C34: =CONT_COL_COND(Hoja3!$B$1,B34) -> 0 | D34: 48 | E34: 0 | F34: =Congreso!F37*100 -> 12.2943662 | G34: =CONT_COL_COND(Hoja3!$B$1,F34) -> 0 | H34: 10 | I34: 0 | J34: =Congreso!H37*100 -> 15.10805067 | K34: =CONT_COL_COND(Hoja3!$B$1,J34) -> 0 | L34: 20 | M34: 0 | N34: =Congreso!J37*100 -> 9.551471644 | O34: =CONT_COL_COND(Hoja3!$B$1,N34) -> 0 | P34: 52 | Q34: 0 | R34: =Congreso!L37*100 -> 26.97777778 | S34: =CONT_COL_COND(Hoja3!$B$1,R34) -> 1 | T34: 55 | U34: 55 | V34: =Congreso!N37*100 -> 21.42175732 | W34: =CONT_COL_COND(Hoja3!$B$1,V34) -> 0 | X34: 55 | Y34: 0 | Z34: 26.97777778 | AA34: 55 | AC34: Cataluña | AD34: Lérida | AE34: 55
A35: Lugo | B35: =Congreso!D38*100 -> 42.48039694 | C35: =CONT_COL_COND(Hoja3!$B$1,B35) -> 1 | D35: 48 | E35: 48 | F35: =Congreso!F38*100 -> 23.64225352 | G35: =CONT_COL_COND(Hoja3!$B$1,F35) -> 0 | H35: 10 | I35: 0 | J35: =Congreso!H38*100 -> 18.9687781 | K35: =CONT_COL_COND(Hoja3!$B$1,J35) -> 0 | L35: 20 | M35: 0 | N35: =Congreso!J38*100 -> 8.074659009 | O35: =CONT_COL_COND(Hoja3!$B$1,N35) -> 0 | P35: 52 | Q35: 0 | R35: =Congreso!L38*100 -> 3.57 | S35: =CONT_COL_COND(Hoja3!$B$1,R35) -> 0 | T35: 55 | U35: 0 | V35: =Congreso!N38*100 -> 0 | W35: =CONT_COL_COND(Hoja3!$B$1,V35) -> 0 | X35: 55 | Y35: 0 | Z35: 42.48039694 | AA35: 48 | AC35: Galicia | AD35: Lugo | AE35: 48
A36: Madrid | B36: =Congreso!D39*100 -> 33.43669916 | C36: =CONT_COL_COND(Hoja3!$B$1,B36) -> 1 | D36: 48 | E36: =C36*D36 -> 48 | F36: =Congreso!F39*100 -> 17.61830986 | G36: =CONT_COL_COND(Hoja3!$B$1,F36) -> 0 | H36: 10 | I36: =G36*H36 -> 0 | J36: =Congreso!H39*100 -> 25.72505108 | K36: =CONT_COL_COND(Hoja3!$B$1,J36) -> 0 | L36: 20 | M36: =K36*L36 -> 0 | N36: =Congreso!J39*100 -> 19.9741565 | O36: =CONT_COL_COND(Hoja3!$B$1,N36) -> 0 | P36: 52 | Q36: =O36*P36 -> 0 | R36: =Congreso!L39*100 -> 0 | S36: =CONT_COL_COND(Hoja3!$B$1,R36) -> 0 | T36: 55 | U36: =S36*T36 -> 0 | V36: =Congreso!N39*100 -> 0 | W36: =CONT_COL_COND(Hoja3!$B$1,V36) -> 0 | X36: 55 | Y36: =W36*X36 -> 0 | Z36: =MAX(B36,F36,J36,N36,R36,V36) -> 33.43669916 | AA36: =E36+I36+M36+Q36+U36+Y36 -> 48 | AC36: Madrid | AD36: Madrid | AE36: =AA36 -> 48
A37: Málaga | B37: =Congreso!D40*100 -> 28.94982591 | C37: =CONT_COL_COND(Hoja3!$B$1,B37) -> 1 | D37: 48 | E37: 48 | F37: =Congreso!F40*100 -> 26.54084507 | G37: =CONT_COL_COND(Hoja3!$B$1,F37) -> 0 | H37: 10 | I37: 0 | J37: =Congreso!H40*100 -> 23.52876992 | K37: =CONT_COL_COND(Hoja3!$B$1,J37) -> 0 | L37: 20 | M37: 0 | N37: =Congreso!J40*100 -> 18.13610912 | O37: =CONT_COL_COND(Hoja3!$B$1,N37) -> 0 | P37: 52 | Q37: 0 | R37: =Congreso!L40*100 -> 0 | S37: =CONT_COL_COND(Hoja3!$B$1,R37) -> 0 | T37: 55 | U37: 0 | V37: =Congreso!N40*100 -> 0 | W37: =CONT_COL_COND(Hoja3!$B$1,V37) -> 0 | X37: 55 | Y37: 0 | Z37: 28.94982591 | AA37: 48 | AC37: Andalucía | AD37: Málaga | AE37: 48
A38: Melilla | B38: =Congreso!D41*100 -> 43.89940808 | C38: =CONT_COL_COND(Hoja3!$B$1,B38) -> 1 | D38: 48 | E38: 48 | F38: =Congreso!F41*100 -> 24.24366197 | G38: =CONT_COL_COND(Hoja3!$B$1,F38) -> 0 | H38: 10 | I38: 0 | J38: =Congreso!H41*100 -> 12.53751532 | K38: =CONT_COL_COND(Hoja3!$B$1,J38) -> 0 | L38: 20 | M38: 0 | N38: =Congreso!J41*100 -> 16.52117732 | O38: =CONT_COL_COND(Hoja3!$B$1,N38) -> 0 | P38: 52 | Q38: 0 | R38: =Congreso!L41*100 -> 0 | S38: =CONT_COL_COND(Hoja3!$B$1,R38) -> 0 | T38: 55 | U38: 0 | V38: =Congreso!N41*100 -> 0 | W38: =CONT_COL_COND(Hoja3!$B$1,V38) -> 0 | X38: 55 | Y38: 0 | Z38: 43.89940808 | AA38: 48 | AC38: Melilla | AD38: Melilla | AE38: 48
A39: Murcia | B39: =Congreso!D42*100 -> 40.41183844 | C39: =CONT_COL_COND(Hoja3!$B$1,B39) -> 1 | D39: 48 | E39: 48 | F39: =Congreso!F42*100 -> 20.03380282 | G39: =CONT_COL_COND(Hoja3!$B$1,F39) -> 0 | H39: 10 | I39: 0 | J39: =Congreso!H42*100 -> 18.01344503 | K39: =CONT_COL_COND(Hoja3!$B$1,J39) -> 0 | L39: 20 | M39: 0 | N39: =Congreso!J42*100 -> 18.7735822 | O39: =CONT_COL_COND(Hoja3!$B$1,N39) -> 0 | P39: 52 | Q39: 0 | R39: =Congreso!L42*100 -> 0 | S39: =CONT_COL_COND(Hoja3!$B$1,R39) -> 0 | T39: 55 | U39: 0 | V39: =Congreso!N42*100 -> 0 | W39: =CONT_COL_COND(Hoja3!$B$1,V39) -> 0 | X39: 55 | Y39: 0 | Z39: 40.41183844 | AA39: 48 | AC39: Murcia | AD39: Murcia | AE39: 48
A40: Navarra | B40: =Congreso!D43*100 -> 28.90985376 | C40: =CONT_COL_COND(Hoja3!$B$1,B40) -> 1 | D40: 48 | E40: 48 | F40: =Congreso!F43*100 -> 15.31126761 | G40: =CONT_COL_COND(Hoja3!$B$1,F40) -> 0 | H40: 10 | I40: 0 | J40: =Congreso!H43*100 -> 26.69023294 | K40: =CONT_COL_COND(Hoja3!$B$1,J40) -> 0 | L40: 20 | M40: 0 | N40: =Congreso!J43*100 -> 7.490308686 | O40: =CONT_COL_COND(Hoja3!$B$1,N40) -> 0 | P40: 52 | Q40: 0 | R40: =Congreso!L43*100 -> 8.68 | S40: =CONT_COL_COND(Hoja3!$B$1,R40) -> 0 | T40: 55 | U40: 0 | V40: =Congreso!N43*100 -> 10.24137931 | W40: =CONT_COL_COND(Hoja3!$B$1,V40) -> 0 | X40: 55 | Y40: 0 | Z40: 28.90985376 | AA40: 48 | AC40: Navarra | AD40: Navarra | AE40: 48
A41: Ourense | B41: =Congreso!D44*100 -> 44.87872563 | C41: =CONT_COL_COND(Hoja3!$B$1,B41) -> 1 | D41: 48 | E41: 48 | F41: =Congreso!F44*100 -> 22.87323944 | G41: =CONT_COL_COND(Hoja3!$B$1,F41) -> 0 | H41: 10 | I41: 0 | J41: =Congreso!H44*100 -> 17.57024928 | K41: =CONT_COL_COND(Hoja3!$B$1,J41) -> 0 | L41: 20 | M41: 0 | N41: =Congreso!J44*100 -> 8.361521895 | O41: =CONT_COL_COND(Hoja3!$B$1,N41) -> 0 | P41: 52 | Q41: 0 | R41: =Congreso!L44*100 -> 3.34 | S41: =CONT_COL_COND(Hoja3!$B$1,R41) -> 0 | T41: 55 | U41: 0 | V41: =Congreso!N44*100 -> 0 | W41: =CONT_COL_COND(Hoja3!$B$1,V41) -> 0 | X41: 55 | Y41: 0 | Z41: 44.87872563 | AA41: 48 | AC41: Galicia | AD41: Orense | AE41: 48
A42: Palencia | B42: =Congreso!D45*100 -> 40.31190808 | C42: =CONT_COL_COND(Hoja3!$B$1,B42) -> 1 | D42: 48 | E42: 48 | F42: =Congreso!F45*100 -> 24.21408451 | G42: =CONT_COL_COND(Hoja3!$B$1,F42) -> 0 | H42: 10 | I42: 0 | J42: =Congreso!H45*100 -> 17.62934205 | K42: =CONT_COL_COND(Hoja3!$B$1,J42) -> 0 | L42: 20 | M42: 0 | N42: =Congreso!J45*100 -> 15.04436468 | O42: =CONT_COL_COND(Hoja3!$B$1,N42) -> 0 | P42: 52 | Q42: 0 | R42: =Congreso!L45*100 -> 0 | S42: =CONT_COL_COND(Hoja3!$B$1,R42) -> 0 | T42: 55 | U42: 0 | V42: =Congreso!N45*100 -> 0 | W42: =CONT_COL_COND(Hoja3!$B$1,V42) -> 0 | X42: 55 | Y42: 0 | Z42: 40.31190808 | AA42: 48 | AC42: Castilla y León | AD42: Palencia | AE42: 48
A43: Pontevedra | B43: =Congreso!D46*100 -> 34.43600279 | C43: =CONT_COL_COND(Hoja3!$B$1,B43) -> 1 | D43: 48 | E43: 48 | F43: =Congreso!F46*100 -> 20.52676056 | G43: =CONT_COL_COND(Hoja3!$B$1,F43) -> 0 | H43: 10 | I43: 0 | J43: =Congreso!H46*100 -> 27.52738047 | K43: =CONT_COL_COND(Hoja3!$B$1,J43) -> 0 | L43: 20 | M43: 0 | N43: =Congreso!J46*100 -> 9.562096195 | O43: =CONT_COL_COND(Hoja3!$B$1,N43) -> 0 | P43: 52 | Q43: 0 | R43: =Congreso!L46*100 -> 4.65 | S43: =CONT_COL_COND(Hoja3!$B$1,R43) -> 0 | T43: 55 | U43: 0 | V43: =Congreso!N46*100 -> 0 | W43: =CONT_COL_COND(Hoja3!$B$1,V43) -> 0 | X43: 55 | Y43: 0 | Z43: 34.43600279 | AA43: 48 | AC43: Galicia | AD43: Pontevedra | AE43: 48
A44: Salamanca | B44: =Congreso!D47*100 -> 42.71023677 | C44: =CONT_COL_COND(Hoja3!$B$1,B44) -> 1 | D44: 48 | E44: 48 | F44: =Congreso!F47*100 -> 21.44366197 | G44: =CONT_COL_COND(Hoja3!$B$1,F44) -> 0 | H44: 10 | I44: 0 | J44: =Congreso!H47*100 -> 15.35427054 | K44: =CONT_COL_COND(Hoja3!$B$1,J44) -> 0 | L44: 20 | M44: 0 | N44: =Congreso!J47*100 -> 17.90236899 | O44: =CONT_COL_COND(Hoja3!$B$1,N44) -> 0 | P44: 52 | Q44: 0 | R44: =Congreso!L47*100 -> 0 | S44: =CONT_COL_COND(Hoja3!$B$1,R44) -> 0 | T44: 55 | U44: 0 | V44: =Congreso!N47*100 -> 0 | W44: =CONT_COL_COND(Hoja3!$B$1,V44) -> 0 | X44: 55 | Y44: 0 | Z44: 42.71023677 | AA44: 48 | AC44: Castilla y León | AD44: Salamanca | AE44: 48
A45: Santa Cruz de Tenerife | B45: =Congreso!D48*100 -> 28.90985376 | C45: =CONT_COL_COND(Hoja3!$B$1,B45) -> 1 | D45: 48 | E45: 48 | F45: =Congreso!F48*100 -> 21.23661972 | G45: =CONT_COL_COND(Hoja3!$B$1,F45) -> 0 | H45: 10 | I45: 0 | J45: =Congreso!H48*100 -> 22.79995913 | K45: =CONT_COL_COND(Hoja3!$B$1,J45) -> 0 | L45: 20 | M45: 0 | N45: =Congreso!J48*100 -> 11.16640345 | O45: =CONT_COL_COND(Hoja3!$B$1,N45) -> 0 | P45: 52 | Q45: 0 | R45: =Congreso!L48*100 -> 15.23636364 | S45: =CONT_COL_COND(Hoja3!$B$1,R45) -> 0 | T45: 55 | U45: 0 | V45: =Congreso!N48*100 -> 0 | W45: =CONT_COL_COND(Hoja3!$B$1,V45) -> 0 | X45: 55 | Y45: 0 | Z45: 28.90985376 | AA45: 48 | AC45: Islas Canarias | AD45: Santa Cruz de Tenerife | AE45: 48
A46: Segovia | B46: =Congreso!D49*100 -> 39.41253482 | C46: =CONT_COL_COND(Hoja3!$B$1,B46) -> 1 | D46: 48 | E46: 48 | F46: =Congreso!F49*100 -> 21.22676056 | G46: =CONT_COL_COND(Hoja3!$B$1,F46) -> 0 | H46: 10 | I46: 0 | J46: =Congreso!H49*100 -> 18.05284021 | K46: =CONT_COL_COND(Hoja3!$B$1,J46) -> 0 | L46: 20 | M46: 0 | N46: =Congreso!J49*100 -> 18.12548457 | O46: =CONT_COL_COND(Hoja3!$B$1,N46) -> 0 | P46: 52 | Q46: 0 | R46: =Congreso!L49*100 -> 0 | S46: =CONT_COL_COND(Hoja3!$B$1,R46) -> 0 | T46: 55 | U46: 0 | V46: =Congreso!N49*100 -> 0 | W46: =CONT_COL_COND(Hoja3!$B$1,V46) -> 0 | X46: 55 | Y46: 0 | Z46: 39.41253482 | AA46: 48 | AC46: Castilla y León | AD46: Segovia | AE46: 48
A47: Sevilla | B47: =Congreso!D50*100 -> 25.17245822 | C47: =CONT_COL_COND(Hoja3!$B$1,B47) -> 0 | D47: 48 | E47: 0 | F47: =Congreso!F50*100 -> 33.48169014 | G47: =CONT_COL_COND(Hoja3!$B$1,F47) -> 1 | H47: 10 | I47: 10 | J47: =Congreso!H50*100 -> 24.33637107 | K47: =CONT_COL_COND(Hoja3!$B$1,J47) -> 0 | L47: 20 | M47: 0 | N47: =Congreso!J50*100 -> 13.83316583 | O47: =CONT_COL_COND(Hoja3!$B$1,N47) -> 0 | P47: 52 | Q47: 0 | R47: =Congreso!L50*100 -> 0 | S47: =CONT_COL_COND(Hoja3!$B$1,R47) -> 0 | T47: 55 | U47: 0 | V47: =Congreso!N50*100 -> 0 | W47: =CONT_COL_COND(Hoja3!$B$1,V47) -> 0 | X47: 55 | Y47: 0 | Z47: 33.48169014 | AA47: 10 | AC47: Andalucía | AD47: Sevilla | AE47: 10
A48: Soria | B48: =Congreso!D51*100 -> 38.63307799 | C48: =CONT_COL_COND(Hoja3!$B$1,B48) -> 1 | D48: 48 | E48: 48 | F48: =Congreso!F51*100 -> 23.48450704 | G48: =CONT_COL_COND(Hoja3!$B$1,F48) -> 0 | H48: 10 | I48: 0 | J48: =Congreso!H51*100 -> 19.28393952 | K48: =CONT_COL_COND(Hoja3!$B$1,J48) -> 0 | L48: 20 | M48: 0 | N48: =Congreso!J51*100 -> 16.11744436 | O48: =CONT_COL_COND(Hoja3!$B$1,N48) -> 0 | P48: 52 | Q48: 0 | R48: =Congreso!L51*100 -> 0 | S48: =CONT_COL_COND(Hoja3!$B$1,R48) -> 0 | T48: 55 | U48: 0 | V48: =Congreso!N51*100 -> 0 | W48: =CONT_COL_COND(Hoja3!$B$1,V48) -> 0 | X48: 55 | Y48: 0 | Z48: 38.63307799 | AA48: 48 | AC48: Castilla y León | AD48: Soria | AE48: 48
A49: Tarragona | B49: =Congreso!D52*100 -> 12.21149025 | C49: =CONT_COL_COND(Hoja3!$B$1,B49) -> 0 | D49: 48 | E49: 0 | F49: =Congreso!F52*100 -> 15.57746479 | G49: =CONT_COL_COND(Hoja3!$B$1,F49) -> 0 | H49: 10 | I49: 0 | J49: =Congreso!H52*100 -> 20.33776052 | K49: =CONT_COL_COND(Hoja3!$B$1,J49) -> 1 | L49: 20 | M49: 20 | N49: =Congreso!J52*100 -> 15.11873654 | O49: =CONT_COL_COND(Hoja3!$B$1,N49) -> 0 | P49: 52 | Q49: 0 | R49: =Congreso!L52*100 -> 17.01111111 | S49: =CONT_COL_COND(Hoja3!$B$1,R49) -> 0 | T49: 55 | U49: 0 | V49: =Congreso!N52*100 -> 16.82175732 | W49: =CONT_COL_COND(Hoja3!$B$1,V49) -> 0 | X49: 55 | Y49: 0 | Z49: 20.33776052 | AA49: 20 | AC49: Cataluña | AD49: Tarragona | AE49: 20
A50: Teruel | B50: =Congreso!D53*100 -> 36.43461003 | C50: =CONT_COL_COND(Hoja3!$B$1,B50) -> 1 | D50: 48 | E50: 48 | F50: =Congreso!F53*100 -> 25.27887324 | G50: =CONT_COL_COND(Hoja3!$B$1,F50) -> 0 | H50: 10 | I50: 0 | J50: =Congreso!H53*100 -> 19.94380875 | K50: =CONT_COL_COND(Hoja3!$B$1,J50) -> 0 | L50: 20 | M50: 0 | N50: =Congreso!J53*100 -> 15.63933955 | O50: =CONT_COL_COND(Hoja3!$B$1,N50) -> 0 | P50: 52 | Q50: 0 | R50: =Congreso!L53*100 -> 0 | S50: =CONT_COL_COND(Hoja3!$B$1,R50) -> 0 | T50: 55 | U50: 0 | V50: =Congreso!N53*100 -> 0 | W50: =CONT_COL_COND(Hoja3!$B$1,V50) -> 0 | X50: 55 | Y50: 0 | Z50: 36.43461003 | AA50: 48 | AC50: Aragón | AD50: Teruel | AE50: 48
A51: Toledo | B51: =Congreso!D54*100 -> 38.76298747 | C51: =CONT_COL_COND(Hoja3!$B$1,B51) -> 1 | D51: 48 | E51: 48 | F51: =Congreso!F54*100 -> 27.36901408 | G51: =CONT_COL_COND(Hoja3!$B$1,F51) -> 0 | H51: 10 | I51: 0 | J51: =Congreso!H54*100 -> 16.88083367 | K51: =CONT_COL_COND(Hoja3!$B$1,J51) -> 0 | L51: 20 | M51: 0 | N51: =Congreso!J54*100 -> 14.66188083 | O51: =CONT_COL_COND(Hoja3!$B$1,N51) -> 0 | P51: 52 | Q51: 0 | R51: =Congreso!L54*100 -> 0 | S51: =CONT_COL_COND(Hoja3!$B$1,R51) -> 0 | T51: 55 | U51: 0 | V51: =Congreso!N54*100 -> 0 | W51: =CONT_COL_COND(Hoja3!$B$1,V51) -> 0 | X51: 55 | Y51: 0 | Z51: 38.76298747 | AA51: 48 | AC51: Castilla-La Mancha | AD51: Toledo | AE51: 48
A52: Valencia / València | B52: =Congreso!D55*100 -> 30.19895543 | C52: =CONT_COL_COND(Hoja3!$B$1,B52) -> 0 | D52: 48 | E52: 0 | F52: =Congreso!F55*100 -> 18.58450704 | G52: =CONT_COL_COND(Hoja3!$B$1,F52) -> 0 | H52: 10 | I52: 0 | J52: =Congreso!H55*100 -> 31.27977115 | K52: =CONT_COL_COND(Hoja3!$B$1,J52) -> 1 | L52: 20 | M52: 20 | N52: =Congreso!J55*100 -> 16.07494616 | O52: =CONT_COL_COND(Hoja3!$B$1,N52) -> 0 | P52: 52 | Q52: 0 | R52: =Congreso!L55*100 -> 0 | S52: =CONT_COL_COND(Hoja3!$B$1,R52) -> 0 | T52: 55 | U52: 0 | V52: =Congreso!N55*100 -> 0 | W52: =CONT_COL_COND(Hoja3!$B$1,V52) -> 0 | X52: 55 | Y52: 0 | Z52: 31.27977115 | AA52: 20 | AC52: Valencia | AD52: Valencia | AE52: 20
A53: Valladolid | B53: =Congreso!D56*100 -> 36.93426184 | C53: =CONT_COL_COND(Hoja3!$B$1,B53) -> 1 | D53: 48 | E53: 48 | F53: =Congreso!F56*100 -> 21.28591549 | G53: =CONT_COL_COND(Hoja3!$B$1,F53) -> 0 | H53: 10 | I53: 0 | J53: =Congreso!H56*100 -> 20.36730691 | K53: =CONT_COL_COND(Hoja3!$B$1,J53) -> 0 | L53: 20 | M53: 0 | N53: =Congreso!J56*100 -> 18.17860732 | O53: =CONT_COL_COND(Hoja3!$B$1,N53) -> 0 | P53: 52 | Q53: 0 | R53: =Congreso!L56*100 -> 0 | S53: =CONT_COL_COND(Hoja3!$B$1,R53) -> 0 | T53: 55 | U53: 0 | V53: =Congreso!N56*100 -> 0 | W53: =CONT_COL_COND(Hoja3!$B$1,V53) -> 0 | X53: 55 | Y53: 0 | Z53: 36.93426184 | AA53: 48 | AC53: Castilla y León | AD53: Valladolid | AE53: 48
A54: Zamora | B54: =Congreso!D57*100 -> 42.55034819 | C54: =CONT_COL_COND(Hoja3!$B$1,B54) -> 1 | D54: 48 | E54: 48 | F54: =Congreso!F57*100 -> 22.65633803 | G54: =CONT_COL_COND(Hoja3!$B$1,F54) -> 0 | H54: 10 | I54: 0 | J54: =Congreso!H57*100 -> 18.58467511 | K54: =CONT_COL_COND(Hoja3!$B$1,J54) -> 0 | L54: 20 | M54: 0 | N54: =Congreso!J57*100 -> 13.72692032 | O54: =CONT_COL_COND(Hoja3!$B$1,N54) -> 0 | P54: 52 | Q54: 0 | R54: =Congreso!L57*100 -> 0 | S54: =CONT_COL_COND(Hoja3!$B$1,R54) -> 0 | T54: 55 | U54: 0 | V54: =Congreso!N57*100 -> 0 | W54: =CONT_COL_COND(Hoja3!$B$1,V54) -> 0 | X54: 55 | Y54: 0 | Z54: 42.55034819 | AA54: 48 | AC54: Castilla y León | AD54: Zamora | AE54: 48
A55: Zaragoza | B55: =Congreso!D58*100 -> 30.28889276 | C55: =CONT_COL_COND(Hoja3!$B$1,B55) -> 1 | D55: 48 | E55: 48 | F55: =Congreso!F58*100 -> 21.98591549 | G55: =CONT_COL_COND(Hoja3!$B$1,F55) -> 0 | H55: 10 | I55: 0 | J55: =Congreso!H58*100 -> 25.3409481 | K55: =CONT_COL_COND(Hoja3!$B$1,J55) -> 0 | L55: 20 | M55: 0 | N55: =Congreso!J58*100 -> 18.92232592 | O55: =CONT_COL_COND(Hoja3!$B$1,N55) -> 0 | P55: 52 | Q55: 0 | R55: =Congreso!L58*100 -> 0 | S55: =CONT_COL_COND(Hoja3!$B$1,R55) -> 0 | T55: 55 | U55: 0 | V55: =Congreso!N58*100 -> 0 | W55: =CONT_COL_COND(Hoja3!$B$1,V55) -> 0 | X55: 55 | Y55: 0 | Z55: 30.28889276 | AA55: 48 | AC55: Aragón | AD55: Zaragoza | AE55: 48
